Workbook

Sheet MonsterConfig
A1: ID[csknu] | B1: name[ct] | C1: profession[cn] | D1: quality[csn] | E1: qualityType[cn] | F1: type[csn] | G1: HP[cn] | H1: attack[cn] | I1: spellAttack[cn] | J1: realAttack[cn] | K1: attackRange[cn] | L1: bullet[cn] | M1: bulletPos[cna] | N1: attackCD[cn] | O1: attackSpeed[cn] | P1: attackCrit[cn] | Q1: critNum[cn] | R1: defense[cn] | S1: spellDefense[cn] | T1: hurtFrame[cn] | U1: hit[cn] | V1: dodge[cn] | W1: moveSpeed[cn] | X1: skills[cna] | Y1: skillCDs[cna] | Z1: enterCDs[cna] | AA1: cost[cn] | AB1: lifeDuration[cn] | AC1: url[ct] | AD1: hitID[cn] | AE1: gameScale[cna] | AF1: uiScale[cn] | AG1: tips[ct] | AH1: sumcd[cn] | AI1: showSkillID[cn] | AJ1: hplength[cn] | AK1: sound[ct]
A2: ID区间(6-8w) | B2: 名称 | C2: 职业类型 | D2: 品阶 | E2: 品质 | F2: 类型 | G2: 血量 | H2: 攻击力 | I2: 法术攻击力 | J2: 真实攻击力 | K2: 攻击范围 | L2: 子弹id | M2: 子弹偏移位置 | N2: 攻击cd | O2: 攻击速度‱(5000-50000) | P2: 攻击暴击率‱ | Q2: 暴击倍数‱ | R2: 防御力 | S2: 法术防御力 | T2: 伤害帧 | U2: 命中‱ | V2: 攻击闪避‱ | W2: 移动速度 | X2: 技能数组 | Y2: 技能cd数组 | Z2: 入场技能cd数组 | AA2: 召唤费用 | AB2: 生命时间 | AC2: 角色资源路径 | AD2: 击中特效ID | AE2: 游戏比例% | AF2: ui比例% | AG2: 描述ID | AH2: 召唤CD | AI2: 初始技能ID | AJ2: 血条长度 | AK2: 击中受击音效
A3: 60011 | B3: 树精-1 | C3: 1 | D3: 1 | E3: 1 | F3: 21 | G3: 112 | H3: 17 | I3: 0 | J3: 0 | K3: 100 | L3: 0 | M3: 0 | N3: 0.7 | O3: 10000 | P3: 300 | Q3: 15000 | R3: 10 | S3: 10 | T3: 0.5 | U3: 500 | V3: 500 | W3: 85 | X3: 0 | Y3: 0 | Z3: 0 | AA3: 0 | AB3: 0 | AC3: shujing | AD3: 0 | AE3: 22^100 | AF3: 100 | AG3: 0 | AH3: 0 | AI3: 0 | AJ3: 100 | AK3: normalHit
A4: 60021 | B4: 树精-2 | C4: 1 | D4: 1 | E4: 1 | F4: 21 | G4: 159 | H4: 18 | I4: 0 | J4: 0 | K4: 100 | L4: 0 | M4: 0 | N4: 0.7 | O4: 10000 | P4: 300 | Q4: 15000 | R4: 12 | S4: 12 | T4: 0.5 | U4: 500 | V4: 500 | W4: 85 | X4: 0 | Y4: 0 | Z4: 0 | AA4: 0 | AB4: 0 | AC4: shujing | AD4: 0 | AE4: 22^100 | AF4: 100 | AG4: 0 | AH4: 0 | AI4: 0 | AJ4: 100 | AK4: normalHit
A5: 60022 | B5: 毒蜘蛛-2 | C5: 2 | D5: 1 | E5: 1 | F5: 21 | G5: 182 | H5: 0 | I5: 10 | J5: 0 | K5: 400 | L5: 60001 | M5: 207^188 | N5: 1.2 | O5: 10000 | P5: 300 | Q5: 15000 | R5: 11 | S5: 11 | T5: 0.5 | U5: 500 | V5: 500 | W5: 40 | X5: 0 | Y5: 0 | Z5: 0 | AA5: 0 | AB5: 0 | AC5: duzhizhu | AD5: 0 | AE5: 18^100 | AF5: 100 | AG5: 0 | AH5: 0 | AI5: 0 | AJ5: 100 | AK5: magicHit
A6: 60031 | B6: 树精-3 | C6: 1 | D6: 1 | E6: 1 | F6: 21 | G6: 210 | H6: 19 | I6: 0 | J6: 0 | K6: 100 | L6: 0 | M6: 0 | N6: 0.7 | O6: 10000 | P6: 300 | Q6: 15000 | R6: 14 | S6: 14 | T6: 0.5 | U6: 500 | V6: 500 | W6: 85 | X6: 0 | Y6: 0 | Z6: 0 | AA6: 0 | AB6: 0 | AC6: shujing | AD6: 0 | AE6: 22^100 | AF6: 100 | AG6: 0 | AH6: 0 | AI6: 0 | AJ6: 100 | AK6: normalHit
A7: 60032 | B7: 毒蜘蛛-3 | C7: 1 | D7: 1 | E7: 1 | F7: 21 | G7: 177 | H7: 0 | I7: 11 | J7: 0 | K7: 400 | L7: 60001 | M7: 207^188 | N7: 1.2 | O7: 10000 | P7: 300 | Q7: 15000 | R7: 10 | S7: 10 | T7: 0.5 | U7: 500 | V7: 500 | W7: 40 | X7: 0 | Y7: 0 | Z7: 0 | AA7: 0 | AB7: 0 | AC7: duzhizhu | AD7: 0 | AE7: 18^100 | AF7: 100 | AG7: 0 | AH7: 0 | AI7: 0 | AJ7: 100 | AK7: magicHit
A8: 60033 | B8: 哥布林-3 | C8: 1 | D8: 2 | E8: 2 | F8: 22 | G8: 575 | H8: 23 | I8: 0 | J8: 0 | K8: 100 | L8: 0 | M8: 0 | N8: 0.6 | O8: 10000 | P8: 300 | Q8: 15000 | R8: 16 | S8: 16 | T8: 0.4 | U8: 500 | V8: 500 | W8: 70 | X8: 0 | Y8: 0 | Z8: 0 | AA8: 0 | AB8: 0 | AC8: gebulin | AD8: 0 | AE8: 32^100 | AF8: 100 | AG8: 0 | AH8: 0 | AI8: 0 | AJ8: 100 | AK8: normalHit
A9: 60041 | B9: 树精-4 | C9: 1 | D9: 1 | E9: 1 | F9: 21 | G9: 222 | H9: 21 | I9: 0 | J9: 0 | K9: 100 | L9: 0 | M9: 0 | N9: 0.7 | O9: 10000 | P9: 300 | Q9: 15000 | R9: 15 | S9: 15 | T9: 0.5 | U9: 500 | V9: 500 | W9: 85 | X9: 0 | Y9: 0 | Z9: 0 | AA9: 0 | AB9: 0 | AC9: shujing | AD9: 0 | AE9: 22^100 | AF9: 100 | AG9: 0 | AH9: 0 | AI9: 0 | AJ9: 100 | AK9: normalHit
A10: 60042 | B10: 毒蜘蛛-4 | C10: 1 | D10: 1 | E10: 1 | F10: 21 | G10: 187 | H10: 0 | I10: 11 | J10: 0 | K10: 400 | L10: 60001 | M10: 207^188 | N10: 1.2 | O10: 10000 | P10: 300 | Q10: 15000 | R10: 12 | S10: 12 | T10: 0.5 | U10: 500 | V10: 500 | W10: 40 | X10: 0 | Y10: 0 | Z10: 0 | AA10: 0 | AB10: 0 | AC10: duzhizhu | AD10: 0 | AE10: 18^100 | AF10: 100 | AG10: 0 | AH10: 0 | AI10: 0 | AJ10: 100 | AK10: magicHit
A11: 60043 | B11: 哥布林-4 | C11: 1 | D11: 2 | E11: 2 | F11: 22 | G11: 675 | H11: 26 | I11: 0 | J11: 0 | K11: 100 | L11: 0 | M11: 0 | N11: 0.6 | O11: 10000 | P11: 300 | Q11: 15000 | R11: 19 | S11: 18 | T11: 0.4 | U11: 500 | V11: 500 | W11: 70 | X11: 0 | Y11: 0 | Z11: 0 | AA11: 0 | AB11: 0 | AC11: gebulin | AD11: 0 | AE11: 32^100 | AF11: 100 | AG11: 0 | AH11: 0 | AI11: 0 | AJ11: 100 | AK11: normalHit
A12: 60044 | B12: 森林蜘蛛-4 | C12: 1 | D12: 1 | E12: 1 | F12: 21 | G12: 187 | H12: 21 | I12: 0 | J12: 0 | K12: 100 | L12: 0 | M12: 0 | N12: 0.6 | O12: 10000 | P12: 300 | Q12: 15000 | R12: 15 | S12: 15 | T12: 0.6 | U12: 500 | V12: 500 | W12: 100 | X12: 0 | Y12: 0 | Z12: 0 | AA12: 0 | AB12: 0 | AC12: senlinzhizhu | AD12: 0 | AE12: 18^100 | AF12: 100 | AG12: 0 | AH12: 0 | AI12: 0 | AJ12: 100 | AK12: normalHit
A13: 60051 | B13: 树精-5 | C13: 1 | D13: 1 | E13: 1 | F13: 21 | G13: 237 | H13: 22 | I13: 0 | J13: 0 | K13: 100 | L13: 0 | M13: 0 | N13: 0.7 | O13: 10000 | P13: 300 | Q13: 15000 | R13: 16 | S13: 16 | T13: 0.5 | U13: 500 | V13: 500 | W13: 85 | X13: 0 | Y13: 0 | Z13: 0 | AA13: 0 | AB13: 0 | AC13: shujing | AD13: 0 | AE13: 22^100 | AF13: 100 | AG13: 0 | AH13: 0 | AI13: 0 | AJ13: 100 | AK13: normalHit
A14: 60052 | B14: 毒蜘蛛-5 | C14: 1 | D14: 1 | E14: 1 | F14: 21 | G14: 202 | H14: 0 | I14: 12 | J14: 0 | K14: 400 | L14: 60001 | M14: 207^188 | N14: 1.2 | O14: 10000 | P14: 300 | Q14: 15000 | R14: 13 | S14: 13 | T14: 0.5 | U14: 500 | V14: 500 | W14: 40 | X14: 0 | Y14: 0 | Z14: 0 | AA14: 0 | AB14: 0 | AC14: duzhizhu | AD14: 0 | AE14: 18^100 | AF14: 100 | AG14: 0 | AH14: 0 | AI14: 0 | AJ14: 100 | AK14: magicHit
A15: 60053 | B15: 哥布林-5 | C15: 1 | D15: 2 | E15: 2 | F15: 22 | G15: 735 | H15: 29 | I15: 0 | J15: 0 | K15: 100 | L15: 0 | M15: 0 | N15: 0.6 | O15: 10000 | P15: 300 | Q15: 15000 | R15: 21 | S15: 19 | T15: 0.4 | U15: 500 | V15: 500 | W15: 70 | X15: 0 | Y15: 0 | Z15: 0 | AA15: 0 | AB15: 0 | AC15: gebulin | AD15: 0 | AE15: 32^100 | AF15: 100 | AG15: 0 | AH15: 0 | AI15: 0 | AJ15: 100 | AK15: normalHit
A16: 60054 | B16: 血厚树精-5 | C16: 1 | D16: 1 | E16: 1 | F16: 21 | G16: 1377 | H16: 22 | I16: 0 | J16: 0 | K16: 100 | L16: 0 | M16: 0 | N16: 0.7 | O16: 7000 | P16: 300 | Q16: 15000 | R16: 27 | S16: 16 | T16: 0.5 | U16: 500 | V16: 500 | W16: 42 | X16: 0 | Y16: 0 | Z16: 0 | AA16: 0 | AB16: 0 | AC16: shujing | AD16: 0 | AE16: 35^100 | AF16: 100 | AG16: 0 | AH16: 0 | AI16: 0 | AJ16: 100 | AK16: normalHit
A17: 60055 | B17: 森林蜘蛛-5 | C17: 1 | D17: 1 | E17: 1 | F17: 21 | G17: 202 | H17: 22 | I17: 0 | J17: 0 | K17: 100 | L17: 0 | M17: 0 | N17: 0.6 | O17: 10000 | P17: 300 | Q17: 15000 | R17: 16 | S17: 16 | T17: 0.6 | U17: 500 | V17: 500 | W17: 100 | X17: 0 | Y17: 0 | Z17: 0 | AA17: 0 | AB17: 0 | AC17: senlinzhizhu | AD17: 0 | AE17: 18^100 | AF17: 100 | AG17: 0 | AH17: 0 | AI17: 0 | AJ17: 100 | AK17: normalHit
A18: 60061 | B18: 树精-6 | C18: 1 | D18: 1 | E18: 1 | F18: 21 | G18: 261 | H18: 24 | I18: 0 | J18: 0 | K18: 100 | L18: 0 | M18: 0 | N18: 0.7 | O18: 10000 | P18: 300 | Q18: 15000 | R18: 17 | S18: 16 | T18: 0.5 | U18: 500 | V18: 500 | W18: 85 | X18: 0 | Y18: 0 | Z18: 0 | AA18: 0 | AB18: 0 | AC18: shujing | AD18: 0 | AE18: 22^100 | AF18: 100 | AG18: 0 | AH18: 0 | AI18: 0 | AJ18: 100 | AK18: normalHit
A19: 60062 | B19: 毒蜘蛛-6 | C19: 1 | D19: 1 | E19: 1 | F19: 21 | G19: 222 | H19: 0 | I19: 13 | J19: =H19*1.1 -> 0 | K19: 400 | L19: 60001 | M19: 207^188 | N19: 1.2 | O19: 10000 | P19: 300 | Q19: 15000 | R19: 14 | S19: 13 | T19: 0.5 | U19: 500 | V19: 500 | W19: 40 | X19: 0 | Y19: 0 | Z19: 0 | AA19: 0 | AB19: 0 | AC19: duzhizhu | AD19: 0 | AE19: 18^100 | AF19: 100 | AG19: 0 | AH19: 0 | AI19: 0 | AJ19: 100 | AK19: magicHit
A20: 60063 | B20: 哥布林-6 | C20: 1 | D20: 2 | E20: 2 | F20: 22 | G20: 795 | H20: 32 | I20: 0 | J20: 0 | K20: 100 | L20: 0 | M20: 0 | N20: 0.6 | O20: 10000 | P20: 300 | Q20: 15000 | R20: 22 | S20: 20 | T20: 0.4 | U20: 500 | V20: 500 | W20: 70 | X20: 0 | Y20: 0 | Z20: 0 | AA20: 0 | AB20: 0 | AC20: gebulin | AD20: 0 | AE20: 32^100 | AF20: 100 | AG20: 0 | AH20: 0 | AI20: 0 | AJ20: 100 | AK20: normalHit
A21: 60064 | B21: 血厚树精-6 | C21: 1 | D21: 1 | E21: 1 | F21: 21 | G21: 1605 | H21: 24 | I21: 0 | J21: 0 | K21: 100 | L21: 0 | M21: 0 | N21: 0.7 | O21: 7000 | P21: 300 | Q21: 15000 | R21: 28 | S21: 17 | T21: 0.5 | U21: 500 | V21: 500 | W21: 42 | X21: 0 | Y21: 0 | Z21: 0 | AA21: 0 | AB21: 0 | AC21: shujing | AD21: 0 | AE21: 35^100 | AF21: 100 | AG21: 0 | AH21: 0 | AI21: 0 | AJ21: 100 | AK21: normalHit
A22: 60065 | B22: 森林蜘蛛-6 | C22: 1 | D22: 1 | E22: 1 | F22: 21 | G22: 222 | H22: 24 | I22: 0 | J22: 0 | K22: 100 | L22: 0 | M22: 0 | N22: 0.6 | O22: 10000 | P22: 300 | Q22: 15000 | R22: 17 | S22: 16 | T22: 0.6 | U22: 500 | V22: 500 | W22: 100 | X22: 0 | Y22: 0 | Z22: 0 | AA22: 0 | AB22: 0 | AC22: senlinzhizhu | AD22: 0 | AE22: 18^100 | AF22: 100 | AG22: 0 | AH22: 0 | AI22: 0 | AJ22: 100 | AK22: normalHit
A23: 60071 | B23: 树精-7 | C23: 1 | D23: 1 | E23: 1 | F23: 21 | G23: 287 | H23: 26 | I23: 0 | J23: 0 | K23: 100 | L23: 0 | M23: 0 | N23: 0.7 | O23: 10000 | P23: 300 | Q23: 15000 | R23: 18 | S23: 17 | T23: 0.5 | U23: 500 | V23: 500 | W23: 85 | X23: 0 | Y23: 0 | Z23: 0 | AA23: 0 | AB23: 0 | AC23: shujing | AD23: 0 | AE23: 22^100 | AF23: 100 | AG23: 0 | AH23: 0 | AI23: 0 | AJ23: 100 | AK23: normalHit
A24: 60072 | B24: 毒蜘蛛-7 | C24: 1 | D24: 1 | E24: 1 | F24: 21 | G24: 244 | H24: 0 | I24: 14 | J24: 0 | K24: 400 | L24: 60001 | M24: 207^188 | N24: 1.2 | O24: 10000 | P24: 300 | Q24: 15000 | R24: 15 | S24: 14 | T24: 0.5 | U24: 500 | V24: 500 | W24: 40 | X24: 0 | Y24: 0 | Z24: 0 | AA24: 0 | AB24: 0 | AC24: duzhizhu | AD24: 0 | AE24: 18^100 | AF24: 100 | AG24: 0 | AH24: 0 | AI24: 0 | AJ24: 100 | AK24: magicHit
A25: 60073 | B25: 哥布林-7 | C25: 1 | D25: 2 | E25: 2 | F25: 22 | G25: 855 | H25: 35 | I25: 0 | J25: 0 | K25: 100 | L25: 0 | M25: 0 | N25: 0.6 | O25: 10000 | P25: 300 | Q25: 15000 | R25: 23 | S25: 21 | T25: 0.4 | U25: 500 | V25: 500 | W25: 70 | X25: 0 | Y25: 0 | Z25: 0 | AA25: 0 | AB25: 0 | AC25: gebulin | AD25: 0 | AE25: 32^100 | AF25: 100 | AG25: 0 | AH25: 0 | AI25: 0 | AJ25: 100 | AK25: normalHit
A26: 60074 | B26: 血厚树精-7 | C26: 1 | D26: 1 | E26: 1 | F26: 21 | G26: 2135 | H26: 26 | I26: 0 | J26: 0 | K26: 100 | L26: 0 | M26: 0 | N26: 0.7 | O26: 7000 | P26: 300 | Q26: 15000 | R26: 29 | S26: 18 | T26: 0.5 | U26: 500 | V26: 500 | W26: 42 | X26: 0 | Y26: 0 | Z26: 0 | AA26: 0 | AB26: 0 | AC26: shujing | AD26: 0 | AE26: 35^100 | AF26: 100 | AG26: 0 | AH26: 0 | AI26: 0 | AJ26: 100 | AK26: normalHit
A27: 60075 | B27: 森林蜘蛛-7 | C27: 1 | D27: 1 | E27: 1 | F27: 21 | G27: 244 | H27: 26 | I27: 0 | J27: 0 | K27: 100 | L27: 0 | M27: 0 | N27: 0.6 | O27: 10000 | P27: 300 | Q27: 15000 | R27: 18 | S27: 17 | T27: 0.6 | U27: 500 | V27: 500 | W27: 100 | X27: 0 | Y27: 0 | Z27: 0 | AA27: 0 | AB27: 0 | AC27: senlinzhizhu | AD27: 0 | AE27: 18^100 | AF27: 100 | AG27: 0 | AH27: 0 | AI27: 0 | AJ27: 100 | AK27: normalHit
A28: 60076 | B28: 自爆孢子-7 | C28: 1 | D28: 1 | E28: 1 | F28: 21 | G28: 287 | H28: 0 | I28: 14 | J28: 0 | K28: 100 | L28: 0 | M28: 0 | N28: 0.4 | O28: 10000 | P28: 300 | Q28: 15000 | R28: 23 | S28: 21 | T28: 0.5 | U28: 500 | V28: 500 | W28: 300 | X28: 50004 | Y28: 0 | Z28: 0 | AA28: 0 | AB28: 0 | AC28: zibaobaoya | AD28: 0 | AE28: 11^100 | AF28: 100 | AG28: 0 | AH28: 0 | AI28: 0 | AJ28: 100 | AK28: normalHit
A29: 60081 | B29: 树精-8 | C29: 1 | D29: 1 | E29: 1 | F29: 21 | G29: 314 | H29: 28 | I29: 0 | J29: 0 | K29: 100 | L29: 0 | M29: 0 | N29: 0.7 | O29: 10000 | P29: 300 | Q29: 15000 | R29: 18 | S29: 18 | T29: 0.5 | U29: 500 | V29: 500 | W29: 85 | X29: 0 | Y29: 0 | Z29: 0 | AA29: 0 | AB29: 0 | AC29: shujing | AD29: 0 | AE29: 22^100 | AF29: 100 | AG29: 0 | AH29: 0 | AI29: 0 | AJ29: 100 | AK29: normalHit
A30: 60082 | B30: 毒蜘蛛-8 | C30: 1 | D30: 1 | E30: 1 | F30: 21 | G30: 267 | H30: 0 | I30: 15 | J30: 0 | K30: 400 | L30: 60001 | M30: 207^188 | N30: 1.2 | O30: 10000 | P30: 300 | Q30: 15000 | R30: 16 | S30: 15 | T30: 0.5 | U30: 500 | V30: 500 | W30: 40 | X30: 0 | Y30: 0 | Z30: 0 | AA30: 0 | AB30: 0 | AC30: duzhizhu | AD30: 0 | AE30: 18^100 | AF30: 100 | AG30: 0 | AH30: 0 | AI30: 0 | AJ30: 100 | AK30: magicHit
A31: 60083 | B31: 哥布林-8 | C31: 1 | D31: 2 | E31: 2 | F31: 22 | G31: 895 | H31: 37 | I31: 0 | J31: 0 | K31: 100 | L31: 0 | M31: 0 | N31: 0.6 | O31: 10000 | P31: 300 | Q31: 15000 | R31: 24 | S31: 22 | T31: 0.4 | U31: 500 | V31: 500 | W31: 70 | X31: 0 | Y31: 0 | Z31: 0 | AA31: 0 | AB31: 0 | AC31: gebulin | AD31: 0 | AE31: 32^100 | AF31: 100 | AG31: 0 | AH31: 0 | AI31: 0 | AJ31: 100 | AK31: normalHit
A32: 60084 | B32: 木精灵-8 | C32: 1 | D32: 1 | E32: 1 | F32: 21 | G32: 367 | H32: 0 | I32: 15 | J32: 0 | K32: 425 | L32: 60004 | M32: 175^375 | N32: 1 | O32: 10000 | P32: 300 | Q32: 15000 | R32: 19 | S32: 18 | T32: 0.5 | U32: 500 | V32: 500 | W32: 65 | X32: 60001 | Y32: 5 | Z32: 3 | AA32: 0 | AB32: 0 | AC32: mujingling | AD32: 0 | AE32: 22^100 | AF32: 100 | AG32: 0 | AH32: 0 | AI32: 0 | AJ32: 100 | AK32: magicHit
A33: 60085 | B33: 森林蜘蛛-8 | C33: 1 | D33: 1 | E33: 1 | F33: 21 | G33: 267 | H33: 28 | I33: 0 | J33: 0 | K33: 100 | L33: 0 | M33: 0 | N33: 0.6 | O33: 10000 | P33: 300 | Q33: 15000 | R33: 18 | S33: 17 | T33: 0.6 | U33: 500 | V33: 500 | W33: 100 | X33: 0 | Y33: 0 | Z33: 0 | AA33: 0 | AB33: 0 | AC33: senlinzhizhu | AD33: 0 | AE33: 18^100 | AF33: 100 | AG33: 0 | AH33: 0 | AI33: 0 | AJ33: 100 | AK33: normalHit
A34: 60086 | B34: 自爆孢子-8 | C34: 1 | D34: 1 | E34: 1 | F34: 21 | G34: 314 | H34: 0 | I34: 15 | J34: 0 | K34: 100 | L34: 0 | M34: 0 | N34: 0.4 | O34: 10000 | P34: 300 | Q34: 15000 | R34: 24 | S34: 22 | T34: 0.5 | U34: 500 | V34: 500 | W34: 300 | X34: 50004 | Y34: 0 | Z34: 0 | AA34: 0 | AB34: 0 | AC34: zibaobaoya | AD34: 0 | AE34: 11^100 | AF34: 100 | AG34: 0 | AH34: 0 | AI34: 0 | AJ34: 100 | AK34: normalHit
A35: 60091 | B35: 树精-9 | C35: 1 | D35: 1 | E35: 1 | F35: 21 | G35: 343 | H35: 30 | I35: 0 | J35: 0 | K35: 100 | L35: 0 | M35: 0 | N35: 0.7 | O35: 10000 | P35: 300 | Q35: 15000 | R35: 19 | S35: 18 | T35: 0.5 | U35: 500 | V35: 500 | W35: 85 | X35: 0 | Y35: 0 | Z35: 0 | AA35: 0 | AB35: 0 | AC35: shujing | AD35: 0 | AE35: 22^100 | AF35: 100 | AG35: 0 | AH35: 0 | AI35: 0 | AJ35: 100 | AK35: normalHit
A36: 60092 | B36: 毒蜘蛛-9 | C36: 1 | D36: 1 | E36: 1 | F36: 21 | G36: 289 | H36: 0 | I36: 16 | J36: =H36*1.1 -> 0 | K36: 400 | L36: 60001 | M36: 207^188 | N36: 1.2 | O36: 10000 | P36: 300 | Q36: 15000 | R36: 17 | S36: 16 | T36: 0.5 | U36: 500 | V36: 500 | W36: 40 | X36: 0 | Y36: 0 | Z36: 0 | AA36: 0 | AB36: 0 | AC36: duzhizhu | AD36: 0 | AE36: 18^100 | AF36: 100 | AG36: 0 | AH36: 0 | AI36: 0 | AJ36: 100 | AK36: magicHit
A37: 60093 | B37: 哥布林-9 | C37: 1 | D37: 2 | E37: 2 | F37: 22 | G37: 995 | H37: 39 | I37: 0 | J37: 0 | K37: 100 | L37: 0 | M37: 0 | N37: 0.6 | O37: 10000 | P37: 300 | Q37: 15000 | R37: 25 | S37: 23 | T37: 0.4 | U37: 500 | V37: 500 | W37: 70 | X37: 0 | Y37: 0 | Z37: 0 | AA37: 0 | AB37: 0 | AC37: gebulin | AD37: 0 | AE37: 32^100 | AF37: 100 | AG37: 0 | AH37: 0 | AI37: 0 | AJ37: 100 | AK37: normalHit
A38: 60094 | B38: 木精灵-9 | C38: 1 | D38: 1 | E38: 1 | F38: 21 | G38: 398 | H38: 0 | I38: 16 | J38: 0 | K38: 425 | L38: 60004 | M38: 175^375 | N38: 1 | O38: 10000 | P38: 300 | Q38: 15000 | R38: 20 | S38: 19 | T38: 0.5 | U38: 500 | V38: 500 | W38: 65 | X38: 60001 | Y38: 5 | Z38: 3 | AA38: 0 | AB38: 0 | AC38: mujingling | AD38: 0 | AE38: 22^100 | AF38: 100 | AG38: 0 | AH38: 0 | AI38: 0 | AJ38: 100 | AK38: magicHit
A39: 60095 | B39: 森林蜘蛛-9 | C39: 1 | D39: 1 | E39: 1 | F39: 21 | G39: 289 | H39: 30 | I39: 0 | J39: 0 | K39: 100 | L39: 0 | M39: 0 | N39: 0.6 | O39: 10000 | P39: 300 | Q39: 15000 | R39: 18 | S39: 17 | T39: 0.6 | U39: 500 | V39: 500 | W39: 100 | X39: 0 | Y39: 0 | Z39: 0 | AA39: 0 | AB39: 0 | AC39: senlinzhizhu | AD39: 0 | AE39: 18^100 | AF39: 100 | AG39: 0 | AH39: 0 | AI39: 0 | AJ39: 100 | AK39: normalHit
A40: 60096 | B40: 自爆孢子-9 | C40: 1 | D40: 1 | E40: 1 | F40: 21 | G40: 343 | H40: 0 | I40: 15 | J40: 0 | K40: 100 | L40: 0 | M40: 0 | N40: 0.4 | O40: 10000 | P40: 300 | Q40: 15000 | R40: 24 | S40: 22 | T40: 0.5 | U40: 500 | V40: 500 | W40: 300 | X40: 50004 | Y40: 0 | Z40: 0 | AA40: 0 | AB40: 0 | AC40: zibaobaoya | AD40: 0 | AE40: 11^100 | AF40: 100 | AG40: 0 | AH40: 0 | AI40: 0 | AJ40: 100 | AK40: normalHit
A41: 60101 | B41: 树精-10 | C41: 1 | D41: 1 | E41: 1 | F41: 21 | G41: 374 | H41: 33 | I41: 0 | J41: 0 | K41: 100 | L41: 0 | M41: 0 | N41: 0.7 | O41: 10000 | P41: 300 | Q41: 15000 | R41: 21 | S41: 19 | T41: 0.5 | U41: 500 | V41: 500 | W41: 85 | X41: 0 | Y41: 0 | Z41: 0 | AA41: 0 | AB41: 0 | AC41: shujing | AD41: 0 | AE41: 22^100 | AF41: 100 | AG41: 0 | AH41: 0 | AI41: 0 | AJ41: 100 | AK41: normalHit
A42: 60102 | B42: 毒蜘蛛-10 | C42: 1 | D42: 1 | E42: 1 | F42: 21 | G42: 317 | H42: 0 | I42: 17 | J42: 0 | K42: 400 | L42: 60001 | M42: 207^188 | N42: 1.2 | O42: 10000 | P42: 300 | Q42: 15000 | R42: 19 | S42: 17 | T42: 0.5 | U42: 500 | V42: 500 | W42: 40 | X42: 0 | Y42: 0 | Z42: 0 | AA42: 0 | AB42: 0 | AC42: duzhizhu | AD42: 0 | AE42: 18^100 | AF42: 100 | AG42: 0 | AH42: 0 | AI42: 0 | AJ42: 100 | AK42: magicHit
A43: 60103 | B43: 哥布林-10 | C43: 1 | D43: 2 | E43: 2 | F43: 22 | G43: 1231 | H43: 42 | I43: 0 | J43: 0 | K43: 100 | L43: 0 | M43: 0 | N43: 0.6 | O43: 10000 | P43: 300 | Q43: 15000 | R43: 28 | S43: 25 | T43: 0.4 | U43: 500 | V43: 500 | W43: 70 | X43: 0 | Y43: 0 | Z43: 0 | AA43: 0 | AB43: 0 | AC43: gebulin | AD43: 0 | AE43: 32^100 | AF43: 100 | AG43: 0 | AH43: 0 | AI43: 0 | AJ43: 100 | AK43: normalHit
A44: 60104 | B44: 木精灵-9 | C44: 1 | D44: 1 | E44: 1 | F44: 21 | G44: 435 | H44: 0 | I44: 18 | J44: 0 | K44: 425 | L44: 60004 | M44: 175^375 | N44: 1 | O44: 10000 | P44: 300 | Q44: 15000 | R44: 20 | S44: 19 | T44: 0.5 | U44: 500 | V44: 500 | W44: 65 | X44: 60001 | Y44: 5 | Z44: 3 | AA44: 0 | AB44: 0 | AC44: mujingling | AD44: 0 | AE44: 22^100 | AF44: 100 | AG44: 0 | AH44: 0 | AI44: 0 | AJ44: 100 | AK44: magicHit
A45: 60105 | B45: 森林巨兽-10 | C45: 1 | D45: 1 | E45: 1 | F45: 23 | G45: 15233 | H45: 53 | I45: 0 | J45: 0 | K45: 100 | L45: 0 | M45: 0 | N45: 1.3 | O45: 10000 | P45: 300 | Q45: 15000 | R45: 52 | S45: 26 | T45: 0.5 | U45: 500 | V45: 500 | W45: 50 | X45: 60002^61018 | Y45: 15^0 | Z45: 3^0 | AA45: 0 | AB45: 0 | AC45: senlinjushou | AD45: 0 | AE45: 56^100 | AF45: 100 | AG45: 0 | AH45: 0 | AI45: 0 | AJ45: 130 | AK45: normalHit
A46: 60106 | B46: 毒蜘蛛-10 | C46: 1 | D46: 1 | E46: 1 | F46: 24 | G46: 317 | H46: 0 | I46: 17 | J46: 0 | K46: 400 | L46: 60001 | M46: 207^188 | N46: 1.2 | O46: 10000 | P46: 300 | Q46: 15000 | R46: 19 | S46: 17 | T46: 0.5 | U46: 500 | V46: 500 | W46: 40 | X46: 0 | Y46: 0 | Z46: 0 | AA46: 0 | AB46: 0 | AC46: duzhizhu | AD46: 0 | AE46: 15^100 | AF46: 100 | AG46: 0 | AH46: 0 | AI46: 0 | AJ46: 100 | AK46: magicHit
A47: 60107 | B47: 森林蜘蛛-10 | C47: 1 | D47: 1 | E47: 1 | F47: 21 | G47: 317 | H47: 33 | I47: 0 | J47: 0 | K47: 100 | L47: 0 | M47: 0 | N47: 0.6 | O47: 10000 | P47: 300 | Q47: 15000 | R47: 19 | S47: 17 | T47: 0.6 | U47: 500 | V47: 500 | W47: 100 | X47: 0 | Y47: 0 | Z47: 0 | AA47: 0 | AB47: 0 | AC47: senlinzhizhu | AD47: 0 | AE47: 18^100 | AF47: 100 | AG47: 0 | AH47: 0 | AI47: 0 | AJ47: 100 | AK47: normalHit
A48: 60108 | B48: 自爆孢子-10 | C48: 1 | D48: 1 | E48: 1 | F48: 21 | G48: 374 | H48: 0 | I48: 17 | J48: 0 | K48: 100 | L48: 0 | M48: 0 | N48: 0.4 | O48: 10000 | P48: 300 | Q48: 15000 | R48: 28 | S48: 25 | T48: 0.5 | U48: 500 | V48: 500 | W48: 300 | X48: 50004 | Y48: 0 | Z48: 0 | AA48: 0 | AB48: 0 | AC48: zibaobaoya | AD48: 0 | AE48: 11^100 | AF48: 100 | AG48: 0 | AH48: 0 | AI48: 0 | AJ48: 100 | AK48: normalHit
A49: 60111 | B49: 雪怪-11 | C49: 1 | D49: 1 | E49: 1 | F49: 21 | G49: 426 | H49: 35 | I49: 0 | J49: 0 | K49: 100 | L49: 0 | M49: 0 | N49: 0.7 | O49: 10000 | P49: 300 | Q49: 15000 | R49: 22 | S49: 20 | T49: 0.5 | U49: 500 | V49: 500 | W49: 95 | X49: 0 | Y49: 0 | Z49: 0 | AA49: 0 | AB49: 0 | AC49: xueguai | AD49: 0 | AE49: 22^100 | AF49: 100 | AG49: 0 | AH49: 0 | AI49: 0 | AJ49: 100 | AK49: normalHit
A50: 60112 | B50: 独角兽-11 | C50: 1 | D50: 1 | E50: 1 | F50: 21 | G50: 333 | H50: 0 | I50: 18 | J50: 0 | K50: 400 | L50: 60002 | M50: 175^375 | N50: 1.2 | O50: 10000 | P50: 300 | Q50: 15000 | R50: 21 | S50: 19 | T50: 0.5 | U50: 500 | V50: 500 | W50: 36 | X50: 0 | Y50: 0 | Z50: 0 | AA50: 0 | AB50: 0 | AC50: dujiaoshou | AD50: 0 | AE50: 15^100 | AF50: 100 | AG50: 0 | AH50: 0 | AI50: 0 | AJ50: 100 | AK50: magicHit
A51: 60113 | B51: 雪原熊-11 | C51: 1 | D51: 2 | E51: 2 | F51: 22 | G51: 517 | H51: 45 | I51: 0 | J51: 0 | K51: 100 | L51: 0 | M51: 0 | N51: 0.6 | O51: 10000 | P51: 300 | Q51: 15000 | R51: 30 | S51: 27 | T51: 0.4 | U51: 500 | V51: 500 | W51: 80 | X51: 0 | Y51: 0 | Z51: 0 | AA51: 0 | AB51: 0 | AC51: xueyuanxiong | AD51: 0 | AE51: 22^100 | AF51: 100 | AG51: 0 | AH51: 0 | AI51: 0 | AJ51: 100 | AK51: normalHit
A52: 60114 | B52: 木精灵-11 | C52: 1 | D52: 1 | E52: 1 | F52: 21 | G52: 457 | H52: 0 | I52: 19 | J52: 0 | K52: 425 | L52: 60004 | M52: 175^375 | N52: 1 | O52: 10000 | P52: 300 | Q52: 15000 | R52: 22 | S52: 20 | T52: 0.5 | U52: 500 | V52: 500 | W52: 65 | X52: 60001 | Y52: 5 | Z52: 3 | AA52: 0 | AB52: 0 | AC52: mujingling | AD52: 0 | AE52: 22^100 | AF52: 100 | AG52: 0 | AH52: 0 | AI52: 0 | AJ52: 100 | AK52: magicHit
A53: 60115 | B53: 雪山蜘蛛-11 | C53: 1 | D53: 1 | E53: 1 | F53: 21 | G53: 333 | H53: 35 | I53: 0 | J53: 0 | K53: 100 | L53: 0 | M53: 0 | N53: 0.6 | O53: 10000 | P53: 300 | Q53: 15000 | R53: 22 | S53: 20 | T53: 0.6 | U53: 500 | V53: 500 | W53: 100 | X53: 0 | Y53: 0 | Z53: 0 | AA53: 0 | AB53: 0 | AC53: xueshanzhizhu | AD53: 0 | AE53: 18^100 | AF53: 100 | AG53: 0 | AH53: 0 | AI53: 0 | AJ53: 100 | AK53: normalHit
A54: 60121 | B54: 雪怪-12 | C54: 1 | D54: 1 | E54: 1 | F54: 21 | G54: 447 | H54: 36 | I54: 0 | J54: 0 | K54: 100 | L54: 0 | M54: 0 | N54: 0.7 | O54: 10000 | P54: 300 | Q54: 15000 | R54: 24 | S54: 22 | T54: 0.5 | U54: 500 | V54: 500 | W54: 95 | X54: 0 | Y54: 0 | Z54: 0 | AA54: 0 | AB54: 0 | AC54: xueguai | AD54: 0 | AE54: 22^100 | AF54: 100 | AG54: 0 | AH54: 0 | AI54: 0 | AJ54: 100 | AK54: normalHit
A55: 60122 | B55: 独角兽-12 | C55: 1 | D55: 1 | E55: 1 | F55: 21 | G55: 349 | H55: 0 | I55: 19 | J55: 0 | K55: 400 | L55: 60002 | M55: 175^375 | N55: 1.2 | O55: 10000 | P55: 300 | Q55: 15000 | R55: 23 | S55: 21 | T55: 0.5 | U55: 500 | V55: 500 | W55: 36 | X55: 0 | Y55: 0 | Z55: 0 | AA55: 0 | AB55: 0 | AC55: dujiaoshou | AD55: 0 | AE55: 15^100 | AF55: 100 | AG55: 0 | AH55: 0 | AI55: 0 | AJ55: 100 | AK55: magicHit
A56: 60123 | B56: 雪原熊-12 | C56: 1 | D56: 2 | E56: 2 | F56: 22 | G56: 543 | H56: 47 | I56: 0 | J56: 0 | K56: 100 | L56: 0 | M56: 0 | N56: 0.6 | O56: 10000 | P56: 300 | Q56: 15000 | R56: 32 | S56: 29 | T56: 0.4 | U56: 500 | V56: 500 | W56: 80 | X56: 0 | Y56: 0 | Z56: 0 | AA56: 0 | AB56: 0 | AC56: xueyuanxiong | AD56: 0 | AE56: 22^100 | AF56: 100 | AG56: 0 | AH56: 0 | AI56: 0 | AJ56: 100 | AK56: normalHit
A57: 60124 | B57: 木精灵-12 | C57: 1 | D57: 1 | E57: 1 | F57: 21 | G57: 479 | H57: 0 | I57: 19 | J57: 0 | K57: 425 | L57: 60004 | M57: 175^375 | N57: 1 | O57: 10000 | P57: 300 | Q57: 15000 | R57: 24 | S57: 22 | T57: 0.5 | U57: 500 | V57: 500 | W57: 65 | X57: 60001 | Y57: 5 | Z57: 3 | AA57: 0 | AB57: 0 | AC57: mujingling | AD57: 0 | AE57: 22^100 | AF57: 100 | AG57: 0 | AH57: 0 | AI57: 0 | AJ57: 100 | AK57: magicHit
A58: 60125 | B58: 雪山蜘蛛-12 | C58: 1 | D58: 1 | E58: 1 | F58: 21 | G58: 349 | H58: 36 | I58: 0 | J58: 0 | K58: 100 | L58: 0 | M58: 0 | N58: 0.6 | O58: 10000 | P58: 300 | Q58: 15000 | R58: 24 | S58: 22 | T58: 0.6 | U58: 500 | V58: 500 | W58: 100 | X58: 0 | Y58: 0 | Z58: 0 | AA58: 0 | AB58: 0 | AC58: xueshanzhizhu | AD58: 0 | AE58: 18^100 | AF58: 100 | AG58: 0 | AH58: 0 | AI58: 0 | AJ58: 100 | AK58: normalHit
A59: 60131 | B59: 雪怪-13 | C59: 1 | D59: 1 | E59: 1 | F59: 21 | G59: 469 | H59: 38 | I59: 0 | J59: 0 | K59: 100 | L59: 0 | M59: 0 | N59: 0.7 | O59: 10000 | P59: 300 | Q59: 15000 | R59: 26 | S59: 24 | T59: 0.5 | U59: 500 | V59: 500 | W59: 95 | X59: 0 | Y59: 0 | Z59: 0 | AA59: 0 | AB59: 0 | AC59: xueguai | AD59: 0 | AE59: 22^100 | AF59: 100 | AG59: 0 | AH59: 0 | AI59: 0 | AJ59: 100 | AK59: normalHit
A60: 60132 | B60: 独角兽-13 | C60: 1 | D60: 1 | E60: 1 | F60: 21 | G60: 366 | H60: 0 | I60: 20 | J60: 0 | K60: 400 | L60: 60002 | M60: 175^375 | N60: 1.2 | O60: 10000 | P60: 300 | Q60: 15000 | R60: 25 | S60: 23 | T60: 0.5 | U60: 500 | V60: 500 | W60: 36 | X60: 0 | Y60: 0 | Z60: 0 | AA60: 0 | AB60: 0 | AC60: dujiaoshou | AD60: 0 | AE60: 15^100 | AF60: 100 | AG60: 0 | AH60: 0 | AI60: 0 | AJ60: 100 | AK60: magicHit
A61: 60133 | B61: 雪原熊-13 | C61: 1 | D61: 2 | E61: 2 | F61: 22 | G61: 570 | H61: 49 | I61: 0 | J61: 0 | K61: 100 | L61: 0 | M61: 0 | N61: 0.6 | O61: 10000 | P61: 300 | Q61: 15000 | R61: 34 | S61: 31 | T61: 0.4 | U61: 500 | V61: 500 | W61: 80 | X61: 0 | Y61: 0 | Z61: 0 | AA61: 0 | AB61: 0 | AC61: xueyuanxiong | AD61: 0 | AE61: 22^100 | AF61: 100 | AG61: 0 | AH61: 0 | AI61: 0 | AJ61: 100 | AK61: normalHit
A62: 60134 | B62: 木精灵-13 | C62: 1 | D62: 1 | E62: 1 | F62: 21 | G62: 503 | H62: 0 | I62: 20 | J62: 0 | K62: 425 | L62: 60004 | M62: 175^375 | N62: 1 | O62: 10000 | P62: 300 | Q62: 15000 | R62: 26 | S62: 24 | T62: 0.5 | U62: 500 | V62: 500 | W62: 65 | X62: 60001 | Y62: 5 | Z62: 3 | AA62: 0 | AB62: 0 | AC62: mujingling | AD62: 0 | AE62: 22^100 | AF62: 100 | AG62: 0 | AH62: 0 | AI62: 0 | AJ62: 100 | AK62: magicHit
A63: 60135 | B63: 雪山蜘蛛-13 | C63: 1 | D63: 1 | E63: 1 | F63: 21 | G63: 366 | H63: 38 | I63: 0 | J63: 0 | K63: 100 | L63: 0 | M63: 0 | N63: 0.6 | O63: 10000 | P63: 300 | Q63: 15000 | R63: 26 | S63: 24 | T63: 0.6 | U63: 500 | V63: 500 | W63: 100 | X63: 0 | Y63: 0 | Z63: 0 | AA63: 0 | AB63: 0 | AC63: xueshanzhizhu | AD63: 0 | AE63: 18^100 | AF63: 100 | AG63: 0 | AH63: 0 | AI63: 0 | AJ63: 100 | AK63: normalHit
A64: 60141 | B64: 雪怪-14 | C64: 1 | D64: 1 | E64: 1 | F64: 21 | G64: 492 | H64: 40 | I64: 0 | J64: 0 | K64: 100 | L64: 0 | M64: 0 | N64: 0.7 | O64: 10000 | P64: 300 | Q64: 15000 | R64: 28 | S64: 26 | T64: 0.5 | U64: 500 | V64: 500 | W64: 95 | X64: 0 | Y64: 0 | Z64: 0 | AA64: 0 | AB64: 0 | AC64: xueguai | AD64: 0 | AE64: 22^100 | AF64: 100 | AG64: 0 | AH64: 0 | AI64: 0 | AJ64: 100 | AK64: normalHit
A65: 60142 | B65: 独角兽-14 | C65: 1 | D65: 1 | E65: 1 | F65: 21 | G65: 384 | H65: 0 | I65: 21 | J65: 0 | K65: 400 | L65: 60002 | M65: 175^375 | N65: 1.2 | O65: 10000 | P65: 300 | Q65: 15000 | R65: 27 | S65: 25 | T65: 0.5 | U65: 500 | V65: 500 | W65: 36 | X65: 0 | Y65: 0 | Z65: 0 | AA65: 0 | AB65: 0 | AC65: dujiaoshou | AD65: 0 | AE65: 15^100 | AF65: 100 | AG65: 0 | AH65: 0 | AI65: 0 | AJ65: 100 | AK65: magicHit
A66: 60143 | B66: 雪原熊-14 | C66: 1 | D66: 2 | E66: 2 | F66: 22 | G66: 598 | H66: 51 | I66: 0 | J66: 0 | K66: 100 | L66: 0 | M66: 0 | N66: 0.6 | O66: 10000 | P66: 300 | Q66: 15000 | R66: 36 | S66: 33 | T66: 0.4 | U66: 500 | V66: 500 | W66: 80 | X66: 0 | Y66: 0 | Z66: 0 | AA66: 0 | AB66: 0 | AC66: xueyuanxiong | AD66: 0 | AE66: 22^100 | AF66: 100 | AG66: 0 | AH66: 0 | AI66: 0 | AJ66: 100 | AK66: normalHit
A67: 60144 | B67: 木精灵-14 | C67: 1 | D67: 1 | E67: 1 | F67: 21 | G67: 528 | H67: 0 | I67: 21 | J67: 0 | K67: 425 | L67: 60004 | M67: 175^375 | N67: 1 | O67: 10000 | P67: 300 | Q67: 15000 | R67: 28 | S67: 26 | T67: 0.5 | U67: 500 | V67: 500 | W67: 65 | X67: 60001 | Y67: 5 | Z67: 3 | AA67: 0 | AB67: 0 | AC67: mujingling | AD67: 0 | AE67: 22^100 | AF67: 100 | AG67: 0 | AH67: 0 | AI67: 0 | AJ67: 100 | AK67: magicHit
A68: 60145 | B68: 自爆孢子-14 | C68: 1 | D68: 1 | E68: 1 | F68: 21 | G68: 492 | H68: 0 | I68: 21 | J68: 0 | K68: 100 | L68: 0 | M68: 0 | N68: 0.4 | O68: 10000 | P68: 300 | Q68: 15000 | R68: 28 | S68: 26 | T68: 0.5 | U68: 500 | V68: 500 | W68: 300 | X68: 50004 | Y68: 0 | Z68: 0 | AA68: 0 | AB68: 0 | AC68: zibaobaoya | AD68: 0 | AE68: 11^100 | AF68: 100 | AG68: 0 | AH68: 0 | AI68: 0 | AJ68: 100 | AK68: normalHit
A69: 60151 | B69: 雪怪-15 | C69: 1 | D69: 1 | E69: 1 | F69: 21 | G69: 541 | H69: 44 | I69: 0 | J69: 0 | K69: 100 | L69: 0 | M69: 0 | N69: 0.7 | O69: 10000 | P69: 300 | Q69: 15000 | R69: 31 | S69: 29 | T69: 0.5 | U69: 500 | V69: 500 | W69: 95 | X69: 0 | Y69: 0 | Z69: 0 | AA69: 0 | AB69: 0 | AC69: xueguai | AD69: 0 | AE69: 22^100 | AF69: 100 | AG69: 0 | AH69: 0 | AI69: 0 | AJ69: 100 | AK69: normalHit
A70: 60152 | B70: 独角兽-15 | C70: 1 | D70: 1 | E70: 1 | F70: 21 | G70: 422 | H70: 0 | I70: 23 | J70: 0 | K70: 400 | L70: 60002 | M70: 175^375 | N70: 1.2 | O70: 10000 | P70: 300 | Q70: 15000 | R70: 30 | S70: 27 | T70: 0.5 | U70: 500 | V70: 500 | W70: 36 | X70: 0 | Y70: 0 | Z70: 0 | AA70: 0 | AB70: 0 | AC70: dujiaoshou | AD70: 0 | AE70: 15^100 | AF70: 100 | AG70: 0 | AH70: 0 | AI70: 0 | AJ70: 100 | AK70: magicHit
A71: 60153 | B71: 雪原熊-15 | C71: 1 | D71: 2 | E71: 2 | F71: 22 | G71: 658 | H71: 56 | I71: 0 | J71: 0 | K71: 100 | L71: 0 | M71: 0 | N71: 0.6 | O71: 10000 | P71: 300 | Q71: 15000 | R71: 39 | S71: 36 | T71: 0.4 | U71: 500 | V71: 500 | W71: 80 | X71: 0 | Y71: 0 | Z71: 0 | AA71: 0 | AB71: 0 | AC71: xueyuanxiong | AD71: 0 | AE71: 22^100 | AF71: 100 | AG71: 0 | AH71: 0 | AI71: 0 | AJ71: 100 | AK71: normalHit
A72: 60154 | B72: 木精灵-15 | C72: 1 | D72: 1 | E72: 1 | F72: 21 | G72: 580 | H72: 0 | I72: 23 | J72: 0 | K72: 425 | L72: 60004 | M72: 175^375 | N72: 1 | O72: 10000 | P72: 300 | Q72: 15000 | R72: 31 | S72: 29 | T72: 0.5 | U72: 500 | V72: 500 | W72: 65 | X72: 60003 | Y72: 5 | Z72: 3 | AA72: 0 | AB72: 0 | AC72: mujingling | AD72: 0 | AE72: 22^100 | AF72: 100 | AG72: 0 | AH72: 0 | AI72: 0 | AJ72: 100 | AK72: magicHit
A73: 60155 | B73: 祭祀精英-15 | C73: 1 | D73: 1 | E73: 1 | F73: 22 | G73: 658 | H73: 0 | I73: 46 | J73: 0 | K73: 410 | L73: 60004 | M73: -100^335 | N73: 1.3 | O73: 10000 | P73: 300 | Q73: 15000 | R73: 39 | S73: 36 | T73: 0.5 | U73: 500 | V73: 500 | W73: 50 | X73: 50001^61018 | Y73: 18^0 | Z73: 1^0 | AA73: 0 | AB73: 0 | AC73: senlinjisi | AD73: 0 | AE73: 22^100 | AF73: 100 | AG73: 0 | AH73: 0 | AI73: 0 | AJ73: 100 | AK73: magicHit
A74: 60156 | B74: 自爆孢子-15 | C74: 1 | D74: 1 | E74: 1 | F74: 21 | G74: 541 | H74: 0 | I74: 23 | J74: 0 | K74: 100 | L74: 0 | M74: 0 | N74: 0.4 | O74: 10000 | P74: 300 | Q74: 15000 | R74: 31 | S74: 29 | T74: 0.5 | U74: 500 | V74: 500 | W74: 300 | X74: 50004 | Y74: 0 | Z74: 0 | AA74: 0 | AB74: 0 | AC74: zibaobaoya | AD74: 0 | AE74: 11^100 | AF74: 100 | AG74: 0 | AH74: 0 | AI74: 0 | AJ74: 100 | AK74: normalHit
A75: 60161 | B75: 雪怪-16 | C75: 1 | D75: 1 | E75: 1 | F75: 21 | G75: 595 | H75: 48 | I75: 0 | J75: 0 | K75: 100 | L75: 0 | M75: -100^335 | N75: 0.7 | O75: 10000 | P75: 300 | Q75: 15000 | R75: 32 | S75: 30 | T75: 0.5 | U75: 500 | V75: 500 | W75: 95 | X75: 0 | Y75: 0 | Z75: 0 | AA75: 0 | AB75: 0 | AC75: xueguai | AD75: 0 | AE75: 22^100 | AF75: 100 | AG75: 0 | AH75: 0 | AI75: 0 | AJ75: 100 | AK75: normalHit
A76: 60162 | B76: 独角兽-16 | C76: 1 | D76: 1 | E76: 1 | F76: 21 | G76: 464 | H76: 0 | I76: 26 | J76: 0 | K76: 400 | L76: 60002 | M76: -100^335 | N76: 1.2 | O76: 10000 | P76: 300 | Q76: 15000 | R76: 31 | S76: 28 | T76: 0.5 | U76: 500 | V76: 500 | W76: 36 | X76: 0 | Y76: 0 | Z76: 0 | AA76: 0 | AB76: 0 | AC76: dujiaoshou | AD76: 0 | AE76: 15^100 | AF76: 100 | AG76: 0 | AH76: 0 | AI76: 0 | AJ76: 100 | AK76: magicHit
A77: 60163 | B77: 雪原熊-16 | C77: 1 | D77: 2 | E77: 2 | F77: 22 | G77: 723 | H77: 62 | I77: 0 | J77: 0 | K77: 100 | L77: 0 | M77: -100^335 | N77: 0.6 | O77: 10000 | P77: 300 | Q77: 15000 | R77: 40 | S77: 37 | T77: 0.4 | U77: 500 | V77: 500 | W77: 80 | X77: 0 | Y77: 0 | Z77: 0 | AA77: 0 | AB77: 0 | AC77: xueyuanxiong | AD77: 0 | AE77: 22^100 | AF77: 100 | AG77: 0 | AH77: 0 | AI77: 0 | AJ77: 100 | AK77: normalHit
A78: 60164 | B78: 木精灵-16 | C78: 1 | D78: 1 | E78: 1 | F78: 21 | G78: 638 | H78: 0 | I78: 26 | J78: 0 | K78: 425 | L78: 60004 | M78: -100^335 | N78: 1 | O78: 10000 | P78: 300 | Q78: 15000 | R78: 32 | S78: 30 | T78: 0.5 | U78: 500 | V78: 500 | W78: 65 | X78: 60003 | Y78: 5 | Z78: 3 | AA78: 0 | AB78: 0 | AC78: mujingling | AD78: 0 | AE78: 22^100 | AF78: 100 | AG78: 0 | AH78: 0 | AI78: 0 | AJ78: 100 | AK78: magicHit
A79: 60165 | B79: 祭祀精英-16 | C79: 1 | D79: 1 | E79: 1 | F79: 22 | G79: 723 | H79: 0 | I79: 62 | J79: 0 | K79: 410 | L79: 60004 | M79: -100^335 | N79: 1.3 | O79: 10000 | P79: 300 | Q79: 15000 | R79: 40 | S79: 37 | T79: 0.5 | U79: 500 | V79: 500 | W79: 50 | X79: 50001^61018 | Y79: 18^0 | Z79: 1^0 | AA79: 0 | AB79: 0 | AC79: senlinjisi | AD79: 0 | AE79: 22^100 | AF79: 100 | AG79: 0 | AH79: 0 | AI79: 0 | AJ79: 100 | AK79: magicHit
A80: 60166 | B80: 自爆孢子-16 | C80: 1 | D80: 1 | E80: 1 | F80: 21 | G80: 595 | H80: 0 | I80: 26 | J80: 0 | K80: 100 | L80: 0 | M80: 0 | N80: 0.4 | O80: 10000 | P80: 300 | Q80: 15000 | R80: 32 | S80: 30 | T80: 0.5 | U80: 500 | V80: 500 | W80: 300 | X80: 50004 | Y80: 0 | Z80: 0 | AA80: 0 | AB80: 0 | AC80: zibaobaoya | AD80: 0 | AE80: 11^100 | AF80: 100 | AG80: 0 | AH80: 0 | AI80: 0 | AJ80: 100 | AK80: normalHit
A81: 60171 | B81: 雪怪-17 | C81: 1 | D81: 1 | E81: 1 | F81: 21 | G81: 654 | H81: 52 | I81: 0 | J81: 0 | K81: 100 | L81: 0 | M81: -100^335 | N81: 0.7 | O81: 10000 | P81: 300 | Q81: 15000 | R81: 33 | S81: 31 | T81: 0.5 | U81: 500 | V81: 500 | W81: 95 | X81: 0 | Y81: 0 | Z81: 0 | AA81: 0 | AB81: 0 | AC81: xueguai | AD81: 0 | AE81: 22^100 | AF81: 100 | AG81: 0 | AH81: 0 | AI81: 0 | AJ81: 100 | AK81: normalHit
A82: 60172 | B82: 独角兽-17 | C82: 1 | D82: 1 | E82: 1 | F82: 21 | G82: 510 | H82: 0 | I82: 28 | J82: 0 | K82: 400 | L82: 60002 | M82: -100^335 | N82: 1.2 | O82: 10000 | P82: 300 | Q82: 15000 | R82: 32 | S82: 29 | T82: 0.5 | U82: 500 | V82: 500 | W82: 36 | X82: 0 | Y82: 0 | Z82: 0 | AA82: 0 | AB82: 0 | AC82: dujiaoshou | AD82: 0 | AE82: 15^100 | AF82: 100 | AG82: 0 | AH82: 0 | AI82: 0 | AJ82: 100 | AK82: magicHit
A83: 60173 | B83: 雪原熊-17 | C83: 1 | D83: 2 | E83: 2 | F83: 22 | G83: 795 | H83: 67 | I83: 0 | J83: 0 | K83: 100 | L83: 0 | M83: -100^335 | N83: 0.6 | O83: 10000 | P83: 300 | Q83: 15000 | R83: 41 | S83: 38 | T83: 0.4 | U83: 500 | V83: 500 | W83: 80 | X83: 0 | Y83: 0 | Z83: 0 | AA83: 0 | AB83: 0 | AC83: xueyuanxiong | AD83: 0 | AE83: 22^100 | AF83: 100 | AG83: 0 | AH83: 0 | AI83: 0 | AJ83: 100 | AK83: normalHit
A84: 60174 | B84: 木精灵-17 | C84: 1 | D84: 1 | E84: 1 | F84: 21 | G84: 700 | H84: 0 | I84: 28 | J84: 0 | K84: 425 | L84: 60004 | M84: -100^335 | N84: 1 | O84: 10000 | P84: 300 | Q84: 15000 | R84: 33 | S84: 31 | T84: 0.5 | U84: 500 | V84: 500 | W84: 65 | X84: 60003 | Y84: 5 | Z84: 3 | AA84: 0 | AB84: 0 | AC84: mujingling | AD84: 0 | AE84: 22^100 | AF84: 100 | AG84: 0 | AH84: 0 | AI84: 0 | AJ84: 100 | AK84: magicHit
A85: 60175 | B85: 自爆孢子-17 | C85: 1 | D85: 1 | E85: 1 | F85: 21 | G85: 595 | H85: 0 | I85: 26 | J85: 0 | K85: 100 | L85: 0 | M85: 0 | N85: 0.4 | O85: 10000 | P85: 300 | Q85: 15000 | R85: 32 | S85: 30 | T85: 0.5 | U85: 500 | V85: 500 | W85: 300 | X85: 50004 | Y85: 0 | Z85: 0 | AA85: 0 | AB85: 0 | AC85: zibaobaoya | AD85: 0 | AE85: 11^100 | AF85: 100 | AG85: 0 | AH85: 0 | AI85: 0 | AJ85: 100 | AK85: normalHit
A86: 60181 | B86: 雪怪-18 | C86: 1 | D86: 1 | E86: 1 | F86: 21 | G86: 719 | H86: 54 | I86: 0 | J86: 0 | K86: 100 | L86: 0 | M86: -100^335 | N86: 0.7 | O86: 10000 | P86: 300 | Q86: 15000 | R86: 35 | S86: 33 | T86: 0.5 | U86: 500 | V86: 500 | W86: 95 | X86: 0 | Y86: 0 | Z86: 0 | AA86: 0 | AB86: 0 | AC86: xueguai | AD86: 0 | AE86: 22^100 | AF86: 100 | AG86: 0 | AH86: 0 | AI86: 0 | AJ86: 100 | AK86: normalHit
A87: 60182 | B87: 独角兽-18 | C87: 1 | D87: 1 | E87: 1 | F87: 21 | G87: 561 | H87: 0 | I87: 31 | J87: 0 | K87: 400 | L87: 60002 | M87: -100^335 | N87: 1.2 | O87: 10000 | P87: 300 | Q87: 15000 | R87: 34 | S87: 31 | T87: 0.5 | U87: 500 | V87: 500 | W87: 36 | X87: 0 | Y87: 0 | Z87: 0 | AA87: 0 | AB87: 0 | AC87: dujiaoshou | AD87: 0 | AE87: 15^100 | AF87: 100 | AG87: 0 | AH87: 0 | AI87: 0 | AJ87: 100 | AK87: magicHit
A88: 60183 | B88: 雪原熊-18 | C88: 1 | D88: 2 | E88: 2 | F88: 22 | G88: 875 | H88: 74 | I88: 0 | J88: 0 | K88: 100 | L88: 0 | M88: -100^335 | N88: 0.6 | O88: 10000 | P88: 300 | Q88: 15000 | R88: 43 | S88: 40 | T88: 0.4 | U88: 500 | V88: 500 | W88: 80 | X88: 0 | Y88: 0 | Z88: 0 | AA88: 0 | AB88: 0 | AC88: xueyuanxiong | AD88: 0 | AE88: 22^100 | AF88: 100 | AG88: 0 | AH88: 0 | AI88: 0 | AJ88: 100 | AK88: normalHit
A89: 60184 | B89: 木精灵-18 | C89: 1 | D89: 1 | E89: 1 | F89: 21 | G89: 770 | H89: 0 | I89: 31 | J89: 0 | K89: 425 | L89: 60004 | M89: -100^335 | N89: 1 | O89: 10000 | P89: 300 | Q89: 15000 | R89: 35 | S89: 33 | T89: 0.5 | U89: 500 | V89: 500 | W89: 65 | X89: 60003 | Y89: 5 | Z89: 3 | AA89: 0 | AB89: 0 | AC89: mujingling | AD89: 0 | AE89: 22^100 | AF89: 100 | AG89: 0 | AH89: 0 | AI89: 0 | AJ89: 100 | AK89: magicHit
A90: 60185 | B90: 雪山蜘蛛-18 | C90: 1 | D90: 1 | E90: 1 | F90: 21 | G90: 723 | H90: 58 | I90: 0 | J90: 0 | K90: 100 | L90: 0 | M90: -100^335 | N90: 0.6 | O90: 10000 | P90: 300 | Q90: 15000 | R90: 34 | S90: 32 | T90: 0.6 | U90: 500 | V90: 500 | W90: 80 | X90: 0 | Y90: 0 | Z90: 0 | AA90: 0 | AB90: 0 | AC90: xueshanzhizhu | AD90: 0 | AE90: 18^100 | AF90: 100 | AG90: 0 | AH90: 0 | AI90: 0 | AJ90: 100 | AK90: normalHit
A91: 60186 | B91: 祭祀精英-18 | C91: 1 | D91: 1 | E91: 1 | F91: 22 | G91: 875 | H91: 0 | I91: 74 | J91: 0 | K91: 410 | L91: 60004 | M91: -100^335 | N91: 1.3 | O91: 10000 | P91: 300 | Q91: 15000 | R91: 43 | S91: 40 | T91: 0.5 | U91: 500 | V91: 500 | W91: 50 | X91: 50001^61018 | Y91: 17^0 | Z91: 1^0 | AA91: 0 | AB91: 0 | AC91: senlinjisi | AD91: 0 | AE91: 22^100 | AF91: 100 | AG91: 0 | AH91: 0 | AI91: 0 | AJ91: 100 | AK91: magicHit
A92: 60191 | B92: 雪怪-19 | C92: 1 | D92: 1 | E92: 1 | F92: 21 | G92: 791 | H92: 60 | I92: 0 | J92: 0 | K92: 100 | L92: 0 | M92: -100^335 | N92: 0.7 | O92: 10000 | P92: 300 | Q92: 15000 | R92: 36 | S92: 34 | T92: 0.5 | U92: 500 | V92: 500 | W92: 95 | X92: 0 | Y92: 0 | Z92: 0 | AA92: 0 | AB92: 0 | AC92: xueguai | AD92: 0 | AE92: 22^100 | AF92: 100 | AG92: 0 | AH92: 0 | AI92: 0 | AJ92: 100 | AK92: normalHit
A93: 60192 | B93: 独角兽-19 | C93: 1 | D93: 1 | E93: 1 | F93: 21 | G93: 617 | H93: 0 | I93: 34 | J93: 0 | K93: 400 | L93: 60002 | M93: -100^335 | N93: 1.2 | O93: 10000 | P93: 300 | Q93: 15000 | R93: 35 | S93: 32 | T93: 0.5 | U93: 500 | V93: 500 | W93: 36 | X93: 0 | Y93: 0 | Z93: 0 | AA93: 0 | AB93: 0 | AC93: dujiaoshou | AD93: 0 | AE93: 15^100 | AF93: 100 | AG93: 0 | AH93: 0 | AI93: 0 | AJ93: 100 | AK93: magicHit
A94: 60193 | B94: 雪原熊-19 | C94: 1 | D94: 2 | E94: 2 | F94: 22 | G94: 962 | H94: 81 | I94: 0 | J94: 0 | K94: 100 | L94: 0 | M94: -100^335 | N94: 0.6 | O94: 10000 | P94: 300 | Q94: 15000 | R94: 44 | S94: 41 | T94: 0.4 | U94: 500 | V94: 500 | W94: 80 | X94: 0 | Y94: 0 | Z94: 0 | AA94: 0 | AB94: 0 | AC94: xueyuanxiong | AD94: 0 | AE94: 22^100 | AF94: 100 | AG94: 0 | AH94: 0 | AI94: 0 | AJ94: 100 | AK94: normalHit
A95: 60194 | B95: 木精灵-19 | C95: 1 | D95: 1 | E95: 1 | F95: 21 | G95: 847 | H95: 0 | I95: 34 | J95: 0 | K95: 425 | L95: 60004 | M95: -100^335 | N95: 1 | O95: 10000 | P95: 300 | Q95: 15000 | R95: 36 | S95: 34 | T95: 0.5 | U95: 500 | V95: 500 | W95: 65 | X95: 60003 | Y95: 5 | Z95: 3 | AA95: 0 | AB95: 0 | AC95: mujingling | AD95: 0 | AE95: 22^100 | AF95: 100 | AG95: 0 | AH95: 0 | AI95: 0 | AJ95: 100 | AK95: magicHit
A96: 60195 | B96: 雪山蜘蛛-19 | C96: 1 | D96: 1 | E96: 1 | F96: 21 | G96: 795 | H96: 64 | I96: 0 | J96: 0 | K96: 100 | L96: 0 | M96: -100^335 | N96: 0.6 | O96: 10000 | P96: 300 | Q96: 15000 | R96: 35 | S96: 33 | T96: 0.6 | U96: 500 | V96: 500 | W96: 80 | X96: 0 | Y96: 0 | Z96: 0 | AA96: 0 | AB96: 0 | AC96: xueshanzhizhu | AD96: 0 | AE96: 18^100 | AF96: 100 | AG96: 0 | AH96: 0 | AI96: 0 | AJ96: 100 | AK96: normalHit
A97: 60196 | B97: 祭祀精英-19 | C97: 1 | D97: 1 | E97: 1 | F97: 22 | G97: 962 | H97: 0 | I97: 81 | J97: 0 | K97: 410 | L97: 60004 | M97: -100^335 | N97: 1.3 | O97: 10000 | P97: 300 | Q97: 15000 | R97: 44 | S97: 41 | T97: 0.5 | U97: 500 | V97: 500 | W97: 50 | X97: 50001^61018 | Y97: 17^0 | Z97: 1^0 | AA97: 0 | AB97: 0 | AC97: senlinjisi | AD97: 0 | AE97: 22^100 | AF97: 100 | AG97: 0 | AH97: 0 | AI97: 0 | AJ97: 100 | AK97: magicHit
A98: 60201 | B98: 雪怪-20 | C98: 1 | D98: 1 | E98: 1 | F98: 21 | G98: 870 | H98: 66 | I98: 0 | J98: 0 | K98: 100 | L98: 0 | M98: -100^335 | N98: 0.7 | O98: 10000 | P98: 300 | Q98: 15000 | R98: 38 | S98: 36 | T98: 0.5 | U98: 500 | V98: 500 | W98: 95 | X98: 0 | Y98: 0 | Z98: 0 | AA98: 0 | AB98: 0 | AC98: xueguai | AD98: 0 | AE98: 22^100 | AF98: 100 | AG98: 0 | AH98: 0 | AI98: 0 | AJ98: 100 | AK98: normalHit
A99: 60202 | B99: 独角兽-20 | C99: 1 | D99: 1 | E99: 1 | F99: 21 | G99: 679 | H99: 0 | I99: 37 | J99: 0 | K99: 400 | L99: 60002 | M99: -100^335 | N99: 1.2 | O99: 10000 | P99: 300 | Q99: 15000 | R99: 37 | S99: 34 | T99: 0.5 | U99: 500 | V99: 500 | W99: 36 | X99: 0 | Y99: 0 | Z99: 0 | AA99: 0 | AB99: 0 | AC99: dujiaoshou | AD99: 0 | AE99: 15^100 | AF99: 100 | AG99: 0 | AH99: 0 | AI99: 0 | AJ99: 100 | AK99: magicHit
A100: 60203 | B100: 雪原熊-20 | C100: 1 | D100: 2 | E100: 2 | F100: 22 | G100: 1058 | H100: 89 | I100: 0 | J100: 0 | K100: 100 | L100: 0 | M100: -100^335 | N100: 0.6 | O100: 10000 | P100: 300 | Q100: 15000 | R100: 46 | S100: 43 | T100: 0.4 | U100: 500 | V100: 500 | W100: 80 | X100: 0 | Y100: 0 | Z100: 0 | AA100: 0 | AB100: 0 | AC100: xueyuanxiong | AD100: 0 | AE100: 22^100 | AF100: 100 | AG100: 0 | AH100: 0 | AI100: 0 | AJ100: 100 | AK100: normalHit
A101: 60204 | B101: 木精灵-20 | C101: 1 | D101: 1 | E101: 1 | F101: 21 | G101: 932 | H101: 0 | I101: 37 | J101: 0 | K101: 425 | L101: 60004 | M101: -100^335 | N101: 1 | O101: 10000 | P101: 300 | Q101: 15000 | R101: 38 | S101: 36 | T101: 0.5 | U101: 500 | V101: 500 | W101: 65 | X101: 60003 | Y101: 5 | Z101: 3 | AA101: 0 | AB101: 0 | AC101: mujingling | AD101: 0 | AE101: 22^100 | AF101: 100 | AG101: 0 | AH101: 0 | AI101: 0 | AJ101: 100 | AK101: magicHit
A102: 60205 | B102: 雪山蜘蛛-20 | C102: 1 | D102: 1 | E102: 1 | F102: 21 | G102: 875 | H102: 70 | I102: 0 | J102: 0 | K102: 100 | L102: 0 | M102: -100^335 | N102: 0.6 | O102: 10000 | P102: 300 | Q102: 15000 | R102: 37 | S102: 35 | T102: 0.6 | U102: 500 | V102: 500 | W102: 80 | X102: 0 | Y102: 0 | Z102: 0 | AA102: 0 | AB102: 0 | AC102: xueshanzhizhu | AD102: 0 | AE102: 18^100 | AF102: 100 | AG102: 0 | AH102: 0 | AI102: 0 | AJ102: 100 | AK102: normalHit
A103: 60206 | B103: 冰霜巨人-20 | C103: 1 | D103: 1 | E103: 1 | F103: 23 | G103: 25356 | H103: 98 | I103: 0 | J103: 0 | K103: 100 | L103: 0 | M103: -100^335 | N103: 1.2 | O103: 10000 | P103: 300 | Q103: 15000 | R103: 48 | S103: 45 | T103: 0.5 | U103: 500 | V103: 500 | W103: 65 | X103: 61019^61018 | Y103: 16^0 | Z103: 3^0 | AA103: 0 | AB103: 0 | AC103: bingshuangjuren | AD103: 0 | AE103: 54^100 | AF103: 100 | AG103: 0 | AH103: 0 | AI103: 0 | AJ103: 130 | AK103: normalHit
A104: 60207 | B104: 祭祀精英-20 | C104: 1 | D104: 1 | E104: 1 | F104: 22 | G104: 1058 | H104: 0 | I104: 89 | J104: 0 | K104: 410 | L104: 60004 | M104: -100^335 | N104: 1.3 | O104: 10000 | P104: 300 | Q104: 15000 | R104: 46 | S104: 43 | T104: 0.5 | U104: 500 | V104: 500 | W104: 50 | X104: 50001^61018 | Y104: 16^0 | Z104: 1^0 | AA104: 0 | AB104: 0 | AC104: senlinjisi | AD104: 0 | AE104: 22^100 | AF104: 100 | AG104: 0 | AH104: 0 | AI104: 0 | AJ104: 100 | AK104: magicHit
A105: 60211 | B105: 岩浆蝎-21 | C105: 1 | D105: 1 | E105: 1 | F105: 21 | G105: 952 | H105: 71 | I105: 0 | J105: 0 | K105: 100 | L105: 0 | M105: -100^335 | N105: 0.7 | O105: 10000 | P105: 300 | Q105: 15000 | R105: 39 | S105: 37 | T105: 0.5 | U105: 500 | V105: 500 | W105: 70 | X105: 0 | Y105: 0 | Z105: 0 | AA105: 0 | AB105: 0 | AC105: yanjiangxie | AD105: 0 | AE105: 22^100 | AF105: 100 | AG105: 0 | AH105: 0 | AI105: 0 | AJ105: 100 | AK105: normalHit
A106: 60212 | B106: 岩浆人-21 | C106: 1 | D106: 1 | E106: 1 | F106: 21 | G106: 736 | H106: 0 | I106: 39 | J106: 0 | K106: 400 | L106: 60003 | M106: -100^335 | N106: 1.1 | O106: 10000 | P106: 300 | Q106: 15000 | R106: 38 | S106: 35 | T106: 0.35 | U106: 500 | V106: 500 | W106: 63 | X106: 0 | Y106: 0 | Z106: 0 | AA106: 0 | AB106: 0 | AC106: yanjiangren | AD106: 0 | AE106: 15^100 | AF106: 100 | AG106: 0 | AH106: 0 | AI106: 0 | AJ106: 100 | AK106: magicHit
A107: 60213 | B107: 岩浆战士-21 | C107: 1 | D107: 2 | E107: 2 | F107: 22 | G107: 1154 | H107: 95 | I107: 0 | J107: 0 | K107: 100 | L107: 0 | M107: -100^335 | N107: 0.6 | O107: 10000 | P107: 300 | Q107: 15000 | R107: 47 | S107: 44 | T107: 0.4 | U107: 500 | V107: 500 | W107: 80 | X107: 0 | Y107: 0 | Z107: 0 | AA107: 0 | AB107: 0 | AC107: yanjiangzhanshi | AD107: 0 | AE107: 22^100 | AF107: 100 | AG107: 0 | AH107: 0 | AI107: 0 | AJ107: 100 | AK107: normalHit
A108: 60214 | B108: 火精灵-21 | C108: 1 | D108: 1 | E108: 1 | F108: 21 | G108: 1017 | H108: 0 | I108: 39 | J108: 0 | K108: 425 | L108: 60004 | M108: -100^335 | N108: 1 | O108: 10000 | P108: 300 | Q108: 15000 | R108: 39 | S108: 37 | T108: 0.5 | U108: 500 | V108: 500 | W108: 60 | X108: 60003 | Y108: 5 | Z108: 3 | AA108: 0 | AB108: 0 | AC108: huojingling | AD108: 0 | AE108: 22^100 | AF108: 100 | AG108: 0 | AH108: 0 | AI108: 0 | AJ108: 100 | AK108: normalHit
A109: 60215 | B109: 火山蜘蛛-21 | C109: 1 | D109: 1 | E109: 1 | F109: 21 | G109: 957 | H109: 74 | I109: 0 | J109: 0 | K109: 100 | L109: 0 | M109: -100^335 | N109: 0.6 | O109: 10000 | P109: 300 | Q109: 15000 | R109: 38 | S109: 36 | T109: 0.6 | U109: 500 | V109: 500 | W109: 80 | X109: 0 | Y109: 0 | Z109: 0 | AA109: 0 | AB109: 0 | AC109: huoshanzhizhu | AD109: 0 | AE109: 18^100 | AF109: 100 | AG109: 0 | AH109: 0 | AI109: 0 | AJ109: 100 | AK109: normalHit
A110: 60221 | B110: 岩浆蝎-22 | C110: 1 | D110: 1 | E110: 1 | F110: 21 | G110: 1047 | H110: 78 | I110: 0 | J110: 0 | K110: 100 | L110: 0 | M110: -100^335 | N110: 0.7 | O110: 10000 | P110: 300 | Q110: 15000 | R110: 40 | S110: 38 | T110: 0.5 | U110: 500 | V110: 500 | W110: 70 | X110: 0 | Y110: 0 | Z110: 0 | AA110: 0 | AB110: 0 | AC110: yanjiangxie | AD110: 0 | AE110: 22^100 | AF110: 100 | AG110: 0 | AH110: 0 | AI110: 0 | AJ110: 100 | AK110: normalHit
A111: 60222 | B111: 岩浆人-22 | C111: 1 | D111: 1 | E111: 1 | F111: 21 | G111: 810 | H111: 0 | I111: 43 | J111: 0 | K111: 400 | L111: 60003 | M111: -100^335 | N111: 1.1 | O111: 10000 | P111: 300 | Q111: 15000 | R111: 39 | S111: 36 | T111: 0.35 | U111: 500 | V111: 500 | W111: 63 | X111: 0 | Y111: 0 | Z111: 0 | AA111: 0 | AB111: 0 | AC111: yanjiangren | AD111: 0 | AE111: 15^100 | AF111: 100 | AG111: 0 | AH111: 0 | AI111: 0 | AJ111: 100 | AK111: magicHit
A112: 60223 | B112: 岩浆战士-22 | C112: 1 | D112: 2 | E112: 2 | F112: 22 | G112: 1269 | H112: 104 | I112: 0 | J112: 0 | K112: 100 | L112: 0 | M112: -100^335 | N112: 0.6 | O112: 10000 | P112: 300 | Q112: 15000 | R112: 48 | S112: 45 | T112: 0.4 | U112: 500 | V112: 500 | W112: 80 | X112: 0 | Y112: 0 | Z112: 0 | AA112: 0 | AB112: 0 | AC112: yanjiangzhanshi | AD112: 0 | AE112: 22^100 | AF112: 100 | AG112: 0 | AH112: 0 | AI112: 0 | AJ112: 100 | AK112: normalHit
A113: 60224 | B113: 火精灵-22 | C113: 1 | D113: 1 | E113: 1 | F113: 21 | G113: 1119 | H113: 0 | I113: 43 | J113: 0 | K113: 425 | L113: 60004 | M113: -100^335 | N113: 1 | O113: 10000 | P113: 300 | Q113: 15000 | R113: 40 | S113: 38 | T113: 0.5 | U113: 500 | V113: 500 | W113: 60 | X113: 60003 | Y113: 5 | Z113: 3 | AA113: 0 | AB113: 0 | AC113: huojingling | AD113: 0 | AE113: 22^100 | AF113: 100 | AG113: 0 | AH113: 0 | AI113: 0 | AJ113: 100 | AK113: normalHit
A114: 60225 | B114: 火山蜘蛛-22 | C114: 1 | D114: 1 | E114: 1 | F114: 21 | G114: 1053 | H114: 81 | I114: 0 | J114: 0 | K114: 100 | L114: 0 | M114: -100^335 | N114: 0.6 | O114: 10000 | P114: 300 | Q114: 15000 | R114: 39 | S114: 37 | T114: 0.6 | U114: 500 | V114: 500 | W114: 80 | X114: 0 | Y114: 0 | Z114: 0 | AA114: 0 | AB114: 0 | AC114: huoshanzhizhu | AD114: 0 | AE114: 18^100 | AF114: 100 | AG114: 0 | AH114: 0 | AI114: 0 | AJ114: 100 | AK114: normalHit
A115: 60226 | B115: 蘑菇王-22 | C115: 1 | D115: 1 | E115: 1 | F115: 22 | G115: 1269 | H115: 0 | I115: 104 | J115: 0 | K115: 410 | L115: 60004 | M115: -100^335 | N115: 1.3 | O115: 10000 | P115: 300 | Q115: 15000 | R115: 48 | S115: 45 | T115: 0.5 | U115: 500 | V115: 500 | W115: 50 | X115: 50002^61018 | Y115: 16^0 | Z115: 1^0 | AA115: 0 | AB115: 0 | AC115: moguwang | AD115: 0 | AE115: 22^100 | AF115: 100 | AG115: 0 | AH115: 0 | AI115: 0 | AJ115: 100 | AK115: magicHit
A116: 60231 | B116: 岩浆蝎-23 | C116: 1 | D116: 1 | E116: 1 | F116: 21 | G116: 1151 | H116: 86 | I116: 0 | J116: 0 | K116: 100 | L116: 0 | M116: -100^335 | N116: 0.7 | O116: 10000 | P116: 300 | Q116: 15000 | R116: 41 | S116: 39 | T116: 0.5 | U116: 500 | V116: 500 | W116: 70 | X116: 0 | Y116: 0 | Z116: 0 | AA116: 0 | AB116: 0 | AC116: yanjiangxie | AD116: 0 | AE116: 22^100 | AF116: 100 | AG116: 0 | AH116: 0 | AI116: 0 | AJ116: 100 | AK116: normalHit
A117: 60232 | B117: 岩浆人-23 | C117: 1 | D117: 1 | E117: 1 | F117: 21 | G117: 891 | H117: 0 | I117: 47 | J117: 0 | K117: 400 | L117: 60003 | M117: -100^335 | N117: 1.1 | O117: 10000 | P117: 300 | Q117: 15000 | R117: 40 | S117: 37 | T117: 0.35 | U117: 500 | V117: 500 | W117: 63 | X117: 0 | Y117: 0 | Z117: 0 | AA117: 0 | AB117: 0 | AC117: yanjiangren | AD117: 0 | AE117: 15^100 | AF117: 100 | AG117: 0 | AH117: 0 | AI117: 0 | AJ117: 100 | AK117: magicHit
A118: 60233 | B118: 岩浆战士-23 | C118: 1 | D118: 2 | E118: 2 | F118: 22 | G118: 1395 | H118: 114 | I118: 0 | J118: 0 | K118: 100 | L118: 0 | M118: -100^335 | N118: 0.6 | O118: 10000 | P118: 300 | Q118: 15000 | R118: 49 | S118: 46 | T118: 0.4 | U118: 500 | V118: 500 | W118: 80 | X118: 0 | Y118: 0 | Z118: 0 | AA118: 0 | AB118: 0 | AC118: yanjiangzhanshi | AD118: 0 | AE118: 22^100 | AF118: 100 | AG118: 0 | AH118: 0 | AI118: 0 | AJ118: 100 | AK118: normalHit
A119: 60234 | B119: 火精灵-23 | C119: 1 | D119: 1 | E119: 1 | F119: 21 | G119: 1230 | H119: 0 | I119: 47 | J119: 0 | K119: 425 | L119: 60004 | M119: -100^335 | N119: 1 | O119: 10000 | P119: 300 | Q119: 15000 | R119: 41 | S119: 39 | T119: 0.5 | U119: 500 | V119: 500 | W119: 60 | X119: 60003 | Y119: 5 | Z119: 3 | AA119: 0 | AB119: 0 | AC119: huojingling | AD119: 0 | AE119: 22^100 | AF119: 100 | AG119: 0 | AH119: 0 | AI119: 0 | AJ119: 100 | AK119: normalHit
A120: 60235 | B120: 火山蜘蛛-23 | C120: 1 | D120: 1 | E120: 1 | F120: 21 | G120: 1158 | H120: 90 | I120: 0 | J120: 0 | K120: 100 | L120: 0 | M120: -100^335 | N120: 0.6 | O120: 10000 | P120: 300 | Q120: 15000 | R120: 40 | S120: 38 | T120: 0.6 | U120: 500 | V120: 500 | W120: 80 | X120: 0 | Y120: 0 | Z120: 0 | AA120: 0 | AB120: 0 | AC120: huoshanzhizhu | AD120: 0 | AE120: 18^100 | AF120: 100 | AG120: 0 | AH120: 0 | AI120: 0 | AJ120: 100 | AK120: normalHit
A121: 60236 | B121: 蘑菇王-23 | C121: 1 | D121: 1 | E121: 1 | F121: 22 | G121: 1395 | H121: 0 | I121: 114 | J121: 0 | K121: 410 | L121: 60004 | M121: -100^335 | N121: 1.3 | O121: 10000 | P121: 300 | Q121: 15000 | R121: 49 | S121: 46 | T121: 0.5 | U121: 500 | V121: 500 | W121: 50 | X121: 50002^61018 | Y121: 16^0 | Z121: 1^0 | AA121: 0 | AB121: 0 | AC121: moguwang | AD121: 0 | AE121: 22^100 | AF121: 100 | AG121: 0 | AH121: 0 | AI121: 0 | AJ121: 100 | AK121: magicHit
A122: 60241 | B122: 岩浆蝎-24 | C122: 1 | D122: 1 | E122: 1 | F122: 21 | G122: 1266 | H122: 94 | I122: 0 | J122: 0 | K122: 100 | L122: 0 | M122: -100^335 | N122: 0.7 | O122: 10000 | P122: 300 | Q122: 15000 | R122: 42 | S122: 40 | T122: 0.5 | U122: 500 | V122: 500 | W122: 70 | X122: 0 | Y122: 0 | Z122: 0 | AA122: 0 | AB122: 0 | AC122: yanjiangxie | AD122: 0 | AE122: 22^100 | AF122: 100 | AG122: 0 | AH122: 0 | AI122: 0 | AJ122: 100 | AK122: normalHit
A123: 60242 | B123: 岩浆人-24 | C123: 1 | D123: 1 | E123: 1 | F123: 21 | G123: 980 | H123: 0 | I123: 52 | J123: 0 | K123: 400 | L123: 60003 | M123: -100^335 | N123: 1.1 | O123: 10000 | P123: 300 | Q123: 15000 | R123: 41 | S123: 39 | T123: 0.35 | U123: 500 | V123: 500 | W123: 63 | X123: 0 | Y123: 0 | Z123: 0 | AA123: 0 | AB123: 0 | AC123: yanjiangren | AD123: 0 | AE123: 15^100 | AF123: 100 | AG123: 0 | AH123: 0 | AI123: 0 | AJ123: 100 | AK123: magicHit
A124: 60243 | B124: 岩浆战士-24 | C124: 1 | D124: 2 | E124: 2 | F124: 22 | G124: 1535 | H124: 126 | I124: 0 | J124: 0 | K124: 100 | L124: 0 | M124: -100^335 | N124: 0.6 | O124: 10000 | P124: 300 | Q124: 15000 | R124: 50 | S124: 47 | T124: 0.4 | U124: 500 | V124: 500 | W124: 80 | X124: 0 | Y124: 0 | Z124: 0 | AA124: 0 | AB124: 0 | AC124: yanjiangzhanshi | AD124: 0 | AE124: 22^100 | AF124: 100 | AG124: 0 | AH124: 0 | AI124: 0 | AJ124: 100 | AK124: normalHit
A125: 60244 | B125: 火精灵-24 | C125: 1 | D125: 1 | E125: 1 | F125: 21 | G125: 1353 | H125: 0 | I125: 52 | J125: 0 | K125: 425 | L125: 60004 | M125: -100^335 | N125: 1 | O125: 10000 | P125: 300 | Q125: 15000 | R125: 42 | S125: 40 | T125: 0.5 | U125: 500 | V125: 500 | W125: 60 | X125: 60003 | Y125: 5 | Z125: 3 | AA125: 0 | AB125: 0 | AC125: huojingling | AD125: 0 | AE125: 22^100 | AF125: 100 | AG125: 0 | AH125: 0 | AI125: 0 | AJ125: 100 | AK125: normalHit
A126: 60245 | B126: 火山蜘蛛-24 | C126: 1 | D126: 1 | E126: 1 | F126: 21 | G126: 1273 | H126: 99 | I126: 0 | J126: 0 | K126: 100 | L126: 0 | M126: -100^335 | N126: 0.6 | O126: 10000 | P126: 300 | Q126: 15000 | R126: 41 | S126: 39 | T126: 0.6 | U126: 500 | V126: 500 | W126: 80 | X126: 0 | Y126: 0 | Z126: 0 | AA126: 0 | AB126: 0 | AC126: huoshanzhizhu | AD126: 0 | AE126: 18^100 | AF126: 100 | AG126: 0 | AH126: 0 | AI126: 0 | AJ126: 100 | AK126: normalHit
A127: 60246 | B127: 蘑菇王-24 | C127: 1 | D127: 1 | E127: 1 | F127: 22 | G127: 1535 | H127: 0 | I127: 126 | J127: 0 | K127: 410 | L127: 60004 | M127: -100^335 | N127: 1.3 | O127: 10000 | P127: 300 | Q127: 15000 | R127: 50 | S127: 47 | T127: 0.5 | U127: 500 | V127: 500 | W127: 50 | X127: 50002^61018 | Y127: 16^0 | Z127: 1^0 | AA127: 0 | AB127: 0 | AC127: moguwang | AD127: 0 | AE127: 22^100 | AF127: 100 | AG127: 0 | AH127: 0 | AI127: 0 | AJ127: 100 | AK127: magicHit
A128: 60251 | B128: 岩浆蝎-25 | C128: 1 | D128: 1 | E128: 1 | F128: 21 | G128: 1393 | H128: 104 | I128: 0 | J128: 0 | K128: 100 | L128: 0 | M128: -100^335 | N128: 0.7 | O128: 10000 | P128: 300 | Q128: 15000 | R128: 43 | S128: 41 | T128: 0.5 | U128: 500 | V128: 500 | W128: 70 | X128: 0 | Y128: 0 | Z128: 0 | AA128: 0 | AB128: 0 | AC128: yanjiangxie | AD128: 0 | AE128: 22^100 | AF128: 100 | AG128: 0 | AH128: 0 | AI128: 0 | AJ128: 100 | AK128: normalHit
A129: 60252 | B129: 岩浆人-25 | C129: 1 | D129: 1 | E129: 1 | F129: 21 | G129: 1078 | H129: 0 | I129: 57 | J129: 0 | K129: 400 | L129: 60003 | M129: -100^335 | N129: 1.1 | O129: 10000 | P129: 300 | Q129: 15000 | R129: 42 | S129: 40 | T129: 0.35 | U129: 500 | V129: 500 | W129: 63 | X129: 0 | Y129: 0 | Z129: 0 | AA129: 0 | AB129: 0 | AC129: yanjiangren | AD129: 0 | AE129: 15^100 | AF129: 100 | AG129: 0 | AH129: 0 | AI129: 0 | AJ129: 100 | AK129: magicHit
A130: 60253 | B130: 岩浆战士-25 | C130: 1 | D130: 2 | E130: 2 | F130: 22 | G130: 1688 | H130: 138 | I130: 0 | J130: 0 | K130: 100 | L130: 0 | M130: -100^335 | N130: 0.6 | O130: 10000 | P130: 300 | Q130: 15000 | R130: 51 | S130: 48 | T130: 0.4 | U130: 500 | V130: 500 | W130: 80 | X130: 0 | Y130: 0 | Z130: 0 | AA130: 0 | AB130: 0 | AC130: yanjiangzhanshi | AD130: 0 | AE130: 22^100 | AF130: 100 | AG130: 0 | AH130: 0 | AI130: 0 | AJ130: 100 | AK130: normalHit
A131: 60254 | B131: 火精灵-25 | C131: 1 | D131: 1 | E131: 1 | F131: 21 | G131: 1488 | H131: 0 | I131: 57 | J131: 0 | K131: 425 | L131: 60004 | M131: -100^335 | N131: 1 | O131: 10000 | P131: 300 | Q131: 15000 | R131: 43 | S131: 41 | T131: 0.5 | U131: 500 | V131: 500 | W131: 60 | X131: 60003 | Y131: 5 | Z131: 3 | AA131: 0 | AB131: 0 | AC131: huojingling | AD131: 0 | AE131: 22^100 | AF131: 100 | AG131: 0 | AH131: 0 | AI131: 0 | AJ131: 100 | AK131: normalHit
A132: 60255 | B132: 火山蜘蛛-25 | C132: 1 | D132: 1 | E132: 1 | F132: 21 | G132: 1273 | H132: 108 | I132: 0 | J132: 0 | K132: 100 | L132: 0 | M132: -100^335 | N132: 0.6 | O132: 10000 | P132: 300 | Q132: 15000 | R132: 42 | S132: 40 | T132: 0.6 | U132: 500 | V132: 500 | W132: 80 | X132: 0 | Y132: 0 | Z132: 0 | AA132: 0 | AB132: 0 | AC132: huoshanzhizhu | AD132: 0 | AE132: 18^100 | AF132: 100 | AG132: 0 | AH132: 0 | AI132: 0 | AJ132: 100 | AK132: normalHit
A133: 60256 | B133: 蘑菇王-25 | C133: 1 | D133: 1 | E133: 1 | F133: 22 | G133: 1688 | H133: 0 | I133: 138 | J133: 0 | K133: 410 | L133: 60004 | M133: -100^335 | N133: 1.3 | O133: 10000 | P133: 300 | Q133: 15000 | R133: 51 | S133: 48 | T133: 0.5 | U133: 500 | V133: 500 | W133: 50 | X133: 50002^61018 | Y133: 16^0 | Z133: 1^0 | AA133: 0 | AB133: 0 | AC133: moguwang | AD133: 0 | AE133: 22^100 | AF133: 100 | AG133: 0 | AH133: 0 | AI133: 0 | AJ133: 100 | AK133: magicHit
A134: 60261 | B134: 岩浆蝎-26 | C134: 1 | D134: 1 | E134: 1 | F134: 21 | G134: 1532 | H134: 114 | I134: 0 | J134: 0 | K134: 100 | L134: 0 | M134: -100^335 | N134: 0.7 | O134: 10000 | P134: 300 | Q134: 15000 | R134: 44 | S134: 42 | T134: 0.5 | U134: 500 | V134: 500 | W134: 70 | X134: 0 | Y134: 0 | Z134: 0 | AA134: 0 | AB134: 0 | AC134: yanjiangxie | AD134: 0 | AE134: 22^100 | AF134: 100 | AG134: 0 | AH134: 0 | AI134: 0 | AJ134: 100 | AK134: normalHit
A135: 60262 | B135: 岩浆人-26 | C135: 1 | D135: 1 | E135: 1 | F135: 21 | G135: 1185 | H135: 0 | I135: 63 | J135: 0 | K135: 400 | L135: 60003 | M135: -100^335 | N135: 1.1 | O135: 10000 | P135: 300 | Q135: 15000 | R135: 43 | S135: 41 | T135: 0.35 | U135: 500 | V135: 500 | W135: 63 | X135: 0 | Y135: 0 | Z135: 0 | AA135: 0 | AB135: 0 | AC135: yanjiangren | AD135: 0 | AE135: 15^100 | AF135: 100 | AG135: 0 | AH135: 0 | AI135: 0 | AJ135: 100 | AK135: magicHit
A136: 60263 | B136: 岩浆战士-26 | C136: 1 | D136: 2 | E136: 2 | F136: 22 | G136: 1857 | H136: 152 | I136: 0 | J136: 0 | K136: 100 | L136: 0 | M136: -100^335 | N136: 0.6 | O136: 10000 | P136: 300 | Q136: 15000 | R136: 52 | S136: 49 | T136: 0.4 | U136: 500 | V136: 500 | W136: 80 | X136: 0 | Y136: 0 | Z136: 0 | AA136: 0 | AB136: 0 | AC136: yanjiangzhanshi | AD136: 0 | AE136: 22^100 | AF136: 100 | AG136: 0 | AH136: 0 | AI136: 0 | AJ136: 100 | AK136: normalHit
A137: 60264 | B137: 火精灵-26 | C137: 1 | D137: 1 | E137: 1 | F137: 21 | G137: 1637 | H137: 0 | I137: 63 | J137: 0 | K137: 425 | L137: 60004 | M137: -100^335 | N137: 1 | O137: 10000 | P137: 300 | Q137: 15000 | R137: 44 | S137: 42 | T137: 0.5 | U137: 500 | V137: 500 | W137: 60 | X137: 60003 | Y137: 5 | Z137: 3 | AA137: 0 | AB137: 0 | AC137: huojingling | AD137: 0 | AE137: 22^100 | AF137: 100 | AG137: 0 | AH137: 0 | AI137: 0 | AJ137: 100 | AK137: normalHit
A138: 60265 | B138: 火山蜘蛛-26 | C138: 1 | D138: 1 | E138: 1 | F138: 21 | G138: 1400 | H138: 119 | I138: 0 | J138: 0 | K138: 100 | L138: 0 | M138: -100^335 | N138: 0.6 | O138: 10000 | P138: 300 | Q138: 15000 | R138: 43 | S138: 41 | T138: 0.6 | U138: 500 | V138: 500 | W138: 80 | X138: 0 | Y138: 0 | Z138: 0 | AA138: 0 | AB138: 0 | AC138: huoshanzhizhu | AD138: 0 | AE138: 18^100 | AF138: 100 | AG138: 0 | AH138: 0 | AI138: 0 | AJ138: 100 | AK138: normalHit
A139: 60266 | B139: 蘑菇王-26 | C139: 1 | D139: 1 | E139: 1 | F139: 22 | G139: 1857 | H139: 0 | I139: 152 | J139: 0 | K139: 410 | L139: 60004 | M139: -100^335 | N139: 1.3 | O139: 10000 | P139: 300 | Q139: 15000 | R139: 52 | S139: 49 | T139: 0.5 | U139: 500 | V139: 500 | W139: 50 | X139: 50002^61018 | Y139: 16^0 | Z139: 1^0 | AA139: 0 | AB139: 0 | AC139: moguwang | AD139: 0 | AE139: 22^100 | AF139: 100 | AG139: 0 | AH139: 0 | AI139: 0 | AJ139: 100 | AK139: magicHit
A140: 60271 | B140: 岩浆蝎-27 | C140: 1 | D140: 1 | E140: 1 | F140: 21 | G140: 1685 | H140: 125 | I140: 0 | J140: 0 | K140: 100 | L140: 0 | M140: -100^335 | N140: 0.7 | O140: 10000 | P140: 300 | Q140: 15000 | R140: 45 | S140: 43 | T140: 0.5 | U140: 500 | V140: 500 | W140: 70 | X140: 0 | Y140: 0 | Z140: 0 | AA140: 0 | AB140: 0 | AC140: yanjiangxie | AD140: 0 | AE140: 22^100 | AF140: 100 | AG140: 0 | AH140: 0 | AI140: 0 | AJ140: 100 | AK140: normalHit
A141: 60272 | B141: 岩浆人-27 | C141: 1 | D141: 1 | E141: 1 | F141: 21 | G141: 1303 | H141: 0 | I141: 69 | J141: 0 | K141: 400 | L141: 60003 | M141: -100^335 | N141: 1.1 | O141: 10000 | P141: 300 | Q141: 15000 | R141: 44 | S141: 42 | T141: 0.35 | U141: 500 | V141: 500 | W141: 63 | X141: 0 | Y141: 0 | Z141: 0 | AA141: 0 | AB141: 0 | AC141: yanjiangren | AD141: 0 | AE141: 15^100 | AF141: 100 | AG141: 0 | AH141: 0 | AI141: 0 | AJ141: 100 | AK141: magicHit
A142: 60273 | B142: 岩浆战士-27 | C142: 1 | D142: 2 | E142: 2 | F142: 22 | G142: 2042 | H142: 167 | I142: 0 | J142: 0 | K142: 100 | L142: 0 | M142: -100^335 | N142: 0.6 | O142: 10000 | P142: 300 | Q142: 15000 | R142: 53 | S142: 50 | T142: 0.4 | U142: 500 | V142: 500 | W142: 80 | X142: 0 | Y142: 0 | Z142: 0 | AA142: 0 | AB142: 0 | AC142: yanjiangzhanshi | AD142: 0 | AE142: 22^100 | AF142: 100 | AG142: 0 | AH142: 0 | AI142: 0 | AJ142: 100 | AK142: normalHit
A143: 60274 | B143: 火精灵-27 | C143: 1 | D143: 1 | E143: 1 | F143: 21 | G143: 1800 | H143: 0 | I143: 70 | J143: 0 | K143: 425 | L143: 60004 | M143: -100^335 | N143: 1 | O143: 10000 | P143: 300 | Q143: 15000 | R143: 45 | S143: 43 | T143: 0.5 | U143: 500 | V143: 500 | W143: 60 | X143: 60003 | Y143: 5 | Z143: 3 | AA143: 0 | AB143: 0 | AC143: huojingling | AD143: 0 | AE143: 22^100 | AF143: 100 | AG143: 0 | AH143: 0 | AI143: 0 | AJ143: 100 | AK143: normalHit
A144: 60275 | B144: 火山蜘蛛-27 | C144: 1 | D144: 1 | E144: 1 | F144: 21 | G144: 1540 | H144: 131 | I144: 0 | J144: 0 | K144: 100 | L144: 0 | M144: -100^335 | N144: 0.6 | O144: 10000 | P144: 300 | Q144: 15000 | R144: 44 | S144: 42 | T144: 0.6 | U144: 500 | V144: 500 | W144: 80 | X144: 0 | Y144: 0 | Z144: 0 | AA144: 0 | AB144: 0 | AC144: huoshanzhizhu | AD144: 0 | AE144: 18^100 | AF144: 100 | AG144: 0 | AH144: 0 | AI144: 0 | AJ144: 100 | AK144: normalHit
A145: 60276 | B145: 蘑菇王-27 | C145: 1 | D145: 1 | E145: 1 | F145: 22 | G145: 2042 | H145: 0 | I145: 167 | J145: 0 | K145: 410 | L145: 60004 | M145: -100^335 | N145: 1.3 | O145: 10000 | P145: 300 | Q145: 15000 | R145: 53 | S145: 50 | T145: 0.5 | U145: 500 | V145: 500 | W145: 50 | X145: 50002^61018 | Y145: 15^0 | Z145: 1^0 | AA145: 0 | AB145: 0 | AC145: moguwang | AD145: 0 | AE145: 22^100 | AF145: 100 | AG145: 0 | AH145: 0 | AI145: 0 | AJ145: 100 | AK145: magicHit
A146: 60281 | B146: 岩浆蝎-28 | C146: 1 | D146: 1 | E146: 1 | F146: 21 | G146: 1853 | H146: 138 | I146: 0 | J146: 0 | K146: 100 | L146: 0 | M146: -100^335 | N146: 0.7 | O146: 10000 | P146: 300 | Q146: 15000 | R146: 47 | S146: 45 | T146: 0.5 | U146: 500 | V146: 500 | W146: 70 | X146: 0 | Y146: 0 | Z146: 0 | AA146: 0 | AB146: 0 | AC146: yanjiangxie | AD146: 0 | AE146: 22^100 | AF146: 100 | AG146: 0 | AH146: 0 | AI146: 0 | AJ146: 100 | AK146: normalHit
A147: 60282 | B147: 岩浆人-28 | C147: 1 | D147: 1 | E147: 1 | F147: 21 | G147: 1433 | H147: 0 | I147: 76 | J147: 0 | K147: 400 | L147: 60003 | M147: -100^335 | N147: 1.1 | O147: 10000 | P147: 300 | Q147: 15000 | R147: 46 | S147: 45 | T147: 0.35 | U147: 500 | V147: 500 | W147: 63 | X147: 0 | Y147: 0 | Z147: 0 | AA147: 0 | AB147: 0 | AC147: yanjiangren | AD147: 0 | AE147: 15^100 | AF147: 100 | AG147: 0 | AH147: 0 | AI147: 0 | AJ147: 100 | AK147: magicHit
A148: 60283 | B148: 岩浆战士-28 | C148: 1 | D148: 2 | E148: 2 | F148: 22 | G148: 2246 | H148: 184 | I148: 0 | J148: 0 | K148: 100 | L148: 0 | M148: -100^335 | N148: 0.6 | O148: 10000 | P148: 300 | Q148: 15000 | R148: 55 | S148: 51 | T148: 0.4 | U148: 500 | V148: 500 | W148: 80 | X148: 0 | Y148: 0 | Z148: 0 | AA148: 0 | AB148: 0 | AC148: yanjiangzhanshi | AD148: 0 | AE148: 22^100 | AF148: 100 | AG148: 0 | AH148: 0 | AI148: 0 | AJ148: 100 | AK148: normalHit
A149: 60284 | B149: 火精灵-28 | C149: 1 | D149: 1 | E149: 1 | F149: 21 | G149: 1980 | H149: 0 | I149: 77 | J149: 0 | K149: 425 | L149: 60004 | M149: -100^335 | N149: 1 | O149: 10000 | P149: 300 | Q149: 15000 | R149: 47 | S149: 45 | T149: 0.5 | U149: 500 | V149: 500 | W149: 60 | X149: 60003 | Y149: 5 | Z149: 3 | AA149: 0 | AB149: 0 | AC149: huojingling | AD149: 0 | AE149: 22^100 | AF149: 100 | AG149: 0 | AH149: 0 | AI149: 0 | AJ149: 100 | AK149: normalHit
A150: 60285 | B150: 火山蜘蛛-28 | C150: 1 | D150: 1 | E150: 1 | F150: 21 | G150: 1694 | H150: 144 | I150: 0 | J150: 0 | K150: 100 | L150: 0 | M150: -100^335 | N150: 0.6 | O150: 10000 | P150: 300 | Q150: 15000 | R150: 46 | S150: 44 | T150: 0.6 | U150: 500 | V150: 500 | W150: 80 | X150: 0 | Y150: 0 | Z150: 0 | AA150: 0 | AB150: 0 | AC150: huoshanzhizhu | AD150: 0 | AE150: 18^100 | AF150: 100 | AG150: 0 | AH150: 0 | AI150: 0 | AJ150: 100 | AK150: normalHit
A151: 60286 | B151: 蘑菇王-28 | C151: 1 | D151: 1 | E151: 1 | F151: 22 | G151: 2246 | H151: 0 | I151: 184 | J151: 0 | K151: 410 | L151: 60004 | M151: -100^335 | N151: 1.3 | O151: 10000 | P151: 300 | Q151: 15000 | R151: 55 | S151: 51 | T151: 0.5 | U151: 500 | V151: 500 | W151: 50 | X151: 50002^61018 | Y151: 15^0 | Z151: 1^0 | AA151: 0 | AB151: 0 | AC151: moguwang | AD151: 0 | AE151: 22^100 | AF151: 100 | AG151: 0 | AH151: 0 | AI151: 0 | AJ151: 100 | AK151: magicHit
A152: 60291 | B152: 岩浆蝎-29 | C152: 1 | D152: 1 | E152: 1 | F152: 21 | G152: 2038 | H152: 151 | I152: 0 | J152: 0 | K152: 100 | L152: 0 | M152: -100^335 | N152: 0.7 | O152: 10000 | P152: 300 | Q152: 15000 | R152: 49 | S152: 47 | T152: 0.5 | U152: 500 | V152: 500 | W152: 70 | X152: 0 | Y152: 0 | Z152: 0 | AA152: 0 | AB152: 0 | AC152: yanjiangxie | AD152: 0 | AE152: 22^100 | AF152: 100 | AG152: 0 | AH152: 0 | AI152: 0 | AJ152: 100 | AK152: normalHit
A153: 60292 | B153: 岩浆人-29 | C153: 1 | D153: 1 | E153: 1 | F153: 21 | G153: 1576 | H153: 0 | I153: 84 | J153: 0 | K153: 400 | L153: 60003 | M153: -100^335 | N153: 1.1 | O153: 10000 | P153: 300 | Q153: 15000 | R153: 48 | S153: 47 | T153: 0.35 | U153: 500 | V153: 500 | W153: 63 | X153: 0 | Y153: 0 | Z153: 0 | AA153: 0 | AB153: 0 | AC153: yanjiangren | AD153: 0 | AE153: 15^100 | AF153: 100 | AG153: 0 | AH153: 0 | AI153: 0 | AJ153: 100 | AK153: magicHit
A154: 60293 | B154: 岩浆战士-29 | C154: 1 | D154: 2 | E154: 2 | F154: 22 | G154: 2471 | H154: 202 | I154: 0 | J154: 0 | K154: 100 | L154: 0 | M154: -100^335 | N154: 0.6 | O154: 10000 | P154: 300 | Q154: 15000 | R154: 57 | S154: 53 | T154: 0.4 | U154: 500 | V154: 500 | W154: 80 | X154: 0 | Y154: 0 | Z154: 0 | AA154: 0 | AB154: 0 | AC154: yanjiangzhanshi | AD154: 0 | AE154: 22^100 | AF154: 100 | AG154: 0 | AH154: 0 | AI154: 0 | AJ154: 100 | AK154: normalHit
A155: 60294 | B155: 火精灵-29 | C155: 1 | D155: 1 | E155: 1 | F155: 21 | G155: 2178 | H155: 0 | I155: 84 | J155: 0 | K155: 425 | L155: 60004 | M155: -100^335 | N155: 1 | O155: 10000 | P155: 300 | Q155: 15000 | R155: 49 | S155: 47 | T155: 0.5 | U155: 500 | V155: 500 | W155: 60 | X155: 60003 | Y155: 5 | Z155: 3 | AA155: 0 | AB155: 0 | AC155: huojingling | AD155: 0 | AE155: 22^100 | AF155: 100 | AG155: 0 | AH155: 0 | AI155: 0 | AJ155: 100 | AK155: normalHit
A156: 60295 | B156: 火山蜘蛛-29 | C156: 1 | D156: 1 | E156: 1 | F156: 21 | G156: 1863 | H156: 158 | I156: 0 | J156: 0 | K156: 100 | L156: 0 | M156: -100^335 | N156: 0.6 | O156: 10000 | P156: 300 | Q156: 15000 | R156: 48 | S156: 46 | T156: 0.6 | U156: 500 | V156: 500 | W156: 80 | X156: 0 | Y156: 0 | Z156: 0 | AA156: 0 | AB156: 0 | AC156: huoshanzhizhu | AD156: 0 | AE156: 18^100 | AF156: 100 | AG156: 0 | AH156: 0 | AI156: 0 | AJ156: 100 | AK156: normalHit
A157: 60296 | B157: 蘑菇王-29 | C157: 1 | D157: 1 | E157: 1 | F157: 22 | G157: 2471 | H157: 0 | I157: 202 | J157: 0 | K157: 410 | L157: 60004 | M157: -100^335 | N157: 1.3 | O157: 10000 | P157: 300 | Q157: 15000 | R157: 57 | S157: 53 | T157: 0.5 | U157: 500 | V157: 500 | W157: 50 | X157: 50002^61018 | Y157: 15^0 | Z157: 1^0 | AA157: 0 | AB157: 0 | AC157: moguwang | AD157: 0 | AE157: 22^100 | AF157: 100 | AG157: 0 | AH157: 0 | AI157: 0 | AJ157: 100 | AK157: magicHit
A158: 60301 | B158: 岩浆蝎-30 | C158: 1 | D158: 1 | E158: 1 | F158: 21 | G158: 2293 | H158: 170 | I158: 0 | J158: 0 | K158: 100 | L158: 0 | M158: -100^335 | N158: 0.7 | O158: 10000 | P158: 300 | Q158: 15000 | R158: 52 | S158: 50 | T158: 0.5 | U158: 500 | V158: 500 | W158: 70 | X158: 0 | Y158: 0 | Z158: 0 | AA158: 0 | AB158: 0 | AC158: yanjiangxie | AD158: 0 | AE158: 22^100 | AF158: 100 | AG158: 0 | AH158: 0 | AI158: 0 | AJ158: 100 | AK158: normalHit
A159: 60302 | B159: 岩浆人-30 | C159: 1 | D159: 1 | E159: 1 | F159: 21 | G159: 1773 | H159: 0 | I159: 95 | J159: 0 | K159: 400 | L159: 60003 | M159: -100^335 | N159: 1.1 | O159: 10000 | P159: 300 | Q159: 15000 | R159: 51 | S159: 50 | T159: 0.35 | U159: 500 | V159: 500 | W159: 63 | X159: 0 | Y159: 0 | Z159: 0 | AA159: 0 | AB159: 0 | AC159: yanjiangren | AD159: 0 | AE159: 15^100 | AF159: 100 | AG159: 0 | AH159: 0 | AI159: 0 | AJ159: 100 | AK159: magicHit
A160: 60303 | B160: 岩浆战士-30 | C160: 1 | D160: 2 | E160: 2 | F160: 22 | G160: 2779 | H160: 227 | I160: 0 | J160: 0 | K160: 100 | L160: 0 | M160: -100^335 | N160: 0.6 | O160: 10000 | P160: 300 | Q160: 15000 | R160: 60 | S160: 55 | T160: 0.4 | U160: 500 | V160: 500 | W160: 80 | X160: 0 | Y160: 0 | Z160: 0 | AA160: 0 | AB160: 0 | AC160: yanjiangzhanshi | AD160: 0 | AE160: 22^100 | AF160: 100 | AG160: 0 | AH160: 0 | AI160: 0 | AJ160: 100 | AK160: normalHit
A161: 60304 | B161: 火精灵-30 | C161: 1 | D161: 1 | E161: 1 | F161: 21 | G161: 2450 | H161: 0 | I161: 95 | J161: 0 | K161: 425 | L161: 60004 | M161: -100^335 | N161: 1 | O161: 10000 | P161: 300 | Q161: 15000 | R161: 52 | S161: 50 | T161: 0.5 | U161: 500 | V161: 500 | W161: 60 | X161: 60003 | Y161: 5 | Z161: 3 | AA161: 0 | AB161: 0 | AC161: huojingling | AD161: 0 | AE161: 22^100 | AF161: 100 | AG161: 0 | AH161: 0 | AI161: 0 | AJ161: 100 | AK161: normalHit
A162: 60305 | B162: 火山蜘蛛-30 | C162: 1 | D162: 1 | E162: 1 | F162: 21 | G162: 2096 | H162: 178 | I162: 0 | J162: 0 | K162: 100 | L162: 0 | M162: -100^335 | N162: 0.6 | O162: 10000 | P162: 300 | Q162: 15000 | R162: 51 | S162: 50 | T162: 0.6 | U162: 500 | V162: 500 | W162: 80 | X162: 0 | Y162: 0 | Z162: 0 | AA162: 0 | AB162: 0 | AC162: huoshanzhizhu | AD162: 0 | AE162: 18^100 | AF162: 100 | AG162: 0 | AH162: 0 | AI162: 0 | AJ162: 100 | AK162: normalHit
A163: 60306 | B163: 岩浆巨兽-30 | C163: 1 | D163: 1 | E163: 1 | F163: 23 | G163: 23335 | H163: 0 | I163: 148 | J163: 0 | K163: 450 | L163: 60007 | M163: -100^335 | N163: 1.25 | O163: 10000 | P163: 300 | Q163: 15000 | R163: 65 | S163: 60 | T163: 0.5 | U163: 500 | V163: 500 | W163: 60 | X163: 60013^61018 | Y163: 15^0 | Z163: 3^0 | AA163: 0 | AB163: 0 | AC163: yanjiangjushou | AD163: 0 | AE163: 56^100 | AF163: 100 | AG163: 0 | AH163: 0 | AI163: 0 | AJ163: 130 | AK163: normalHit
A164: 60307 | B164: 蘑菇王-30 | C164: 1 | D164: 1 | E164: 1 | F164: 22 | G164: 2779 | H164: 0 | I164: 227 | J164: 0 | K164: 410 | L164: 60004 | M164: -100^335 | N164: 1.3 | O164: 10000 | P164: 300 | Q164: 15000 | R164: 60 | S164: 55 | T164: 0.5 | U164: 500 | V164: 500 | W164: 50 | X164: 50002^61018 | Y164: 15^0 | Z164: 1^0 | AA164: 0 | AB164: 0 | AC164: moguwang | AD164: 0 | AE164: 22^100 | AF164: 100 | AG164: 0 | AH164: 0 | AI164: 0 | AJ164: 100 | AK164: magicHit
A165: 60311 | B165: 树精-31 | C165: 1 | D165: 1 | E165: 1 | F165: 21 | G165: 2522 | H165: 187 | I165: 0 | J165: 0 | K165: 100 | L165: 0 | M165: -100^335 | N165: 0.7 | O165: 10000 | P165: 300 | Q165: 15000 | R165: 54 | S165: 53 | T165: 0.5 | U165: 500 | V165: 500 | W165: 85 | X165: 0 | Y165: 0 | Z165: 0 | AA165: 0 | AB165: 0 | AC165: shujing | AD165: 0 | AE165: 22^100 | AF165: 100 | AG165: 0 | AH165: 0 | AI165: 0 | AJ165: 100 | AK165: normalHit
A166: 60312 | B166: 毒蜘蛛-31 | C166: 1 | D166: 1 | E166: 1 | F166: 21 | G166: 1950 | H166: 0 | I166: 104 | J166: 0 | K166: 400 | L166: 60001 | M166: -100^335 | N166: 1.2 | O166: 10000 | P166: 300 | Q166: 15000 | R166: 53 | S166: 52 | T166: 0.5 | U166: 500 | V166: 500 | W166: 40 | X166: 0 | Y166: 0 | Z166: 0 | AA166: 0 | AB166: 0 | AC166: duzhizhu | AD166: 0 | AE166: 18^100 | AF166: 100 | AG166: 0 | AH166: 0 | AI166: 0 | AJ166: 100 | AK166: magicHit
A167: 60313 | B167: 哥布林-31 | C167: 1 | D167: 2 | E167: 2 | F167: 22 | G167: 3057 | H167: 250 | I167: 0 | J167: 0 | K167: 100 | L167: 0 | M167: -100^335 | N167: 0.6 | O167: 10000 | P167: 300 | Q167: 15000 | R167: 62 | S167: 57 | T167: 0.4 | U167: 500 | V167: 500 | W167: 70 | X167: 0 | Y167: 0 | Z167: 0 | AA167: 0 | AB167: 0 | AC167: gebulin | AD167: 0 | AE167: 32^100 | AF167: 100 | AG167: 0 | AH167: 0 | AI167: 0 | AJ167: 100 | AK167: normalHit
A168: 60314 | B168: 木精灵-31 | C168: 1 | D168: 1 | E168: 1 | F168: 21 | G168: 2695 | H168: 0 | I168: 104 | J168: 0 | K168: 425 | L168: 60004 | M168: -100^335 | N168: 1 | O168: 10000 | P168: 300 | Q168: 15000 | R168: 54 | S168: 53 | T168: 0.5 | U168: 500 | V168: 500 | W168: 65 | X168: 60006 | Y168: 5 | Z168: 3 | AA168: 0 | AB168: 0 | AC168: mujingling | AD168: 0 | AE168: 22^100 | AF168: 100 | AG168: 0 | AH168: 0 | AI168: 0 | AJ168: 100 | AK168: magicHit
A169: 60315 | B169: 森林蜘蛛-31 | C169: 1 | D169: 1 | E169: 1 | F169: 21 | G169: 2305 | H169: 196 | I169: 0 | J169: 0 | K169: 100 | L169: 0 | M169: -100^335 | N169: 0.6 | O169: 10000 | P169: 300 | Q169: 15000 | R169: 53 | S169: 52 | T169: 0.6 | U169: 500 | V169: 500 | W169: 100 | X169: 0 | Y169: 0 | Z169: 0 | AA169: 0 | AB169: 0 | AC169: senlinzhizhu | AD169: 0 | AE169: 18^100 | AF169: 100 | AG169: 0 | AH169: 0 | AI169: 0 | AJ169: 100 | AK169: normalHit
A170: 60316 | B170: 黑暗法师-31 | C170: 1 | D170: 1 | E170: 1 | F170: 22 | G170: 3057 | H170: 0 | I170: 250 | J170: 0 | K170: 410 | L170: 60004 | M170: -100^335 | N170: 1.3 | O170: 10000 | P170: 300 | Q170: 15000 | R170: 62 | S170: 57 | T170: 0.5 | U170: 500 | V170: 500 | W170: 50 | X170: 61020 | Y170: 20 | Z170: 1 | AA170: 0 | AB170: 0 | AC170: heianfashi | AD170: 0 | AE170: 22^100 | AF170: 100 | AG170: 0 | AH170: 0 | AI170: 0 | AJ170: 100 | AK170: magicHit
A171: 60321 | B171: 树精-32 | C171: 1 | D171: 1 | E171: 1 | F171: 21 | G171: 2774 | H171: 206 | I171: 0 | J171: 0 | K171: 100 | L171: 0 | M171: -100^335 | N171: 0.7 | O171: 10000 | P171: 300 | Q171: 15000 | R171: 56 | S171: 55 | T171: 0.5 | U171: 500 | V171: 500 | W171: 85 | X171: 0 | Y171: 0 | Z171: 0 | AA171: 0 | AB171: 0 | AC171: shujing | AD171: 0 | AE171: 22^100 | AF171: 100 | AG171: 0 | AH171: 0 | AI171: 0 | AJ171: 100 | AK171: normalHit
A172: 60322 | B172: 毒蜘蛛-32 | C172: 1 | D172: 1 | E172: 1 | F172: 21 | G172: 2145 | H172: 0 | I172: 114 | J172: 0 | K172: 400 | L172: 60001 | M172: -100^335 | N172: 1.2 | O172: 10000 | P172: 300 | Q172: 15000 | R172: 55 | S172: 54 | T172: 0.5 | U172: 500 | V172: 500 | W172: 40 | X172: 0 | Y172: 0 | Z172: 0 | AA172: 0 | AB172: 0 | AC172: duzhizhu | AD172: 0 | AE172: 18^100 | AF172: 100 | AG172: 0 | AH172: 0 | AI172: 0 | AJ172: 100 | AK172: magicHit
A173: 60323 | B173: 哥布林-32 | C173: 1 | D173: 2 | E173: 2 | F173: 22 | G173: 3362 | H173: 275 | I173: 0 | J173: 0 | K173: 100 | L173: 0 | M173: -100^335 | N173: 0.6 | O173: 10000 | P173: 300 | Q173: 15000 | R173: 64 | S173: 59 | T173: 0.4 | U173: 500 | V173: 500 | W173: 70 | X173: 0 | Y173: 0 | Z173: 0 | AA173: 0 | AB173: 0 | AC173: gebulin | AD173: 0 | AE173: 32^100 | AF173: 100 | AG173: 0 | AH173: 0 | AI173: 0 | AJ173: 100 | AK173: normalHit
A174: 60324 | B174: 木精灵-32 | C174: 1 | D174: 1 | E174: 1 | F174: 21 | G174: 2965 | H174: 0 | I174: 115 | J174: 0 | K174: 425 | L174: 60004 | M174: -100^335 | N174: 1 | O174: 10000 | P174: 300 | Q174: 15000 | R174: 56 | S174: 55 | T174: 0.5 | U174: 500 | V174: 500 | W174: 65 | X174: 60006 | Y174: 5 | Z174: 3 | AA174: 0 | AB174: 0 | AC174: mujingling | AD174: 0 | AE174: 22^100 | AF174: 100 | AG174: 0 | AH174: 0 | AI174: 0 | AJ174: 100 | AK174: magicHit
A175: 60325 | B175: 森林蜘蛛-32 | C175: 1 | D175: 1 | E175: 1 | F175: 21 | G175: 2536 | H175: 215 | I175: 0 | J175: 0 | K175: 100 | L175: 0 | M175: -100^335 | N175: 0.6 | O175: 10000 | P175: 300 | Q175: 15000 | R175: 55 | S175: 54 | T175: 0.6 | U175: 500 | V175: 500 | W175: 100 | X175: 0 | Y175: 0 | Z175: 0 | AA175: 0 | AB175: 0 | AC175: senlinzhizhu | AD175: 0 | AE175: 18^100 | AF175: 100 | AG175: 0 | AH175: 0 | AI175: 0 | AJ175: 100 | AK175: normalHit
A176: 60326 | B176: 黑暗法师-32 | C176: 1 | D176: 1 | E176: 1 | F176: 22 | G176: 3362 | H176: 0 | I176: 275 | J176: 0 | K176: 410 | L176: 60004 | M176: -100^335 | N176: 1.3 | O176: 10000 | P176: 300 | Q176: 15000 | R176: 64 | S176: 59 | T176: 0.5 | U176: 500 | V176: 500 | W176: 50 | X176: 61020 | Y176: 20 | Z176: 1 | AA176: 0 | AB176: 0 | AC176: heianfashi | AD176: 0 | AE176: 22^100 | AF176: 100 | AG176: 0 | AH176: 0 | AI176: 0 | AJ176: 100 | AK176: magicHit
A177: 60331 | B177: 树精-33 | C177: 1 | D177: 1 | E177: 1 | F177: 21 | G177: 3051 | H177: 226 | I177: 0 | J177: 0 | K177: 100 | L177: 0 | M177: -100^335 | N177: 0.7 | O177: 10000 | P177: 300 | Q177: 15000 | R177: 58 | S177: 57 | T177: 0.5 | U177: 500 | V177: 500 | W177: 85 | X177: 0 | Y177: 0 | Z177: 0 | AA177: 0 | AB177: 0 | AC177: shujing | AD177: 0 | AE177: 22^100 | AF177: 100 | AG177: 0 | AH177: 0 | AI177: 0 | AJ177: 100 | AK177: normalHit
A178: 60332 | B178: 孢子人-33 | C178: 1 | D178: 1 | E178: 1 | F178: 21 | G178: 2360 | H178: 0 | I178: 126 | J178: 0 | K178: 400 | L178: 60004 | M178: -100^335 | N178: 1.3 | O178: 10000 | P178: 300 | Q178: 15000 | R178: 57 | S178: 56 | T178: 0.5 | U178: 500 | V178: 500 | W178: 50 | X178: 61000 | Y178: 10 | Z178: 3 | AA178: 0 | AB178: 0 | AC178: baoziren | AD178: 0 | AE178: 22^100 | AF178: 100 | AG178: 0 | AH178: 0 | AI178: 0 | AJ178: 100 | AK178: magicHit
A179: 60333 | B179: 哥布林-33 | C179: 1 | D179: 2 | E179: 2 | F179: 22 | G179: 3362 | H179: 302 | I179: 0 | J179: 0 | K179: 100 | L179: 0 | M179: -100^335 | N179: 0.6 | O179: 10000 | P179: 300 | Q179: 15000 | R179: 66 | S179: 61 | T179: 0.4 | U179: 500 | V179: 500 | W179: 70 | X179: 0 | Y179: 0 | Z179: 0 | AA179: 0 | AB179: 0 | AC179: gebulin | AD179: 0 | AE179: 32^100 | AF179: 100 | AG179: 0 | AH179: 0 | AI179: 0 | AJ179: 100 | AK179: normalHit
A180: 60334 | B180: 木精灵-33 | C180: 1 | D180: 1 | E180: 1 | F180: 21 | G180: 2965 | H180: 0 | I180: 126 | J180: 0 | K180: 425 | L180: 60004 | M180: -100^335 | N180: 1 | O180: 10000 | P180: 300 | Q180: 15000 | R180: 58 | S180: 56 | T180: 0.5 | U180: 500 | V180: 500 | W180: 65 | X180: 60006 | Y180: 5 | Z180: 3 | AA180: 0 | AB180: 0 | AC180: mujingling | AD180: 0 | AE180: 22^100 | AF180: 100 | AG180: 0 | AH180: 0 | AI180: 0 | AJ180: 100 | AK180: magicHit
A181: 60335 | B181: 森林蜘蛛-33 | C181: 1 | D181: 1 | E181: 1 | F181: 21 | G181: 2536 | H181: 237 | I181: 0 | J181: 0 | K181: 100 | L181: 0 | M181: -100^335 | N181: 0.6 | O181: 10000 | P181: 300 | Q181: 15000 | R181: 57 | S181: 56 | T181: 0.6 | U181: 500 | V181: 500 | W181: 100 | X181: 0 | Y181: 0 | Z181: 0 | AA181: 0 | AB181: 0 | AC181: senlinzhizhu | AD181: 0 | AE181: 18^100 | AF181: 100 | AG181: 0 | AH181: 0 | AI181: 0 | AJ181: 100 | AK181: normalHit
A182: 60336 | B182: 召唤孢子-33 | C182: 1 | D182: 1 | E182: 1 | F182: 24 | G182: 1360 | H182: 0 | I182: 80 | J182: 0 | K182: 100 | L182: 0 | M182: -100^335 | N182: 0.4 | O182: 10000 | P182: 300 | Q182: 15000 | R182: 57 | S182: 56 | T182: 0.5 | U182: 500 | V182: 500 | W182: 100 | X182: 0 | Y182: 0 | Z182: 0 | AA182: 0 | AB182: 0 | AC182: baoya | AD182: 0 | AE182: 11^100 | AF182: 100 | AG182: 0 | AH182: 0 | AI182: 0 | AJ182: 100 | AK182: normalHit
A183: 60337 | B183: 黑暗法师-33 | C183: 1 | D183: 1 | E183: 1 | F183: 22 | G183: 3362 | H183: 0 | I183: 302 | J183: 0 | K183: 410 | L183: 60004 | M183: -100^335 | N183: 1.3 | O183: 10000 | P183: 300 | Q183: 15000 | R183: 66 | S183: 61 | T183: 0.5 | U183: 500 | V183: 500 | W183: 50 | X183: 61020 | Y183: 20 | Z183: 1 | AA183: 0 | AB183: 0 | AC183: heianfashi | AD183: 0 | AE183: 22^100 | AF183: 100 | AG183: 0 | AH183: 0 | AI183: 0 | AJ183: 100 | AK183: magicHit
A184: 60341 | B184: 树精-34 | C184: 1 | D184: 1 | E184: 1 | F184: 21 | G184: 3356 | H184: 249 | I184: 0 | J184: 0 | K184: 100 | L184: 0 | M184: -100^335 | N184: 0.7 | O184: 10000 | P184: 300 | Q184: 15000 | R184: 60 | S184: 59 | T184: 0.5 | U184: 500 | V184: 500 | W184: 85 | X184: 0 | Y184: 0 | Z184: 0 | AA184: 0 | AB184: 0 | AC184: shujing | AD184: 0 | AE184: 22^100 | AF184: 100 | AG184: 0 | AH184: 0 | AI184: 0 | AJ184: 100 | AK184: normalHit
A185: 60342 | B185: 孢子人-34 | C185: 1 | D185: 1 | E185: 1 | F185: 21 | G185: 2596 | H185: 0 | I185: 138 | J185: 0 | K185: 400 | L185: 60004 | M185: -100^335 | N185: 1.3 | O185: 10000 | P185: 300 | Q185: 15000 | R185: 59 | S185: 58 | T185: 0.5 | U185: 500 | V185: 500 | W185: 50 | X185: 61001 | Y185: 10 | Z185: 3 | AA185: 0 | AB185: 0 | AC185: baoziren | AD185: 0 | AE185: 22^100 | AF185: 100 | AG185: 0 | AH185: 0 | AI185: 0 | AJ185: 100 | AK185: magicHit
A186: 60343 | B186: 哥布林-34 | C186: 1 | D186: 2 | E186: 2 | F186: 22 | G186: 3698 | H186: 332 | I186: 0 | J186: 0 | K186: 100 | L186: 0 | M186: -100^335 | N186: 0.6 | O186: 10000 | P186: 300 | Q186: 15000 | R186: 68 | S186: 63 | T186: 0.4 | U186: 500 | V186: 500 | W186: 70 | X186: 0 | Y186: 0 | Z186: 0 | AA186: 0 | AB186: 0 | AC186: gebulin | AD186: 0 | AE186: 32^100 | AF186: 100 | AG186: 0 | AH186: 0 | AI186: 0 | AJ186: 100 | AK186: normalHit
A187: 60344 | B187: 木精灵-34 | C187: 1 | D187: 1 | E187: 1 | F187: 21 | G187: 3261 | H187: 0 | I187: 139 | J187: 0 | K187: 425 | L187: 60004 | M187: -100^335 | N187: 1 | O187: 10000 | P187: 300 | Q187: 15000 | R187: 60 | S187: 58 | T187: 0.5 | U187: 500 | V187: 500 | W187: 65 | X187: 60006 | Y187: 5 | Z187: 3 | AA187: 0 | AB187: 0 | AC187: mujingling | AD187: 0 | AE187: 22^100 | AF187: 100 | AG187: 0 | AH187: 0 | AI187: 0 | AJ187: 100 | AK187: magicHit
A188: 60345 | B188: 森林蜘蛛-34 | C188: 1 | D188: 1 | E188: 1 | F188: 21 | G188: 2789 | H188: 260 | I188: 0 | J188: 0 | K188: 100 | L188: 0 | M188: -100^335 | N188: 0.6 | O188: 10000 | P188: 300 | Q188: 15000 | R188: 59 | S188: 58 | T188: 0.6 | U188: 500 | V188: 500 | W188: 100 | X188: 0 | Y188: 0 | Z188: 0 | AA188: 0 | AB188: 0 | AC188: senlinzhizhu | AD188: 0 | AE188: 18^100 | AF188: 100 | AG188: 0 | AH188: 0 | AI188: 0 | AJ188: 100 | AK188: normalHit
A189: 60346 | B189: 召唤孢子-34 | C189: 1 | D189: 1 | E189: 1 | F189: 24 | G189: 1360 | H189: 0 | I189: 80 | J189: 0 | K189: 100 | L189: 0 | M189: -100^335 | N189: 0.4 | O189: 10000 | P189: 300 | Q189: 15000 | R189: 59 | S189: 58 | T189: 0.5 | U189: 500 | V189: 500 | W189: 100 | X189: 0 | Y189: 0 | Z189: 0 | AA189: 0 | AB189: 0 | AC189: baoya | AD189: 0 | AE189: 11^100 | AF189: 100 | AG189: 0 | AH189: 0 | AI189: 0 | AJ189: 100 | AK189: normalHit
A190: 60347 | B190: 黑暗法师-34 | C190: 1 | D190: 1 | E190: 1 | F190: 22 | G190: 3698 | H190: 0 | I190: 332 | J190: 0 | K190: 410 | L190: 60004 | M190: -100^335 | N190: 1.3 | O190: 10000 | P190: 300 | Q190: 15000 | R190: 68 | S190: 63 | T190: 0.5 | U190: 500 | V190: 500 | W190: 50 | X190: 61020 | Y190: 20 | Z190: 1 | AA190: 0 | AB190: 0 | AC190: heianfashi | AD190: 0 | AE190: 22^100 | AF190: 100 | AG190: 0 | AH190: 0 | AI190: 0 | AJ190: 100 | AK190: magicHit
A191: 60351 | B191: 树精-35 | C191: 1 | D191: 1 | E191: 1 | F191: 21 | G191: 4027 | H191: 298 | I191: 0 | J191: 0 | K191: 100 | L191: 0 | M191: -100^335 | N191: 0.7 | O191: 10000 | P191: 300 | Q191: 15000 | R191: 63 | S191: 62 | T191: 0.5 | U191: 500 | V191: 500 | W191: 85 | X191: 0 | Y191: 0 | Z191: 0 | AA191: 0 | AB191: 0 | AC191: shujing | AD191: 0 | AE191: 22^100 | AF191: 100 | AG191: 0 | AH191: 0 | AI191: 0 | AJ191: 100 | AK191: normalHit
A192: 60352 | B192: 孢子人-35 | C192: 1 | D192: 1 | E192: 1 | F192: 21 | G192: 3115 | H192: 0 | I192: 166 | J192: 0 | K192: 400 | L192: 60004 | M192: -100^335 | N192: 1.3 | O192: 10000 | P192: 300 | Q192: 15000 | R192: 62 | S192: 61 | T192: 0.5 | U192: 500 | V192: 500 | W192: 50 | X192: 61002 | Y192: 10 | Z192: 3 | AA192: 0 | AB192: 0 | AC192: baoziren | AD192: 0 | AE192: 22^100 | AF192: 100 | AG192: 0 | AH192: 0 | AI192: 0 | AJ192: 100 | AK192: magicHit
A193: 60353 | B193: 哥布林-35 | C193: 1 | D193: 2 | E193: 2 | F193: 22 | G193: 4438 | H193: 398 | I193: 0 | J193: 0 | K193: 100 | L193: 0 | M193: -100^335 | N193: 0.6 | O193: 10000 | P193: 300 | Q193: 15000 | R193: 71 | S193: 66 | T193: 0.4 | U193: 500 | V193: 500 | W193: 70 | X193: 0 | Y193: 0 | Z193: 0 | AA193: 0 | AB193: 0 | AC193: gebulin | AD193: 0 | AE193: 32^100 | AF193: 100 | AG193: 0 | AH193: 0 | AI193: 0 | AJ193: 100 | AK193: normalHit
A194: 60354 | B194: 木精灵-35 | C194: 1 | D194: 1 | E194: 1 | F194: 21 | G194: 3913 | H194: 0 | I194: 166 | J194: 0 | K194: 425 | L194: 60004 | M194: -100^335 | N194: 1 | O194: 10000 | P194: 300 | Q194: 15000 | R194: 63 | S194: 62 | T194: 0.5 | U194: 500 | V194: 500 | W194: 65 | X194: 60006 | Y194: 5 | Z194: 3 | AA194: 0 | AB194: 0 | AC194: mujingling | AD194: 0 | AE194: 22^100 | AF194: 100 | AG194: 0 | AH194: 0 | AI194: 0 | AJ194: 100 | AK194: magicHit
A195: 60355 | B195: 森林蜘蛛-35 | C195: 1 | D195: 1 | E195: 1 | F195: 21 | G195: 3347 | H195: 312 | I195: 0 | J195: 0 | K195: 100 | L195: 0 | M195: -100^335 | N195: 0.6 | O195: 10000 | P195: 300 | Q195: 15000 | R195: 62 | S195: 61 | T195: 0.6 | U195: 500 | V195: 500 | W195: 100 | X195: 0 | Y195: 0 | Z195: 0 | AA195: 0 | AB195: 0 | AC195: senlinzhizhu | AD195: 0 | AE195: 18^100 | AF195: 100 | AG195: 0 | AH195: 0 | AI195: 0 | AJ195: 100 | AK195: normalHit
A196: 60356 | B196: 森林巨兽-35 | C196: 1 | D196: 1 | E196: 1 | F196: 23 | G196: 35325 | H196: 478 | I196: 0 | J196: 0 | K196: 100 | L196: 0 | M196: -100^335 | N196: 1.3 | O196: 10000 | P196: 300 | Q196: 15000 | R196: 85 | S196: 70 | T196: 0.5 | U196: 500 | V196: 500 | W196: 50 | X196: 60008^61018 | Y196: 15^0 | Z196: 5^0 | AA196: 0 | AB196: 0 | AC196: senlinjushou | AD196: 0 | AE196: 56^100 | AF196: 100 | AG196: 0 | AH196: 0 | AI196: 0 | AJ196: 130 | AK196: normalHit
A197: 60357 | B197: 召唤孢子-35 | C197: 1 | D197: 1 | E197: 1 | F197: 24 | G197: 1500 | H197: 0 | I197: 100 | J197: 0 | K197: 100 | L197: 0 | M197: -100^335 | N197: 0.4 | O197: 10000 | P197: 300 | Q197: 15000 | R197: 59 | S197: 58 | T197: 0.5 | U197: 500 | V197: 500 | W197: 100 | X197: 0 | Y197: 0 | Z197: 0 | AA197: 0 | AB197: 0 | AC197: baoya | AD197: 0 | AE197: 11^100 | AF197: 100 | AG197: 0 | AH197: 0 | AI197: 0 | AJ197: 100 | AK197: normalHit
A198: 60358 | B198: 树精-35 | C198: 1 | D198: 1 | E198: 1 | F198: 24 | G198: 4429 | H198: 328 | I198: 0 | J198: 0 | K198: 100 | L198: 0 | M198: -100^335 | N198: 0.7 | O198: 10000 | P198: 300 | Q198: 15000 | R198: 63 | S198: 62 | T198: 0.5 | U198: 500 | V198: 500 | W198: 85 | X198: 0 | Y198: 0 | Z198: 0 | AA198: 0 | AB198: 0 | AC198: shujing | AD198: 0 | AE198: 18^100 | AF198: 100 | AG198: 0 | AH198: 0 | AI198: 0 | AJ198: 100 | AK198: normalHit
A199: 60359 | B199: 黑暗法师-35 | C199: 1 | D199: 1 | E199: 1 | F199: 22 | G199: 4438 | H199: 0 | I199: 398 | J199: 0 | K199: 410 | L199: 60004 | M199: -100^335 | N199: 1.3 | O199: 10000 | P199: 300 | Q199: 15000 | R199: 71 | S199: 66 | T199: 0.5 | U199: 500 | V199: 500 | W199: 50 | X199: 61020 | Y199: 20 | Z199: 1 | AA199: 0 | AB199: 0 | AC199: heianfashi | AD199: 0 | AE199: 22^100 | AF199: 100 | AG199: 0 | AH199: 0 | AI199: 0 | AJ199: 100 | AK199: magicHit
A200: 60361 | B200: 树精-36 | C200: 1 | D200: 1 | E200: 1 | F200: 21 | G200: 4429 | H200: 328 | I200: 0 | J200: 0 | K200: 100 | L200: 0 | M200: -100^335 | N200: 0.7 | O200: 10000 | P200: 300 | Q200: 15000 | R200: 65 | S200: 64 | T200: 0.5 | U200: 500 | V200: 500 | W200: 85 | X200: 0 | Y200: 0 | Z200: 0 | AA200: 0 | AB200: 0 | AC200: shujing | AD200: 0 | AE200: 22^100 | AF200: 100 | AG200: 0 | AH200: 0 | AI200: 0 | AJ200: 100 | AK200: normalHit
... 551 more rows

Sheet 调试
A1: ID[csknu] | B1: name[ct] | C1: profession[cn] | D1: quality[csn] | E1: qualityType[cn] | F1: type[csn] | G1: HP[cn] | I1: attack[cn] | K1: spellAttack[cn] | N1: spellAttack[cn] | P1: realAttack[cn]
A2: ID区间(6-8w) | B2: 名称 | C2: 职业类型 | D2: 品阶 | E2: 品质 | F2: 类型 | G2: 血量 | I2: 攻击力 | K2: 法术攻击力 | N2: 法术攻击力 | P2: 真实攻击力
A3: 60011 | B3: 树精-1 | C3: 1 | D3: 1 | E3: 1 | F3: 21 | G3: 192 | H3: =FLOOR(G3*2,1) -> 384 | I3: 17 | J3: =FLOOR(I3*2,1) -> 34 | K3: 0 | L3: =FLOOR(K3*2,1) -> 0 | M3: =FLOOR(K3*0.3,1) -> 0 | N3: 0 | O3: =FLOOR(N3*0.17,1) -> 0 | P3: 0 | Q3: 0.65 | R3: =FLOOR(G3*Q3,1) -> 124
A4: 60021 | B4: 树精-2 | C4: 1 | D4: 1 | E4: 1 | F4: 21 | G4: 199 | H4: =FLOOR(G4*2,1) -> 398 | I4: 18 | J4: 36 | K4: 0 | L4: =FLOOR(K4*2,1) -> 0 | M4: =FLOOR(K4*0.3,1) -> 0 | N4: 0 | O4: =FLOOR(N4*0.17,1) -> 0 | P4: 0 | Q4: 0.65 | R4: =FLOOR(G4*Q4,1) -> 129
A5: 60022 | B5: 毒蜘蛛-2 | C5: 2 | D5: 1 | E5: 1 | F5: 21 | G5: 182 | H5: 364 | I5: 0 | J5: 0 | K5: 10 | L5: =FLOOR(K5*2,1) -> 20 | M5: 3 | N5: 60 | O5: 10 | P5: 0 | Q5: 0.65 | R5: 118
A6: 60031 | B6: 树精-3 | C6: 1 | D6: 1 | E6: 1 | F6: 21 | G6: 210 | H6: 420 | I6: 19 | J6: 38 | K6: 0 | L6: =FLOOR(K6*2,1) -> 0 | M6: 0 | N6: 0 | O6: 0 | P6: 0 | Q6: 0.65 | R6: 136
A7: 60032 | B7: 毒蜘蛛-3 | C7: 1 | D7: 1 | E7: 1 | F7: 21 | G7: 177 | H7: 354 | I7: 0 | J7: 0 | K7: 11 | L7: =FLOOR(K7*2,1) -> 22 | M7: 3 | N7: 66 | O7: 11 | P7: 0 | Q7: 0.65 | R7: 115
A8: 60033 | B8: 哥布林-3 | C8: 1 | D8: 2 | E8: 2 | F8: 22 | G8: 575 | H8: 1150 | I8: 23 | J8: 46 | K8: 0 | L8: =FLOOR(K8*2,1) -> 0 | M8: 0 | N8: 0 | O8: 0 | P8: 0 | Q8: 0.65 | R8: 373
A9: 60041 | B9: 树精-4 | C9: 1 | D9: 1 | E9: 1 | F9: 21 | G9: 222 | H9: 444 | I9: 21 | J9: 42 | K9: 0 | L9: =FLOOR(K9*2,1) -> 0 | M9: 0 | N9: 0 | O9: 0 | P9: 0 | Q9: 0.65 | R9: 144
A10: 60042 | B10: 毒蜘蛛-4 | C10: 1 | D10: 1 | E10: 1 | F10: 21 | G10: 187 | H10: 374 | I10: 0 | J10: 0 | K10: 11 | L10: =FLOOR(K10*2,1) -> 22 | M10: 3 | N10: 69 | O10: 11 | P10: 0 | Q10: 0.65 | R10: 121
A11: 60043 | B11: 哥布林-4 | C11: 1 | D11: 2 | E11: 2 | F11: 22 | G11: 675 | H11: 1350 | I11: 26 | J11: 52 | K11: 0 | L11: =FLOOR(K11*2,1) -> 0 | M11: 0 | N11: 0 | O11: 0 | P11: 0 | Q11: 0.65 | R11: 438
A12: 60051 | B12: 树精-5 | C12: 1 | D12: 1 | E12: 1 | F12: 21 | G12: 237 | H12: 474 | I12: 22 | J12: 44 | K12: 0 | L12: =FLOOR(K12*2,1) -> 0 | M12: 0 | N12: 0 | O12: 0 | P12: 0 | Q12: 0.65 | R12: 154 | V12: 7001 | W12: 218
A13: 60052 | B13: 毒蜘蛛-5 | C13: 1 | D13: 1 | E13: 1 | F13: 21 | G13: 202 | H13: 404 | I13: 0 | J13: 0 | K13: 12 | L13: =FLOOR(K13*2,1) -> 24 | M13: 3 | N13: 72 | O13: 12 | P13: 0 | Q13: 0.65 | R13: 131 | V13: 8751 | W13: 273
A14: 60053 | B14: 哥布林-5 | C14: 1 | D14: 2 | E14: 2 | F14: 22 | G14: 735 | H14: 1470 | I14: 29 | J14: 58 | K14: 0 | L14: =FLOOR(K14*2,1) -> 0 | M14: 0 | N14: 0 | O14: 0 | P14: 0 | Q14: 0.65 | R14: 477 | V14: 10501 | W14: 328
A15: 60054 | B15: 血厚树精-5 | C15: 1 | D15: 1 | E15: 1 | F15: 21 | G15: 1077 | H15: 2154 | I15: 22 | J15: 44 | K15: 0 | L15: =FLOOR(K15*2,1) -> 0 | M15: 0 | N15: 0 | O15: 0 | P15: 0 | Q15: 0.65 | R15: 700 | V15: 12251 | W15: 383
A16: 60061 | B16: 树精-6 | C16: 1 | D16: 1 | E16: 1 | F16: 21 | G16: 261 | H16: 522 | I16: 24 | J16: 48 | K16: 0 | L16: =FLOOR(K16*2,1) -> 0 | M16: 0 | N16: 0 | O16: 0 | P16: 0 | Q16: 0.65 | R16: 169 | V16: 14001 | W16: 438
A17: 60062 | B17: 毒蜘蛛-6 | C17: 1 | D17: 1 | E17: 1 | F17: 21 | G17: 222 | H17: 444 | I17: 0 | J17: 0 | K17: 13 | L17: =FLOOR(K17*2,1) -> 26 | M17: 3 | N17: 79 | O17: 13 | P17: =K17*1.1 -> 14.3 | Q17: 0.65 | R17: 144 | V17: 15751 | W17: 493
A18: 60063 | B18: 哥布林-6 | C18: 1 | D18: 2 | E18: 2 | F18: 22 | G18: 795 | H18: 1590 | I18: 32 | J18: 64 | K18: 0 | L18: =FLOOR(K18*2,1) -> 0 | M18: 0 | N18: 0 | O18: 0 | P18: 0 | Q18: 0.65 | R18: 516
A19: 60064 | B19: 血厚树精-6 | C19: 1 | D19: 1 | E19: 1 | F19: 21 | G19: 1305 | H19: 2610 | I19: 24 | J19: 48 | K19: 0 | L19: =FLOOR(K19*2,1) -> 0 | M19: 0 | N19: 0 | O19: 0 | P19: 0 | Q19: 0.65 | R19: 848
A20: 60071 | B20: 树精-7 | C20: 1 | D20: 1 | E20: 1 | F20: 21 | G20: 287 | H20: 574 | I20: 26 | J20: 52 | K20: 0 | L20: =FLOOR(K20*2,1) -> 0 | M20: 0 | N20: 0 | O20: 0 | P20: 0 | Q20: 0.65 | R20: 186
A21: 60072 | B21: 毒蜘蛛-7 | C21: 1 | D21: 1 | E21: 1 | F21: 21 | G21: 244 | H21: 488 | I21: 0 | J21: 0 | K21: 14 | L21: =FLOOR(K21*2,1) -> 28 | M21: 4 | N21: 85 | O21: 14 | P21: 0 | Q21: 0.65 | R21: 158
A22: 60073 | B22: 哥布林-7 | C22: 1 | D22: 2 | E22: 2 | F22: 22 | G22: 855 | H22: 1710 | I22: 35 | J22: 70 | K22: 0 | L22: =FLOOR(K22*2,1) -> 0 | M22: 0 | N22: 0 | O22: 0 | P22: 0 | Q22: 0.65 | R22: 555 | V22: 8811 | W22: 470
A23: 60074 | B23: 血厚树精-7 | C23: 1 | D23: 1 | E23: 1 | F23: 21 | G23: 1835 | H23: 3670 | I23: 26 | J23: 52 | K23: 0 | L23: =FLOOR(K23*2,1) -> 0 | M23: 0 | N23: 0 | O23: 0 | P23: 0 | Q23: 0.65 | R23: 1192 | V23: 9692 | W23: 517
A24: 60081 | B24: 树精-8 | C24: 1 | D24: 1 | E24: 1 | F24: 21 | G24: 314 | H24: 628 | I24: 28 | J24: 56 | K24: 0 | L24: =FLOOR(K24*2,1) -> 0 | M24: 0 | N24: 0 | O24: 0 | P24: 0 | Q24: 0.65 | R24: 204 | V24: 10573 | W24: 564
A25: 60082 | B25: 毒蜘蛛-8 | C25: 1 | D25: 1 | E25: 1 | F25: 21 | G25: 267 | H25: 534 | I25: 0 | J25: 0 | K25: 15 | L25: =FLOOR(K25*2,1) -> 30 | M25: 4 | N25: 92 | O25: 15 | P25: 0 | Q25: 0.65 | R25: 173 | V25: 11454 | W25: 611
A26: 60083 | B26: 哥布林-8 | C26: 1 | D26: 2 | E26: 2 | F26: 22 | G26: 895 | H26: 1790 | I26: 37 | J26: 74 | K26: 0 | L26: =FLOOR(K26*2,1) -> 0 | M26: 0 | N26: 0 | O26: 0 | P26: 0 | Q26: 0.65 | R26: 581 | V26: 12335 | W26: 658
A27: 60084 | B27: 木精灵-8 | C27: 1 | D27: 1 | E27: 1 | F27: 21 | G27: 367 | H27: 734 | I27: 0 | J27: 0 | K27: 15 | L27: =FLOOR(K27*2,1) -> 30 | M27: 4 | N27: 94 | O27: 15 | P27: 0 | Q27: 0.65 | R27: 238 | V27: 13216 | W27: 705
A28: 60091 | B28: 树精-9 | C28: 1 | D28: 1 | E28: 1 | F28: 21 | G28: 343 | H28: 686 | I28: 30 | J28: 60 | K28: 0 | L28: =FLOOR(K28*2,1) -> 0 | M28: 0 | N28: 0 | O28: 0 | P28: 0 | Q28: 0.65 | R28: 222
A29: 60092 | B29: 毒蜘蛛-9 | C29: 1 | D29: 1 | E29: 1 | F29: 21 | G29: 289 | H29: 578 | I29: 0 | J29: 0 | K29: 16 | L29: =FLOOR(K29*2,1) -> 32 | M29: 4 | N29: 98 | O29: 16 | P29: =K29*1.1 -> 17.6 | Q29: 0.65 | R29: 187
A30: 60093 | B30: 哥布林-9 | C30: 1 | D30: 2 | E30: 2 | F30: 22 | G30: 995 | H30: 1990 | I30: 39 | J30: 78 | K30: 0 | L30: =FLOOR(K30*2,1) -> 0 | M30: 0 | N30: 0 | O30: 0 | P30: 0 | Q30: 0.65 | R30: 646 | V30: 12174
A31: 60094 | B31: 木精灵-9 | C31: 1 | D31: 1 | E31: 1 | F31: 21 | G31: 398 | H31: 796 | I31: 0 | J31: 0 | K31: 16 | L31: =FLOOR(K31*2,1) -> 32 | M31: 4 | N31: 99 | O31: 16 | P31: 0 | Q31: 0.65 | R31: 258 | V31: 13391
A32: 60101 | B32: 树精-10 | C32: 1 | D32: 1 | E32: 1 | F32: 21 | G32: 374 | H32: 748 | I32: 33 | J32: 66 | K32: 0 | L32: =FLOOR(K32*2,1) -> 0 | M32: 0 | N32: 0 | O32: 0 | P32: 0 | Q32: 0.65 | R32: 243 | V32: 14730
A33: 60102 | B33: 毒蜘蛛-10 | C33: 1 | D33: 1 | E33: 1 | F33: 21 | G33: 317 | H33: 634 | I33: 0 | J33: 0 | K33: 17 | L33: =FLOOR(K33*2,1) -> 34 | M33: 5 | N33: 105 | O33: 17 | P33: 0 | Q33: 0.65 | R33: 206 | V33: 15987
A34: 60103 | B34: 哥布林-10 | C34: 1 | D34: 2 | E34: 2 | F34: 22 | G34: 1231 | H34: 2462 | I34: 42 | J34: 84 | K34: 0 | L34: =FLOOR(K34*2,1) -> 0 | M34: 0 | N34: 0 | O34: 0 | P34: 0 | Q34: 0.65 | R34: 800 | V34: 17265
A35: 60104 | B35: 木精灵-9 | C35: 1 | D35: 1 | E35: 1 | F35: 21 | G35: 435 | H35: 870 | I35: 0 | J35: 0 | K35: 18 | L35: =FLOOR(K35*2,1) -> 36 | M35: 5 | N35: 107 | O35: 18 | P35: 0 | Q35: 0.65 | R35: 282 | V35: 18543
A36: 60105 | B36: 森林巨兽-10 | C36: 1 | D36: 1 | E36: 1 | F36: 23 | G36: 5233 | H36: 10466 | I36: 53 | J36: 106 | K36: 0 | L36: =FLOOR(K36*2,1) -> 0 | M36: 0 | N36: 0 | O36: 0 | P36: 0 | Q36: 0.65 | R36: 3401 | V36: 19821
A37: 60106 | B37: 毒蜘蛛-10 | C37: 1 | D37: 1 | E37: 1 | F37: 24 | G37: 317 | H37: 634 | I37: 0 | J37: 0 | K37: 17 | L37: =FLOOR(K37*2,1) -> 34 | M37: 5 | N37: 0 | O37: 0 | P37: 0 | Q37: 0.65 | R37: 206 | V37: 21099
A38: 60111 | B38: 雪怪-11 | C38: 1 | D38: 1 | E38: 1 | F38: 21 | G38: 426 | H38: 852 | I38: 35 | J38: 70 | K38: 0 | L38: =FLOOR(K38*2,1) -> 0 | M38: 0 | N38: 110 | O38: 18 | P38: 0 | Q38: 0.65 | R38: 276 | V38: 22377
A39: 60112 | B39: 独角兽-11 | C39: 1 | D39: 1 | E39: 1 | F39: 21 | G39: 333 | H39: 666 | I39: 0 | J39: 0 | K39: 18 | L39: =FLOOR(K39*2,1) -> 36 | M39: 5 | N39: 0 | O39: 0 | P39: 0 | Q39: 0.65 | R39: 216 | V39: 23655
A40: 60113 | B40: 雪原熊-11 | C40: 1 | D40: 2 | E40: 2 | F40: 22 | G40: 517 | H40: 1034 | I40: 45 | J40: 90 | K40: 0 | L40: =FLOOR(K40*2,1) -> 0 | M40: 0 | N40: 112 | O40: 19 | P40: 0 | Q40: 0.65 | R40: 336 | V40: 24933
A41: 60114 | B41: 木精灵-11 | C41: 1 | D41: 1 | E41: 1 | F41: 21 | G41: 457 | H41: 914 | I41: 0 | J41: 0 | K41: 19 | L41: =FLOOR(K41*2,1) -> 38 | M41: 5 | N41: 0 | O41: 0 | P41: 0 | Q41: 0.65 | R41: 297 | V41: 26211
A42: 60121 | B42: 雪怪-12 | C42: 1 | D42: 1 | E42: 1 | F42: 21 | G42: 447 | H42: 894 | I42: 36 | J42: 72 | K42: 0 | L42: =FLOOR(K42*2,1) -> 0 | M42: 0 | N42: 116 | O42: 19 | P42: 0 | Q42: 0.65 | R42: 290 | V42: 27489
A43: 60122 | B43: 独角兽-12 | C43: 1 | D43: 1 | E43: 1 | F43: 21 | G43: 349 | H43: 698 | I43: 0 | J43: 0 | K43: 19 | L43: =FLOOR(K43*2,1) -> 38 | M43: 5 | N43: 0 | O43: 0 | P43: 0 | Q43: 0.65 | R43: 226 | V43: 28767
A44: 60123 | B44: 雪原熊-12 | C44: 1 | D44: 2 | E44: 2 | F44: 22 | G44: 543 | H44: 1086 | I44: 47 | J44: 94 | K44: 0 | L44: =FLOOR(K44*2,1) -> 0 | M44: 0 | N44: 117 | O44: 19 | P44: 0 | Q44: 0.65 | R44: 352 | V44: 30045
A45: 60124 | B45: 木精灵-12 | C45: 1 | D45: 1 | E45: 1 | F45: 21 | G45: 479 | H45: 958 | I45: 0 | J45: 0 | K45: 19 | L45: =FLOOR(K45*2,1) -> 38 | M45: 5 | N45: 0 | O45: 0 | P45: 0 | Q45: 0.65 | R45: 311 | V45: 31323
A46: 60131 | B46: 雪怪-13 | C46: 1 | D46: 1 | E46: 1 | F46: 21 | G46: 469 | H46: 938 | I46: 38 | J46: 76 | K46: 0 | L46: =FLOOR(K46*2,1) -> 0 | M46: 0 | N46: 121 | O46: 20 | P46: 0 | Q46: 0.65 | R46: 304
A47: 60132 | B47: 独角兽-13 | C47: 1 | D47: 1 | E47: 1 | F47: 21 | G47: 366 | H47: 732 | I47: 0 | J47: 0 | K47: 20 | L47: =FLOOR(K47*2,1) -> 40 | M47: 6 | N47: 0 | O47: 0 | P47: 0 | Q47: 0.65 | R47: 237
A48: 60133 | B48: 雪原熊-13 | C48: 1 | D48: 2 | E48: 2 | F48: 22 | G48: 570 | H48: 1140 | I48: 49 | J48: 98 | K48: 0 | L48: =FLOOR(K48*2,1) -> 0 | M48: 0 | N48: 122 | O48: 20 | P48: 0 | Q48: 0.65 | R48: 370
A49: 60134 | B49: 木精灵-13 | C49: 1 | D49: 1 | E49: 1 | F49: 21 | G49: 503 | H49: 1006 | I49: 0 | J49: 0 | K49: 20 | L49: =FLOOR(K49*2,1) -> 40 | M49: 6 | N49: 0 | O49: 0 | P49: 0 | Q49: 0.65 | R49: 326
A50: 60141 | B50: 雪怪-14 | C50: 1 | D50: 1 | E50: 1 | F50: 21 | G50: 492 | H50: 984 | I50: 40 | J50: 80 | K50: 0 | L50: =FLOOR(K50*2,1) -> 0 | M50: 0 | N50: 127 | O50: 21 | P50: 0 | Q50: 0.65 | R50: 319
A51: 60142 | B51: 独角兽-14 | C51: 1 | D51: 1 | E51: 1 | F51: 21 | G51: 384 | H51: 768 | I51: 0 | J51: 0 | K51: 21 | L51: =FLOOR(K51*2,1) -> 42 | M51: 6 | N51: 0 | O51: 0 | P51: 0 | Q51: 0.65 | R51: 249
A52: 60143 | B52: 雪原熊-14 | C52: 1 | D52: 2 | E52: 2 | F52: 22 | G52: 598 | H52: 1196 | I52: 51 | J52: 102 | K52: 0 | L52: =FLOOR(K52*2,1) -> 0 | M52: 0 | N52: 128 | O52: 21 | P52: 0 | Q52: 0.65 | R52: 388
A53: 60144 | B53: 木精灵-14 | C53: 1 | D53: 1 | E53: 1 | F53: 21 | G53: 528 | H53: 1056 | I53: 0 | J53: 0 | K53: 21 | L53: =FLOOR(K53*2,1) -> 42 | M53: 6 | N53: 0 | O53: 0 | P53: 0 | Q53: 0.65 | R53: 343
A54: 60151 | B54: 雪怪-15 | C54: 1 | D54: 1 | E54: 1 | F54: 21 | G54: 541 | H54: 1082 | I54: 44 | J54: 88 | K54: 0 | L54: =FLOOR(K54*2,1) -> 0 | M54: 0 | N54: 139 | O54: 23 | P54: 0 | Q54: 0.65 | R54: 351
A55: 60152 | B55: 独角兽-15 | C55: 1 | D55: 1 | E55: 1 | F55: 21 | G55: 422 | H55: 844 | I55: 0 | J55: 0 | K55: 23 | L55: =FLOOR(K55*2,1) -> 46 | M55: 6 | N55: 0 | O55: 0 | P55: 0 | Q55: 0.65 | R55: 274
A56: 60153 | B56: 雪原熊-15 | C56: 1 | D56: 2 | E56: 2 | F56: 22 | G56: 658 | H56: 1316 | I56: 56 | J56: 112 | K56: 0 | L56: =FLOOR(K56*2,1) -> 0 | M56: 0 | N56: 140 | O56: 23 | P56: 0 | Q56: 0.65 | R56: 427
A57: 60154 | B57: 木精灵-15 | C57: 1 | D57: 1 | E57: 1 | F57: 21 | G57: 580 | H57: 1160 | I57: 0 | J57: 0 | K57: 23 | L57: =FLOOR(K57*2,1) -> 46 | M57: 6 | N57: 0 | O57: 0 | P57: 0 | Q57: 0.65 | R57: 377
A58: 60155 | B58: 蘑菇精英-15 | C58: 1 | D58: 1 | E58: 1 | F58: 21 | G58: 658 | H58: 1316 | I58: 0 | J58: 0 | K58: 46 | L58: =FLOOR(K58*2,1) -> 92 | M58: 13 | N58: 153 | O58: 26 | P58: 0 | Q58: 0.65 | R58: 427
A59: 60161 | B59: 雪怪-16 | C59: 1 | D59: 1 | E59: 1 | F59: 21 | G59: 595 | H59: 1190 | I59: 48 | J59: 96 | K59: 0 | L59: =FLOOR(K59*2,1) -> 0 | M59: 0 | N59: 0 | O59: 0 | P59: 0 | Q59: 0.65 | R59: 386
A60: 60162 | B60: 独角兽-16 | C60: 1 | D60: 1 | E60: 1 | F60: 21 | G60: 464 | H60: 928 | I60: 0 | J60: 0 | K60: 26 | L60: =FLOOR(K60*2,1) -> 52 | M60: 7 | N60: 154 | O60: 26 | P60: 0 | Q60: 0.65 | R60: 301
A61: 60163 | B61: 雪原熊-16 | C61: 1 | D61: 2 | E61: 2 | F61: 22 | G61: 723 | H61: 1446 | I61: 62 | J61: 124 | K61: 0 | L61: =FLOOR(K61*2,1) -> 0 | M61: 0 | N61: 0 | O61: 0 | P61: 0 | Q61: 0.65 | R61: 469
A62: 60164 | B62: 木精灵-16 | C62: 1 | D62: 1 | E62: 1 | F62: 21 | G62: 638 | H62: 1276 | I62: 0 | J62: 0 | K62: 26 | L62: =FLOOR(K62*2,1) -> 52 | M62: 7 | N62: 166 | O62: 28 | P62: 0 | Q62: 0.65 | R62: 414
A63: 60165 | B63: 蘑菇精英-15 | C63: 1 | D63: 1 | E63: 1 | F63: 21 | G63: 723 | H63: 1446 | I63: 0 | J63: 0 | K63: 62 | L63: =FLOOR(K63*2,1) -> 124 | M63: 18 | N63: 0 | O63: 0 | P63: 0 | Q63: 0.65 | R63: 469
A64: 60171 | B64: 雪怪-17 | C64: 1 | D64: 1 | E64: 1 | F64: 21 | G64: 654 | H64: 1308 | I64: 52 | J64: 104 | K64: 0 | L64: =FLOOR(K64*2,1) -> 0 | M64: 0 | N64: 168 | O64: 28 | P64: 0 | Q64: 0.65 | R64: 425
A65: 60172 | B65: 独角兽-17 | C65: 1 | D65: 1 | E65: 1 | F65: 21 | G65: 510 | H65: 1020 | I65: 0 | J65: 0 | K65: 28 | L65: =FLOOR(K65*2,1) -> 56 | M65: 8 | N65: 0 | O65: 0 | P65: 0 | Q65: 0.65 | R65: 331
A66: 60173 | B66: 雪原熊-17 | C66: 1 | D66: 2 | E66: 2 | F66: 22 | G66: 795 | H66: 1590 | I66: 67 | J66: 134 | K66: 0 | L66: =FLOOR(K66*2,1) -> 0 | M66: 0 | N66: 183 | O66: 31 | P66: 0 | Q66: 0.65 | R66: 516
A67: 60174 | B67: 木精灵-17 | C67: 1 | D67: 1 | E67: 1 | F67: 21 | G67: 700 | H67: 1400 | I67: 0 | J67: 0 | K67: 28 | L67: =FLOOR(K67*2,1) -> 56 | M67: 8 | N67: 0 | O67: 0 | P67: 0 | Q67: 0.65 | R67: 455
A68: 60181 | B68: 雪怪-18 | C68: 1 | D68: 1 | E68: 1 | F68: 21 | G68: 719 | H68: =FLOOR(G68*2,1) -> 1438 | I68: 54 | J68: 108 | K68: 0 | L68: =FLOOR(K68*2,1) -> 0 | M68: =FLOOR(K68*0.3,1) -> 0 | N68: 184 | O68: =FLOOR(N68*0.17,1) -> 31 | P68: 0 | Q68: 0.65 | R68: =FLOOR(G68*Q68,1) -> 467
A69: 60182 | B69: 独角兽-18 | C69: 1 | D69: 1 | E69: 1 | F69: 21 | G69: 561 | H69: 1122 | I69: 0 | J69: 0 | K69: 31 | L69: =FLOOR(K69*2,1) -> 62 | M69: 9 | N69: 0 | O69: 0 | P69: 0 | Q69: 0.65 | R69: 364
A70: 60183 | B70: 雪原熊-18 | C70: 1 | D70: 2 | E70: 2 | F70: 22 | G70: 875 | H70: 1750 | I70: 74 | J70: 148 | K70: 0 | L70: =FLOOR(K70*2,1) -> 0 | M70: 0 | N70: 0 | O70: 0 | P70: 0 | Q70: 0.65 | R70: 568
A71: 60184 | B71: 木精灵-18 | C71: 1 | D71: 1 | E71: 1 | F71: 21 | G71: 770 | H71: 1540 | I71: 0 | J71: 0 | K71: 31 | L71: =FLOOR(K71*2,1) -> 62 | M71: 9 | N71: 201 | O71: 34 | P71: 0 | Q71: 0.65 | R71: 500
A72: 60185 | B72: 雪山蜘蛛-18 | C72: 1 | D72: 1 | E72: 1 | F72: 21 | G72: 723 | H72: 1446 | I72: 58 | J72: 116 | K72: 0 | L72: =FLOOR(K72*2,1) -> 0 | M72: 0 | N72: 0 | O72: 0 | P72: 0 | Q72: 0.65 | R72: 469
A73: 60191 | B73: 雪怪-19 | C73: 1 | D73: 1 | E73: 1 | F73: 21 | G73: 791 | H73: 1582 | I73: 60 | J73: 120 | K73: 0 | L73: =FLOOR(K73*2,1) -> 0 | M73: 0 | N73: 202 | O73: 34 | P73: 0 | Q73: 0.65 | R73: 514
A74: 60192 | B74: 独角兽-19 | C74: 1 | D74: 1 | E74: 1 | F74: 21 | G74: 617 | H74: 1234 | I74: 0 | J74: 0 | K74: 34 | L74: =FLOOR(K74*2,1) -> 68 | M74: 10 | N74: 0 | O74: 0 | P74: 0 | Q74: 0.65 | R74: 401
A75: 60193 | B75: 雪原熊-19 | C75: 1 | D75: 2 | E75: 2 | F75: 22 | G75: 962 | H75: 1924 | I75: 81 | J75: 162 | K75: 0 | L75: =FLOOR(K75*2,1) -> 0 | M75: 0 | N75: 0 | O75: 0 | P75: 0 | Q75: 0.65 | R75: 625
A76: 60194 | B76: 木精灵-19 | C76: 1 | D76: 1 | E76: 1 | F76: 21 | G76: 847 | H76: 1694 | I76: 0 | J76: 0 | K76: 34 | L76: =FLOOR(K76*2,1) -> 68 | M76: 10 | N76: 221 | O76: 37 | P76: 0 | Q76: 0.65 | R76: 550
A77: 60195 | B77: 雪山蜘蛛-19 | C77: 1 | D77: 1 | E77: 1 | F77: 21 | G77: 795 | H77: 1590 | I77: 64 | J77: 128 | K77: 0 | L77: =FLOOR(K77*2,1) -> 0 | M77: 0 | N77: 0 | O77: 0 | P77: 0 | Q77: 0.65 | R77: 516
A78: 60201 | B78: 雪怪-20 | C78: 1 | D78: 1 | E78: 1 | F78: 21 | G78: 870 | H78: 1740 | I78: 66 | J78: 132 | K78: 0 | L78: =FLOOR(K78*2,1) -> 0 | M78: 0 | N78: 222 | O78: 37 | P78: 0 | Q78: 0.65 | R78: 565
A79: 60202 | B79: 独角兽-20 | C79: 1 | D79: 1 | E79: 1 | F79: 21 | G79: 679 | H79: 1358 | I79: 0 | J79: 0 | K79: 37 | L79: =FLOOR(K79*2,1) -> 74 | M79: 11 | N79: 0 | O79: 0 | P79: 0 | Q79: 0.65 | R79: 441
A80: 60203 | B80: 雪原熊-20 | C80: 1 | D80: 2 | E80: 2 | F80: 22 | G80: 1058 | H80: 2116 | I80: 89 | J80: 178 | K80: 0 | L80: =FLOOR(K80*2,1) -> 0 | M80: 0 | N80: 0 | O80: 0 | P80: 0 | Q80: 0.65 | R80: 687
A81: 60204 | B81: 木精灵-20 | C81: 1 | D81: 1 | E81: 1 | F81: 21 | G81: 932 | H81: 1864 | I81: 0 | J81: 0 | K81: 37 | L81: =FLOOR(K81*2,1) -> 74 | M81: 11 | N81: 0 | O81: 0 | P81: 0 | Q81: 0.65 | R81: 605
A82: 60205 | B82: 雪山蜘蛛-20 | C82: 1 | D82: 1 | E82: 1 | F82: 21 | G82: 875 | H82: 1750 | I82: 70 | J82: 140 | K82: 0 | L82: =FLOOR(K82*2,1) -> 0 | M82: 0 | N82: 233 | O82: 39 | P82: 0 | Q82: 0.65 | R82: 568
A83: 60206 | B83: 冰霜巨人-20 | C83: 1 | D83: 1 | E83: 1 | F83: 23 | G83: 5356 | H83: 10712 | I83: 98 | J83: 196 | K83: 0 | L83: =FLOOR(K83*2,1) -> 0 | M83: 0 | N83: 0 | O83: 0 | P83: 0 | Q83: 0.65 | R83: 3481
A84: 60211 | B84: 岩浆蝎-21 | C84: 1 | D84: 1 | E84: 1 | F84: 21 | G84: 952 | H84: 1904 | I84: 71 | J84: 142 | K84: 0 | L84: =FLOOR(K84*2,1) -> 0 | M84: 0 | N84: 234 | O84: 39 | P84: 0 | Q84: 0.65 | R84: 618
A85: 60212 | B85: 岩浆人-21 | C85: 1 | D85: 1 | E85: 1 | F85: 21 | G85: 736 | H85: 1472 | I85: 0 | J85: 0 | K85: 39 | L85: =FLOOR(K85*2,1) -> 78 | M85: 11 | N85: 0 | O85: 0 | P85: 0 | Q85: 0.65 | R85: 478
A86: 60213 | B86: 岩浆战士-21 | C86: 1 | D86: 2 | E86: 2 | F86: 22 | G86: 1154 | H86: 2308 | I86: 95 | J86: 190 | K86: 0 | L86: =FLOOR(K86*2,1) -> 0 | M86: 0 | N86: 0 | O86: 0 | P86: 0 | Q86: 0.65 | R86: 750
A87: 60214 | B87: 火精灵-21 | C87: 1 | D87: 1 | E87: 1 | F87: 21 | G87: 1017 | H87: 2034 | I87: 0 | J87: 0 | K87: 39 | L87: =FLOOR(K87*2,1) -> 78 | M87: 11 | N87: 256 | O87: 43 | P87: 0 | Q87: 0.65 | R87: 661
A88: 60215 | B88: 火山蜘蛛-21 | C88: 1 | D88: 1 | E88: 1 | F88: 21 | G88: 957 | H88: 1914 | I88: 74 | J88: 148 | K88: 0 | L88: =FLOOR(K88*2,1) -> 0 | M88: 0 | N88: 0 | O88: 0 | P88: 0 | Q88: 0.65 | R88: 622
A89: 60221 | B89: 岩浆蝎-22 | C89: 1 | D89: 1 | E89: 1 | F89: 21 | G89: 1047 | H89: 2094 | I89: 78 | J89: 156 | K89: 0 | L89: =FLOOR(K89*2,1) -> 0 | M89: 0 | N89: 257 | O89: 43 | P89: 0 | Q89: 0.65 | R89: 680
A90: 60222 | B90: 岩浆人-22 | C90: 1 | D90: 1 | E90: 1 | F90: 21 | G90: 810 | H90: 1620 | I90: 0 | J90: 0 | K90: 43 | L90: =FLOOR(K90*2,1) -> 86 | M90: 12 | N90: 0 | O90: 0 | P90: 0 | Q90: 0.65 | R90: 526
A91: 60223 | B91: 岩浆战士-22 | C91: 1 | D91: 2 | E91: 2 | F91: 22 | G91: 1269 | H91: 2538 | I91: 104 | J91: 208 | K91: 0 | L91: =FLOOR(K91*2,1) -> 0 | M91: 0 | N91: 0 | O91: 0 | P91: 0 | Q91: 0.65 | R91: 824
A92: 60224 | B92: 火精灵-22 | C92: 1 | D92: 1 | E92: 1 | F92: 21 | G92: 1119 | H92: 2238 | I92: 0 | J92: 0 | K92: 43 | L92: =FLOOR(K92*2,1) -> 86 | M92: 12 | N92: 281 | O92: 47 | P92: 0 | Q92: 0.65 | R92: 727
A93: 60225 | B93: 火山蜘蛛-22 | C93: 1 | D93: 1 | E93: 1 | F93: 21 | G93: 1053 | H93: 2106 | I93: 81 | J93: 162 | K93: 0 | L93: =FLOOR(K93*2,1) -> 0 | M93: 0 | N93: 0 | O93: 0 | P93: 0 | Q93: 0.65 | R93: 684
A94: 60231 | B94: 岩浆蝎-23 | C94: 1 | D94: 1 | E94: 1 | F94: 21 | G94: 1151 | H94: 2302 | I94: 86 | J94: 172 | K94: 0 | L94: =FLOOR(K94*2,1) -> 0 | M94: 0 | N94: 282 | O94: 47 | P94: 0 | Q94: 0.65 | R94: 748
A95: 60232 | B95: 岩浆人-23 | C95: 1 | D95: 1 | E95: 1 | F95: 21 | G95: 891 | H95: 1782 | I95: 0 | J95: 0 | K95: 47 | L95: =FLOOR(K95*2,1) -> 94 | M95: 14 | N95: 0 | O95: 0 | P95: 0 | Q95: 0.65 | R95: 579
A96: 60233 | B96: 岩浆战士-23 | C96: 1 | D96: 2 | E96: 2 | F96: 22 | G96: 1395 | H96: 2790 | I96: 114 | J96: 228 | K96: 0 | L96: =FLOOR(K96*2,1) -> 0 | M96: 0 | N96: 0 | O96: 0 | P96: 0 | Q96: 0.65 | R96: 906
A97: 60234 | B97: 火精灵-23 | C97: 1 | D97: 1 | E97: 1 | F97: 21 | G97: 1230 | H97: 2460 | I97: 0 | J97: 0 | K97: 47 | L97: =FLOOR(K97*2,1) -> 94 | M97: 14 | N97: 309 | O97: 52 | P97: 0 | Q97: 0.65 | R97: 799
A98: 60235 | B98: 火山蜘蛛-23 | C98: 1 | D98: 1 | E98: 1 | F98: 21 | G98: 1158 | H98: 2316 | I98: 90 | J98: 180 | K98: 0 | L98: =FLOOR(K98*2,1) -> 0 | M98: 0 | N98: 0 | O98: 0 | P98: 0 | Q98: 0.65 | R98: 752
A99: 60241 | B99: 岩浆蝎-24 | C99: 1 | D99: 1 | E99: 1 | F99: 21 | G99: 1266 | H99: 2532 | I99: 94 | J99: 188 | K99: 0 | L99: =FLOOR(K99*2,1) -> 0 | M99: 0 | N99: 310 | O99: 52 | P99: 0 | Q99: 0.65 | R99: 822
A100: 60242 | B100: 岩浆人-24 | C100: 1 | D100: 1 | E100: 1 | F100: 21 | G100: 980 | H100: 1960 | I100: 0 | J100: 0 | K100: 52 | L100: =FLOOR(K100*2,1) -> 104 | M100: 15 | N100: 0 | O100: 0 | P100: 0 | Q100: 0.65 | R100: 637
A101: 60243 | B101: 岩浆战士-24 | C101: 1 | D101: 2 | E101: 2 | F101: 22 | G101: 1535 | H101: 3070 | I101: 126 | J101: 252 | K101: 0 | L101: =FLOOR(K101*2,1) -> 0 | M101: 0 | N101: 0 | O101: 0 | P101: 0 | Q101: 0.65 | R101: 997
A102: 60244 | B102: 火精灵-24 | C102: 1 | D102: 1 | E102: 1 | F102: 21 | G102: 1353 | H102: 2706 | I102: 0 | J102: 0 | K102: 52 | L102: =FLOOR(K102*2,1) -> 104 | M102: 15 | N102: 340 | O102: 57 | P102: 0 | Q102: 0.65 | R102: 879
A103: 60245 | B103: 火山蜘蛛-24 | C103: 1 | D103: 1 | E103: 1 | F103: 21 | G103: 1273 | H103: 2546 | I103: 99 | J103: 198 | K103: 0 | L103: =FLOOR(K103*2,1) -> 0 | M103: 0 | N103: 0 | O103: 0 | P103: 0 | Q103: 0.65 | R103: 827
A104: 60251 | B104: 岩浆蝎-25 | C104: 1 | D104: 1 | E104: 1 | F104: 21 | G104: 1393 | H104: 2786 | I104: 104 | J104: 208 | K104: 0 | L104: =FLOOR(K104*2,1) -> 0 | M104: 0 | N104: 341 | O104: 57 | P104: 0 | Q104: 0.65 | R104: 905
A105: 60252 | B105: 岩浆人-25 | C105: 1 | D105: 1 | E105: 1 | F105: 21 | G105: 1078 | H105: 2156 | I105: 0 | J105: 0 | K105: 57 | L105: =FLOOR(K105*2,1) -> 114 | M105: 17 | N105: 0 | O105: 0 | P105: 0 | Q105: 0.65 | R105: 700
A106: 60253 | B106: 岩浆战士-25 | C106: 1 | D106: 2 | E106: 2 | F106: 22 | G106: 1688 | H106: 3376 | I106: 138 | J106: 276 | K106: 0 | L106: =FLOOR(K106*2,1) -> 0 | M106: 0 | N106: 0 | O106: 0 | P106: 0 | Q106: 0.65 | R106: 1097
A107: 60254 | B107: 火精灵-25 | C107: 1 | D107: 1 | E107: 1 | F107: 21 | G107: 1488 | H107: 2976 | I107: 0 | J107: 0 | K107: 57 | L107: =FLOOR(K107*2,1) -> 114 | M107: 17 | N107: 374 | O107: 63 | P107: 0 | Q107: 0.65 | R107: 967
A108: 60255 | B108: 火山蜘蛛-25 | C108: 1 | D108: 1 | E108: 1 | F108: 21 | G108: 1273 | H108: 2546 | I108: 108 | J108: 216 | K108: 0 | L108: =FLOOR(K108*2,1) -> 0 | M108: 0 | N108: 0 | O108: 0 | P108: 0 | Q108: 0.65 | R108: 827
A109: 60261 | B109: 岩浆蝎-26 | C109: 1 | D109: 1 | E109: 1 | F109: 21 | G109: 1532 | H109: 3064 | I109: 114 | J109: 228 | K109: 0 | L109: =FLOOR(K109*2,1) -> 0 | M109: 0 | N109: 375 | O109: 63 | P109: 0 | Q109: 0.65 | R109: 995
A110: 60262 | B110: 岩浆人-26 | C110: 1 | D110: 1 | E110: 1 | F110: 21 | G110: 1185 | H110: 2370 | I110: 0 | J110: 0 | K110: 63 | L110: =FLOOR(K110*2,1) -> 126 | M110: 18 | N110: 0 | O110: 0 | P110: 0 | Q110: 0.65 | R110: 770
A111: 60263 | B111: 岩浆战士-26 | C111: 1 | D111: 2 | E111: 2 | F111: 22 | G111: 1857 | H111: 3714 | I111: 152 | J111: 304 | K111: 0 | L111: =FLOOR(K111*2,1) -> 0 | M111: 0 | N111: 0 | O111: 0 | P111: 0 | Q111: 0.65 | R111: 1207
A112: 60264 | B112: 火精灵-26 | C112: 1 | D112: 1 | E112: 1 | F112: 21 | G112: 1637 | H112: 3274 | I112: 0 | J112: 0 | K112: 63 | L112: =FLOOR(K112*2,1) -> 126 | M112: 18 | N112: 411 | O112: 69 | P112: 0 | Q112: 0.65 | R112: 1064
A113: 60265 | B113: 火山蜘蛛-26 | C113: 1 | D113: 1 | E113: 1 | F113: 21 | G113: 1400 | H113: 2800 | I113: 119 | J113: 238 | K113: 0 | L113: =FLOOR(K113*2,1) -> 0 | M113: 0 | N113: 0 | O113: 0 | P113: 0 | Q113: 0.65 | R113: 910
A114: 60271 | B114: 岩浆蝎-27 | C114: 1 | D114: 1 | E114: 1 | F114: 21 | G114: 1685 | H114: 3370 | I114: 125 | J114: 250 | K114: 0 | L114: =FLOOR(K114*2,1) -> 0 | M114: 0 | N114: 412 | O114: 70 | P114: 0 | Q114: 0.65 | R114: 1095
A115: 60272 | B115: 岩浆人-27 | C115: 1 | D115: 1 | E115: 1 | F115: 21 | G115: 1303 | H115: 2606 | I115: 0 | J115: 0 | K115: 69 | L115: =FLOOR(K115*2,1) -> 138 | M115: 20 | N115: 0 | O115: 0 | P115: 0 | Q115: 0.65 | R115: 846
A116: 60273 | B116: 岩浆战士-27 | C116: 1 | D116: 2 | E116: 2 | F116: 22 | G116: 2042 | H116: 4084 | I116: 167 | J116: 334 | K116: 0 | L116: =FLOOR(K116*2,1) -> 0 | M116: 0 | N116: 0 | O116: 0 | P116: 0 | Q116: 0.65 | R116: 1327
A117: 60274 | B117: 火精灵-27 | C117: 1 | D117: 1 | E117: 1 | F117: 21 | G117: 1800 | H117: 3600 | I117: 0 | J117: 0 | K117: 70 | L117: =FLOOR(K117*2,1) -> 140 | M117: 21 | N117: 452 | O117: 76 | P117: 0 | Q117: 0.65 | R117: 1170
A118: 60275 | B118: 火山蜘蛛-27 | C118: 1 | D118: 1 | E118: 1 | F118: 21 | G118: 1540 | H118: 3080 | I118: 131 | J118: 262 | K118: 0 | L118: =FLOOR(K118*2,1) -> 0 | M118: 0 | N118: 0 | O118: 0 | P118: 0 | Q118: 0.65 | R118: 1001
A119: 60281 | B119: 岩浆蝎-28 | C119: 1 | D119: 1 | E119: 1 | F119: 21 | G119: 1853 | H119: 3706 | I119: 138 | J119: 276 | K119: 0 | L119: =FLOOR(K119*2,1) -> 0 | M119: 0 | N119: 453 | O119: 77 | P119: 0 | Q119: 0.65 | R119: 1204
A120: 60282 | B120: 岩浆人-28 | C120: 1 | D120: 1 | E120: 1 | F120: 21 | G120: 1433 | H120: 2866 | I120: 0 | J120: 0 | K120: 76 | L120: =FLOOR(K120*2,1) -> 152 | M120: 22 | N120: 0 | O120: 0 | P120: 0 | Q120: 0.65 | R120: 931
A121: 60283 | B121: 岩浆战士-28 | C121: 1 | D121: 2 | E121: 2 | F121: 22 | G121: 2246 | H121: 4492 | I121: 184 | J121: 368 | K121: 0 | L121: =FLOOR(K121*2,1) -> 0 | M121: 0 | N121: 0 | O121: 0 | P121: 0 | Q121: 0.65 | R121: 1459
A122: 60284 | B122: 火精灵-28 | C122: 1 | D122: 1 | E122: 1 | F122: 21 | G122: 1980 | H122: 3960 | I122: 0 | J122: 0 | K122: 77 | L122: =FLOOR(K122*2,1) -> 154 | M122: 23 | N122: 497 | O122: 84 | P122: 0 | Q122: 0.65 | R122: 1287
A123: 60285 | B123: 火山蜘蛛-28 | C123: 1 | D123: 1 | E123: 1 | F123: 21 | G123: 1694 | H123: 3388 | I123: 144 | J123: 288 | K123: 0 | L123: =FLOOR(K123*2,1) -> 0 | M123: 0 | N123: 0 | O123: 0 | P123: 0 | Q123: 0.65 | R123: 1101
A124: 60291 | B124: 岩浆蝎-29 | C124: 1 | D124: 1 | E124: 1 | F124: 21 | G124: 2038 | H124: 4076 | I124: 151 | J124: 302 | K124: 0 | L124: =FLOOR(K124*2,1) -> 0 | M124: 0 | N124: 498 | O124: 84 | P124: 0 | Q124: 0.65 | R124: 1324
A125: 60292 | B125: 岩浆人-29 | C125: 1 | D125: 1 | E125: 1 | F125: 21 | G125: 1576 | H125: 3152 | I125: 0 | J125: 0 | K125: 84 | L125: =FLOOR(K125*2,1) -> 168 | M125: 25 | N125: 0 | O125: 0 | P125: 0 | Q125: 0.65 | R125: 1024
A126: 60293 | B126: 岩浆战士-29 | C126: 1 | D126: 2 | E126: 2 | F126: 22 | G126: 2471 | H126: 4942 | I126: 202 | J126: 404 | K126: 0 | L126: =FLOOR(K126*2,1) -> 0 | M126: 0 | N126: 0 | O126: 0 | P126: 0 | Q126: 0.65 | R126: 1606
A127: 60294 | B127: 火精灵-29 | C127: 1 | D127: 1 | E127: 1 | F127: 21 | G127: 2178 | H127: 4356 | I127: 0 | J127: 0 | K127: 84 | L127: =FLOOR(K127*2,1) -> 168 | M127: 25 | N127: 559 | O127: 95 | P127: 0 | Q127: 0.65 | R127: 1415
A128: 60295 | B128: 火山蜘蛛-29 | C128: 1 | D128: 1 | E128: 1 | F128: 21 | G128: 1863 | H128: 3726 | I128: 158 | J128: 316 | K128: 0 | L128: =FLOOR(K128*2,1) -> 0 | M128: 0 | N128: 0 | O128: 0 | P128: 0 | Q128: 0.65 | R128: 1210
A129: 60301 | B129: 岩浆蝎-30 | C129: 1 | D129: 1 | E129: 1 | F129: 21 | G129: 2293 | H129: 4586 | I129: 170 | J129: 340 | K129: 0 | L129: =FLOOR(K129*2,1) -> 0 | M129: 0 | N129: 560 | O129: 95 | P129: 0 | Q129: 0.65 | R129: 1490
A130: 60302 | B130: 岩浆人-30 | C130: 1 | D130: 1 | E130: 1 | F130: 21 | G130: 1773 | H130: 3546 | I130: 0 | J130: 0 | K130: 95 | L130: =FLOOR(K130*2,1) -> 190 | M130: 28 | N130: 0 | O130: 0 | P130: 0 | Q130: 0.65 | R130: 1152
A131: 60303 | B131: 岩浆战士-30 | C131: 1 | D131: 2 | E131: 2 | F131: 22 | G131: 2779 | H131: 5558 | I131: 227 | J131: 454 | K131: 0 | L131: =FLOOR(K131*2,1) -> 0 | M131: 0 | N131: 872 | O131: 148 | P131: 0 | Q131: 0.65 | R131: 1806
A132: 60304 | B132: 火精灵-30 | C132: 1 | D132: 1 | E132: 1 | F132: 21 | G132: 2450 | H132: =FLOOR(G132*2,1) -> 4900 | I132: 0 | J132: 0 | K132: 95 | L132: =FLOOR(K132*2,1) -> 190 | M132: =FLOOR(K132*0.3,1) -> 28 | N132: 0 | O132: =FLOOR(N132*0.17,1) -> 0 | P132: 0 | Q132: 0.65 | R132: =FLOOR(G132*Q132,1) -> 1592
A133: 60305 | B133: 火山蜘蛛-30 | C133: 1 | D133: 1 | E133: 1 | F133: 21 | G133: 2096 | H133: 4192 | I133: 178 | J133: 356 | K133: 0 | L133: =FLOOR(K133*2,1) -> 0 | M133: 0 | N133: 615 | O133: 104 | P133: 0 | Q133: 0.65 | R133: 1362
A134: 60306 | B134: 岩浆巨兽-30 | C134: 1 | D134: 1 | E134: 1 | F134: 23 | G134: 13335 | H134: 26670 | I134: 0 | J134: 0 | K134: 148 | L134: =FLOOR(K134*2,1) -> 296 | M134: 44 | N134: 0 | O134: 0 | P134: 0 | Q134: 0.65 | R134: 8667
A135: 60311 | B135: 树精-31 | C135: 1 | D135: 1 | E135: 1 | F135: 21 | G135: 2522 | H135: 5044 | I135: 187 | J135: 374 | K135: 0 | L135: =FLOOR(K135*2,1) -> 0 | M135: 0 | N135: 616 | O135: 104 | P135: 0 | Q135: 0.65 | R135: 1639
A136: 60312 | B136: 毒蜘蛛-31 | C136: 1 | D136: 1 | E136: 1 | F136: 21 | G136: 1950 | H136: 3900 | I136: 0 | J136: 0 | K136: 104 | L136: =FLOOR(K136*2,1) -> 208 | M136: 31 | N136: 0 | O136: 0 | P136: 0 | Q136: 0.65 | R136: 1267
A137: 60313 | B137: 哥布林-31 | C137: 1 | D137: 2 | E137: 2 | F137: 22 | G137: 3057 | H137: 6114 | I137: 250 | J137: 500 | K137: 0 | L137: =FLOOR(K137*2,1) -> 0 | M137: 0 | N137: 0 | O137: 0 | P137: 0 | Q137: 0.65 | R137: 1987
A138: 60314 | B138: 木精灵-31 | C138: 1 | D138: 1 | E138: 1 | F138: 21 | G138: 2695 | H138: 5390 | I138: 0 | J138: 0 | K138: 104 | L138: =FLOOR(K138*2,1) -> 208 | M138: 31 | N138: 676 | O138: 114 | P138: 0 | Q138: 0.65 | R138: 1751
A139: 60315 | B139: 森林蜘蛛-31 | C139: 1 | D139: 1 | E139: 1 | F139: 21 | G139: 2305 | H139: 4610 | I139: 196 | J139: 392 | K139: 0 | L139: =FLOOR(K139*2,1) -> 0 | M139: 0 | N139: 0 | O139: 0 | P139: 0 | Q139: 0.65 | R139: 1498
A140: 60321 | B140: 树精-32 | C140: 1 | D140: 1 | E140: 1 | F140: 21 | G140: 2774 | H140: 5548 | I140: 206 | J140: 412 | K140: 0 | L140: =FLOOR(K140*2,1) -> 0 | M140: 0 | N140: 677 | O140: 115 | P140: 0 | Q140: 0.65 | R140: 1803
A141: 60322 | B141: 毒蜘蛛-32 | C141: 1 | D141: 1 | E141: 1 | F141: 21 | G141: 2145 | H141: 4290 | I141: 0 | J141: 0 | K141: 114 | L141: =FLOOR(K141*2,1) -> 228 | M141: 34 | N141: 0 | O141: 0 | P141: 0 | Q141: 0.65 | R141: 1394
A142: 60323 | B142: 哥布林-32 | C142: 1 | D142: 2 | E142: 2 | F142: 22 | G142: 3362 | H142: 6724 | I142: 275 | J142: 550 | K142: 0 | L142: =FLOOR(K142*2,1) -> 0 | M142: 0 | N142: 0 | O142: 0 | P142: 0 | Q142: 0.65 | R142: 2185
A143: 60324 | B143: 木精灵-32 | C143: 1 | D143: 1 | E143: 1 | F143: 21 | G143: 2965 | H143: 5930 | I143: 0 | J143: 0 | K143: 115 | L143: =FLOOR(K143*2,1) -> 230 | M143: 34 | N143: 743 | O143: 126 | P143: 0 | Q143: 0.65 | R143: 1927
A144: 60325 | B144: 森林蜘蛛-32 | C144: 1 | D144: 1 | E144: 1 | F144: 21 | G144: 2536 | H144: 5072 | I144: 215 | J144: 430 | K144: 0 | L144: =FLOOR(K144*2,1) -> 0 | M144: 0 | N144: 0 | O144: 0 | P144: 0 | Q144: 0.65 | R144: 1648
A145: 60331 | B145: 树精-33 | C145: 1 | D145: 1 | E145: 1 | F145: 21 | G145: 3051 | H145: 6102 | I145: 226 | J145: 452 | K145: 0 | L145: =FLOOR(K145*2,1) -> 0 | M145: 0 | N145: 744 | O145: 126 | P145: 0 | Q145: 0.65 | R145: 1983
A146: 60332 | B146: 孢子人-33 | C146: 1 | D146: 1 | E146: 1 | F146: 21 | G146: 2360 | H146: 4720 | I146: 0 | J146: 0 | K146: 126 | L146: =FLOOR(K146*2,1) -> 252 | M146: 37 | N146: 0 | O146: 0 | P146: 0 | Q146: 0.65 | R146: 1534
A147: 60333 | B147: 哥布林-33 | C147: 1 | D147: 2 | E147: 2 | F147: 22 | G147: 3362 | H147: 6724 | I147: 302 | J147: 604 | K147: 0 | L147: =FLOOR(K147*2,1) -> 0 | M147: 0 | N147: 0 | O147: 0 | P147: 0 | Q147: 0.65 | R147: 2185
A148: 60334 | B148: 木精灵-33 | C148: 1 | D148: 1 | E148: 1 | F148: 21 | G148: 2965 | H148: 5930 | I148: 0 | J148: 0 | K148: 126 | L148: =FLOOR(K148*2,1) -> 252 | M148: 37 | N148: 0 | O148: 0 | P148: 0 | Q148: 0.65 | R148: 1927
A149: 60335 | B149: 森林蜘蛛-33 | C149: 1 | D149: 1 | E149: 1 | F149: 21 | G149: 2536 | H149: 5072 | I149: 237 | J149: 474 | K149: 0 | L149: =FLOOR(K149*2,1) -> 0 | M149: 0 | N149: 817 | O149: 138 | P149: 0 | Q149: 0.65 | R149: 1648
A150: 60336 | B150: 召唤孢子-33 | C150: 1 | D150: 1 | E150: 1 | F150: 24 | G150: 1360 | H150: 2720 | I150: 0 | J150: 0 | K150: 80 | L150: =FLOOR(K150*2,1) -> 160 | M150: 24 | N150: 0 | O150: 0 | P150: 0 | Q150: 0.65 | R150: 884
A151: 60341 | B151: 树精-34 | C151: 1 | D151: 1 | E151: 1 | F151: 21 | G151: 3356 | H151: 6712 | I151: 249 | J151: 498 | K151: 0 | L151: =FLOOR(K151*2,1) -> 0 | M151: 0 | N151: 818 | O151: 139 | P151: 0 | Q151: 0.65 | R151: 2181
A152: 60342 | B152: 孢子人-34 | C152: 1 | D152: 1 | E152: 1 | F152: 21 | G152: 2596 | H152: 5192 | I152: 0 | J152: 0 | K152: 138 | L152: =FLOOR(K152*2,1) -> 276 | M152: 41 | N152: 0 | O152: 0 | P152: 0 | Q152: 0.65 | R152: 1687
A153: 60343 | B153: 哥布林-34 | C153: 1 | D153: 2 | E153: 2 | F153: 22 | G153: 3698 | H153: 7396 | I153: 332 | J153: 664 | K153: 0 | L153: =FLOOR(K153*2,1) -> 0 | M153: 0 | N153: 0 | O153: 0 | P153: 0 | Q153: 0.65 | R153: 2403
A154: 60344 | B154: 木精灵-34 | C154: 1 | D154: 1 | E154: 1 | F154: 21 | G154: 3261 | H154: 6522 | I154: 0 | J154: 0 | K154: 139 | L154: =FLOOR(K154*2,1) -> 278 | M154: 41 | N154: 0 | O154: 0 | P154: 0 | Q154: 0.65 | R154: 2119
A155: 60345 | B155: 森林蜘蛛-34 | C155: 1 | D155: 1 | E155: 1 | F155: 21 | G155: 2789 | H155: 5578 | I155: 260 | J155: 520 | K155: 0 | L155: =FLOOR(K155*2,1) -> 0 | M155: 0 | N155: 979 | O155: 166 | P155: 0 | Q155: 0.65 | R155: 1812
A156: 60346 | B156: 召唤孢子-34 | C156: 1 | D156: 1 | E156: 1 | F156: 24 | G156: 1360 | H156: 2720 | I156: 0 | J156: 0 | K156: 80 | L156: =FLOOR(K156*2,1) -> 160 | M156: 24 | N156: 0 | O156: 0 | P156: 0 | Q156: 0.65 | R156: 884
A157: 60351 | B157: 树精-35 | C157: 1 | D157: 1 | E157: 1 | F157: 21 | G157: 4027 | H157: 8054 | I157: 298 | J157: 596 | K157: 0 | L157: =FLOOR(K157*2,1) -> 0 | M157: 0 | N157: 981 | O157: 166 | P157: 0 | Q157: 0.65 | R157: 2617
A158: 60352 | B158: 孢子人-35 | C158: 1 | D158: 1 | E158: 1 | F158: 21 | G158: 3115 | H158: 6230 | I158: 0 | J158: 0 | K158: 166 | L158: =FLOOR(K158*2,1) -> 332 | M158: 49 | N158: 0 | O158: 0 | P158: 0 | Q158: 0.65 | R158: 2024
A159: 60353 | B159: 哥布林-35 | C159: 1 | D159: 2 | E159: 2 | F159: 22 | G159: 4438 | H159: 8876 | I159: 398 | J159: 796 | K159: 0 | L159: =FLOOR(K159*2,1) -> 0 | M159: 0 | N159: 0 | O159: 0 | P159: 0 | Q159: 0.65 | R159: 2884
A160: 60354 | B160: 木精灵-35 | C160: 1 | D160: 1 | E160: 1 | F160: 21 | G160: 3913 | H160: 7826 | I160: 0 | J160: 0 | K160: 166 | L160: =FLOOR(K160*2,1) -> 332 | M160: 49 | N160: 0 | O160: 0 | P160: 0 | Q160: 0.65 | R160: 2543
A161: 60355 | B161: 森林蜘蛛-35 | C161: 1 | D161: 1 | E161: 1 | F161: 21 | G161: 3347 | H161: 6694 | I161: 312 | J161: 624 | K161: 0 | L161: =FLOOR(K161*2,1) -> 0 | M161: 0 | N161: 0 | O161: 0 | P161: 0 | Q161: 0.65 | R161: 2175
A162: 60356 | B162: 森林巨兽-35 | C162: 1 | D162: 1 | E162: 1 | F162: 23 | G162: 25325 | H162: 50650 | I162: 478 | J162: 956 | K162: 0 | L162: =FLOOR(K162*2,1) -> 0 | M162: 0 | N162: 1078 | O162: 183 | P162: 0 | Q162: 0.65 | R162: 16461
A163: 60357 | B163: 召唤孢子-35 | C163: 1 | D163: 1 | E163: 1 | F163: 24 | G163: 1500 | H163: 3000 | I163: 0 | J163: 0 | K163: 100 | L163: =FLOOR(K163*2,1) -> 200 | M163: 30 | N163: 0 | O163: 0 | P163: 0 | Q163: 0.65 | R163: 975
A164: 60358 | B164: 树精-35 | C164: 1 | D164: 1 | E164: 1 | F164: 24 | G164: 4429 | H164: 8858 | I164: 328 | J164: 656 | K164: 0 | L164: =FLOOR(K164*2,1) -> 0 | M164: 0 | N164: 1079 | O164: 183 | P164: 0 | Q164: 0.65 | R164: 2878
A165: 60361 | B165: 树精-36 | C165: 1 | D165: 1 | E165: 1 | F165: 21 | G165: 4429 | H165: 8858 | I165: 328 | J165: 656 | K165: 0 | L165: =FLOOR(K165*2,1) -> 0 | M165: 0 | N165: 0 | O165: 0 | P165: 0 | Q165: 0.65 | R165: 2878
A166: 60362 | B166: 毒蜘蛛-36 | C166: 1 | D166: 1 | E166: 1 | F166: 21 | G166: 3426 | H166: 6852 | I166: 0 | J166: 0 | K166: 183 | L166: =FLOOR(K166*2,1) -> 366 | M166: 54 | N166: 0 | O166: 0 | P166: 0 | Q166: 0.65 | R166: 2226
A167: 60363 | B167: 哥布林-36 | C167: 1 | D167: 2 | E167: 2 | F167: 22 | G167: 4881 | H167: 9762 | I167: 438 | J167: 876 | K167: 0 | L167: =FLOOR(K167*2,1) -> 0 | M167: 0 | N167: 1185 | O167: 201 | P167: 0 | Q167: 0.65 | R167: 3172
A168: 60364 | B168: 木精灵-36 | C168: 1 | D168: 1 | E168: 1 | F168: 21 | G168: 4304 | H168: 8608 | I168: 0 | J168: 0 | K168: 183 | L168: =FLOOR(K168*2,1) -> 366 | M168: 54 | N168: 0 | O168: 0 | P168: 0 | Q168: 0.65 | R168: 2797
A169: 60365 | B169: 森林蜘蛛-36 | C169: 1 | D169: 1 | E169: 1 | F169: 21 | G169: 3681 | H169: 7362 | I169: 343 | J169: 686 | K169: 0 | L169: =FLOOR(K169*2,1) -> 0 | M169: 0 | N169: 1186 | O169: 201 | P169: 0 | Q169: 0.65 | R169: 2392
A170: 60371 | B170: 树精-37 | C170: 1 | D170: 1 | E170: 1 | F170: 21 | G170: 4872 | H170: 9744 | I170: 361 | J170: 722 | K170: 0 | L170: =FLOOR(K170*2,1) -> 0 | M170: 0 | N170: 0 | O170: 0 | P170: 0 | Q170: 0.65 | R170: 3166
A171: 60372 | B171: 毒蜘蛛-37 | C171: 1 | D171: 1 | E171: 1 | F171: 21 | G171: 3769 | H171: 7538 | I171: 0 | J171: 0 | K171: 201 | L171: =FLOOR(K171*2,1) -> 402 | M171: 60 | N171: 0 | O171: 0 | P171: 0 | Q171: 0.65 | R171: 2449
A172: 60373 | B172: 哥布林-37 | C172: 1 | D172: 2 | E172: 2 | F172: 22 | G172: 5369 | H172: 10738 | I172: 482 | J172: 964 | K172: 0 | L172: =FLOOR(K172*2,1) -> 0 | M172: 0 | N172: 1302 | O172: 221 | P172: 0 | Q172: 0.65 | R172: 3489
A173: 60374 | B173: 木精灵-37 | C173: 1 | D173: 1 | E173: 1 | F173: 21 | G173: 4734 | H173: 9468 | I173: 0 | J173: 0 | K173: 201 | L173: =FLOOR(K173*2,1) -> 402 | M173: 60 | N173: 0 | O173: 0 | P173: 0 | Q173: 0.65 | R173: 3077
A174: 60375 | B174: 森林蜘蛛-37 | C174: 1 | D174: 1 | E174: 1 | F174: 21 | G174: 4049 | H174: 8098 | I174: 378 | J174: 756 | K174: 0 | L174: =FLOOR(K174*2,1) -> 0 | M174: 0 | N174: 1304 | O174: 221 | P174: 0 | Q174: 0.65 | R174: 2631
A175: 60381 | B175: 树精-38 | C175: 1 | D175: 1 | E175: 1 | F175: 21 | G175: 5359 | H175: 10718 | I175: 397 | J175: 794 | K175: 0 | L175: =FLOOR(K175*2,1) -> 0 | M175: 0 | N175: 0 | O175: 0 | P175: 0 | Q175: 0.65 | R175: 3483
A176: 60382 | B176: 孢子人-38 | C176: 1 | D176: 1 | E176: 1 | F176: 21 | G176: 4145 | H176: 8290 | I176: 0 | J176: 0 | K176: 221 | L176: =FLOOR(K176*2,1) -> 442 | M176: 66 | N176: 0 | O176: 0 | P176: 0 | Q176: 0.65 | R176: 2694
A177: 60383 | B177: 哥布林-38 | C177: 1 | D177: 2 | E177: 2 | F177: 22 | G177: 5906 | H177: 11812 | I177: 530 | J177: 1060 | K177: 0 | L177: =FLOOR(K177*2,1) -> 0 | M177: 0 | N177: 0 | O177: 0 | P177: 0 | Q177: 0.65 | R177: 3838
A178: 60384 | B178: 木精灵-38 | C178: 1 | D178: 1 | E178: 1 | F178: 21 | G178: 5207 | H178: 10414 | I178: 0 | J178: 0 | K178: 221 | L178: =FLOOR(K178*2,1) -> 442 | M178: 66 | N178: 1433 | O178: 243 | P178: 0 | Q178: 0.65 | R178: 3384
A179: 60385 | B179: 森林蜘蛛-38 | C179: 1 | D179: 1 | E179: 1 | F179: 21 | G179: 4454 | H179: 8908 | I179: 415 | J179: 830 | K179: 0 | L179: =FLOOR(K179*2,1) -> 0 | M179: 0 | N179: 0 | O179: 0 | P179: 0 | Q179: 0.65 | R179: 2895
A180: 60386 | B180: 召唤孢子-38 | C180: 1 | D180: 1 | E180: 1 | F180: 24 | G180: 2500 | H180: 5000 | I180: 0 | J180: 0 | K180: 160 | L180: =FLOOR(K180*2,1) -> 320 | M180: 48 | N180: 1434 | O180: 243 | P180: 0 | Q180: 0.65 | R180: 1625
A181: 60391 | B181: 树精-39 | C181: 1 | D181: 1 | E181: 1 | F181: 21 | G181: 5894 | H181: 11788 | I181: 436 | J181: 872 | K181: 0 | L181: =FLOOR(K181*2,1) -> 0 | M181: 0 | N181: 0 | O181: 0 | P181: 0 | Q181: 0.65 | R181: 3831
A182: 60392 | B182: 孢子人-39 | C182: 1 | D182: 1 | E182: 1 | F182: 21 | G182: 4560 | H182: 9120 | I182: 0 | J182: 0 | K182: 243 | L182: =FLOOR(K182*2,1) -> 486 | M182: 72 | N182: 0 | O182: 0 | P182: 0 | Q182: 0.65 | R182: 2964
A183: 60393 | B183: 哥布林-39 | C183: 1 | D183: 2 | E183: 2 | F183: 22 | G183: 6496 | H183: 12992 | I183: 582 | J183: 1164 | K183: 0 | L183: =FLOOR(K183*2,1) -> 0 | M183: 0 | N183: 0 | O183: 0 | P183: 0 | Q183: 0.65 | R183: 4222
A184: 60394 | B184: 木精灵-39 | C184: 1 | D184: 1 | E184: 1 | F184: 21 | G184: 5728 | H184: 11456 | I184: 0 | J184: 0 | K184: 243 | L184: =FLOOR(K184*2,1) -> 486 | M184: 72 | N184: 1719 | O184: 292 | P184: 0 | Q184: 0.65 | R184: 3723
A185: 60395 | B185: 森林蜘蛛-39 | C185: 1 | D185: 1 | E185: 1 | F185: 21 | G185: 4899 | H185: 9798 | I185: 457 | J185: 914 | K185: 0 | L185: =FLOOR(K185*2,1) -> 0 | M185: 0 | N185: 0 | O185: 0 | P185: 0 | Q185: 0.65 | R185: 3184
A186: 60396 | B186: 召唤孢子-39 | C186: 1 | D186: 1 | E186: 1 | F186: 24 | G186: 2500 | H186: 5000 | I186: 0 | J186: 0 | K186: 160 | L186: =FLOOR(K186*2,1) -> 320 | M186: 48 | N186: 1720 | O186: 292 | P186: 0 | Q186: 0.65 | R186: 1625
A187: 60401 | B187: 树精-40 | C187: 1 | D187: 1 | E187: 1 | F187: 21 | G187: 7073 | H187: 14146 | I187: 524 | J187: 1048 | K187: 0 | L187: =FLOOR(K187*2,1) -> 0 | M187: 0 | N187: 0 | O187: 0 | P187: 0 | Q187: 0.65 | R187: 4597
A188: 60402 | B188: 孢子人-40 | C188: 1 | D188: 1 | E188: 1 | F188: 21 | G188: 5472 | H188: 10944 | I188: 0 | J188: 0 | K188: 292 | L188: =FLOOR(K188*2,1) -> 584 | M188: 87 | N188: 0 | O188: 0 | P188: 0 | Q188: 0.65 | R188: 3556
A189: 60403 | B189: 哥布林-40 | C189: 1 | D189: 2 | E189: 2 | F189: 22 | G189: 7795 | H189: 15590 | I189: 699 | J189: 1398 | K189: 0 | L189: =FLOOR(K189*2,1) -> 0 | M189: 0 | N189: 0 | O189: 0 | P189: 0 | Q189: 0.65 | R189: 5066
A190: 60404 | B190: 木精灵-40 | C190: 1 | D190: 1 | E190: 1 | F190: 21 | G190: 6873 | H190: 13746 | I190: 0 | J190: 0 | K190: 292 | L190: =FLOOR(K190*2,1) -> 584 | M190: 87 | N190: 0 | O190: 0 | P190: 0 | Q190: 0.65 | R190: 4467
A191: 60405 | B191: 森林蜘蛛-40 | C191: 1 | D191: 1 | E191: 1 | F191: 21 | G191: 5878 | H191: 11756 | I191: 548 | J191: 1096 | K191: 0 | L191: =FLOOR(K191*2,1) -> 0 | M191: 0 | N191: 1891 | O191: 321 | P191: 0 | Q191: 0.65 | R191: 3820
A192: 60406 | B192: 森林巨兽-40 | C192: 1 | D192: 1 | E192: 1 | F192: 23 | G192: 36390 | H192: 72780 | I192: 573 | J192: 1146 | K192: 0 | L192: =FLOOR(K192*2,1) -> 0 | M192: 0 | N192: 0 | O192: 0 | P192: 0 | Q192: 0.65 | R192: 23653
A193: 60407 | B193: 召唤孢子-40 | C193: 1 | D193: 1 | E193: 1 | F193: 24 | G193: 2500 | H193: 5000 | I193: 0 | J193: 0 | K193: 160 | L193: =FLOOR(K193*2,1) -> 320 | M193: 48 | N193: 1892 | O193: 321 | P193: 0 | Q193: 0.65 | R193: 1625
A194: 60408 | B194: 树精-40 | C194: 1 | D194: 1 | E194: 1 | F194: 24 | G194: 7073 | H194: 14146 | I194: 524 | J194: 1048 | K194: 0 | L194: =FLOOR(K194*2,1) -> 0 | M194: 0 | N194: 0 | O194: 0 | P194: 0 | Q194: 0.65 | R194: 4597
A195: 60411 | B195: 树精-41 | C195: 1 | D195: 1 | E195: 1 | F195: 21 | G195: 7780 | H195: 15560 | I195: 576 | J195: 1152 | K195: 0 | L195: =FLOOR(K195*2,1) -> 0 | M195: 0 | N195: 0 | O195: 0 | P195: 0 | Q195: 0.65 | R195: 5057
A196: 60412 | B196: 毒蜘蛛-41 | C196: 1 | D196: 1 | E196: 1 | F196: 21 | G196: 6019 | H196: =FLOOR(G196*2,1) -> 12038 | I196: 0 | J196: 0 | K196: 321 | L196: =FLOOR(K196*2,1) -> 642 | M196: =FLOOR(K196*0.3,1) -> 96 | N196: 2080 | O196: =FLOOR(N196*0.17,1) -> 353 | P196: 0 | Q196: 0.65 | R196: =FLOOR(G196*Q196,1) -> 3912
A197: 60413 | B197: 哥布林-41 | C197: 1 | D197: 2 | E197: 2 | F197: 22 | G197: 8575 | H197: 17150 | I197: 769 | J197: 1538 | K197: 0 | L197: =FLOOR(K197*2,1) -> 0 | M197: 0 | N197: 0 | O197: 0 | P197: 0 | Q197: 0.65 | R197: 5573
A198: 60414 | B198: 木精灵-41 | C198: 1 | D198: 1 | E198: 1 | F198: 21 | G198: 7560 | H198: 15120 | I198: 0 | J198: 0 | K198: 321 | L198: =FLOOR(K198*2,1) -> 642 | M198: 96 | N198: 2081 | O198: 353 | P198: 0 | Q198: 0.65 | R198: 4914
A199: 60415 | B199: 森林蜘蛛-41 | C199: 1 | D199: 1 | E199: 1 | F199: 21 | G199: 6466 | H199: 12932 | I199: 603 | J199: 1206 | K199: 0 | L199: =FLOOR(K199*2,1) -> 0 | M199: 0 | N199: 0 | O199: 0 | P199: 0 | Q199: 0.65 | R199: 4202
A200: 60421 | B200: 树精-42 | C200: 1 | D200: 1 | E200: 1 | F200: 21 | G200: 8558 | H200: 17116 | I200: 633 | J200: 1266 | K200: 0 | L200: =FLOOR(K200*2,1) -> 0 | M200: 0 | N200: 0 | O200: 0 | P200: 0 | Q200: 0.65 | R200: 5562
... 474 more rows

Sheet 注释
A1: skillCDs： 0代表初始放一次的永久BUFF。 9999代表是另外一个技能触发的技能，比如刺客的背刺触发暴击率提升BUFF
A2: type:21.怪物。22.精英。23.boss
A3: attackCD：图腾配置9999
A4: hurtFrame：图腾配置0
A5: moveSpeed：移动速度图腾配置0
A6: lifeDuration：正常角色配置0，召唤物有时间的配置时间

Sheet 属性战力计算公式
C1: 战力系数 | D1: 战斗力计算
A2: 基础属性 | B2: 攻击 | C2: 2 | D2: （攻击）*系数
B3: 法术攻击 | C3: 2 | D3: （攻击）*系数
B4: 生命 | C4: 0.8 | D4: （生命）*系数
B5: 防御 | C5: 1 | D5: (生命值/(1-（防御/（防御+防御常数））*生命系数
B6: 法术防御 | C6: 1 | D6: (生命值/(1-（防御/（防御+防御常数））*生命系数
B7: 攻速 | C7: 1 | D7: （攻击/攻击速度*攻击系数）*攻速系数
B8: 暴击率 | C8: 1 | D8: （暴击率*攻击*暴击伤害*2）*系数
B9: 暴伤 | C9: 1 | D9: （暴击率*攻击*暴击伤害*2）*系数
B10: 命中 | C10: 1 | D10: （攻击/攻击速度*命中）*系数
B11: 闪躲 | C11: 1 | D11: （生命系数*生命/（1-闪避））*系数
